Supplier Id,Invoice Id,Supplier Name,Date Paid,Subjective Code,Subjective Name,Service Area,Cost Centre Name,Invoiced
6055,5599515,ABAFIELDS RESIDENTIAL HOME,23/10/2018,54301,Residential Provision,Adult Services,OA  External Provision Residential,"33,769.71"
6055,5599516,ABAFIELDS RESIDENTIAL HOME,11/10/2018,54301,Residential Provision,Adult Services,PD Purchaser Residential Care,"1,890.00"
6055,5599515,ABAFIELDS RESIDENTIAL HOME,25/10/2018,54301,Residential Provision,Adult Services,PD Purchaser Residential Care,"6,120.00"
6055,5599515,ABAFIELDS RESIDENTIAL HOME,25/10/2018,54301,Residential Provision,Adult Services,LD Purchaser Residential Care,"2,306.48"
6055,5599515,ABAFIELDS RESIDENTIAL HOME,18/10/2018,54301,Residential Provision,Adult Services,MH Residential External Provision,"1,960.00"
2348298,5599633,ABBEY HEALTHCARE (FARNWORTH) LIMITED,23/10/2018,54302,Nursing Provision,Adult Services,OA  External Provision Residential,"43,073.43"
2348298,5599632,ABBEY HEALTHCARE (FARNWORTH) LIMITED,02/10/2018,54301,Residential Provision,Adult Services,OA  External Provision Residential,"47,180.00"
2348298,5599633,ABBEY HEALTHCARE (FARNWORTH) LIMITED,02/10/2018,54302,Nursing Provision,Adult Services,PD Purchaser Residential Care,"11,620.00"
2348298,5599634,ABBEY HEALTHCARE (FARNWORTH) LIMITED,02/10/2018,54301,Residential Provision,Adult Services,PD Purchaser Residential Care,"1,130.00"
2348298,5599632,ABBEY HEALTHCARE (FARNWORTH) LIMITED,02/10/2018,54301,Residential Provision,Adult Services,PD Purchaser Residential Care,"5,880.00"
2348298,5599633,ABBEY HEALTHCARE (FARNWORTH) LIMITED,02/10/2018,54302,Nursing Provision,Adult Services,MH Residential External Provision,"3,920.00"
2348298,5599632,ABBEY HEALTHCARE (FARNWORTH) LIMITED,02/10/2018,54301,Residential Provision,Adult Services,MH Residential External Provision,"3,920.00"
2341303,5599630,ABBEYCLIFFE RESIDENTIAL CARE HOME,02/10/2018,54301,Residential Provision,Adult Services,OA  External Provision Residential,"7,617.44"
6894,5599572,ABBEYDALE RESIDENTIAL CARE HOME,02/10/2018,54301,Residential Provision,Adult Services,OA  External Provision Residential,"3,808.72"
2221292,5599625,ADLINGTON MANOR,02/10/2018,54302,Nursing Provision,Adult Services,OA  External Provision Residential,"1,959.44"
6960,5615470,AIDAPT BATHROOMS LTD,02/10/2018,44051,Clients Aids & Adaptations,Adult Services,ICES,750.00
6960,5626190,AIDAPT BATHROOMS LTD,02/10/2018,44051,Clients Aids & Adaptations,Adult Services,ICES,"1,245.00"
6960,5664447,AIDAPT BATHROOMS LTD,02/10/2018,44051,Clients Aids & Adaptations,Adult Services,ICES,"2,190.00"
3944953,5599490,Alma Green Residential Care Home,02/10/2018,54301,Residential Provision,Adult Services,OA  External Provision Residential,"2,181.84"
2564295,5599439,Almond Villas Ltd,02/10/2018,54301,Residential Provision,Adult Services,MH Residential External Provision,"2,685.68"
2564295,5599438,Almond Villas Ltd,23/10/2018,54301,Residential Provision,Adult Services,MH Residential External Provision,"5,246.64"
2246414,5599627,ANSAR PROJECTS,23/10/2018,54301,Residential Provision,Adult Services,MH Residential External Provision,"4,536.00"
6082,5650437,Anthony Axford Ltd,23/10/2018,44051,Clients Aids & Adaptations,Adult Services,ICES,658.77
8407,5615468,APETITO LTD,23/10/2018,41101,Catering ProvisionsFood,Adult Services,OA  Community Meals,550.00
8407,5625916,APETITO LTD,18/10/2018,41101,Catering ProvisionsFood,Adult Services,OA  Community Meals,550.00
8407,5627518,APETITO LTD,23/10/2018,41101,Catering ProvisionsFood,Adult Services,OA  Community Meals,882.95
8407,5616471,APETITO LTD,18/10/2018,41101,Catering ProvisionsFood,Adult Services,OA  Community Meals,903.81
8407,5665444,APETITO LTD,25/10/2018,41101,Catering ProvisionsFood,Adult Services,OA  Community Meals,929.80
8407,5615478,APETITO LTD,25/10/2018,41101,Catering ProvisionsFood,Adult Services,OA  Community Meals,950.30
8407,5644491,APETITO LTD,23/10/2018,41101,Catering ProvisionsFood,Adult Services,OA  Community Meals,996.28
8407,5626532,APETITO LTD,23/10/2018,41101,Catering ProvisionsFood,Adult Services,OA  Community Meals,"1,003.57"
8407,5608507,APETITO LTD,11/10/2018,41101,Catering ProvisionsFood,Adult Services,OA  Community Meals,"1,017.73"
8407,5665455,APETITO LTD,11/10/2018,41101,Catering ProvisionsFood,Adult Services,OA  Community Meals,"1,040.83"
8407,5671494,APETITO LTD,15/10/2018,41101,Catering ProvisionsFood,Adult Services,OA  Community Meals,"1,067.69"
8407,5648471,APETITO LTD,02/10/2018,41101,Catering ProvisionsFood,Adult Services,OA  Community Meals,"1,264.48"
8407,5626529,APETITO LTD,15/10/2018,41101,Catering ProvisionsFood,Adult Services,OA  Community Meals,"1,292.41"
8407,5665593,APETITO LTD,11/10/2018,41101,Catering ProvisionsFood,Adult Services,OA  Community Meals,"1,401.42"
8407,5625896,APETITO LTD,25/10/2018,41101,Catering ProvisionsFood,Adult Services,OA  Community Meals,"1,550.00"
8407,5615466,APETITO LTD,25/10/2018,41101,Catering ProvisionsFood,Adult Services,OA  Community Meals,"3,100.00"
6095,5630822,ASH CLEANING SERVICES LTD,04/10/2018,52300,Client Support Costs,Adult Services,MH Residential External Provision,"1,714.00"
2338498,5599629,ASHTREE HOUSE,11/10/2018,54301,Residential Provision,Adult Services,PD Purchaser Residential Care,"1,700.00"
2515336,5599642,ASTLEY GRANGE HOMES LIMITED,18/10/2018,54302,Nursing Provision,Adult Services,OA  External Provision Residential,"6,420.00"
2515336,5599643,ASTLEY GRANGE HOMES LIMITED,29/10/2018,54301,Residential Provision,Adult Services,OA  External Provision Residential,"6,980.00"
2515336,5599642,ASTLEY GRANGE HOMES LIMITED,11/10/2018,54302,Nursing Provision,Adult Services,PD Purchaser Residential Care,"1,960.00"
2515336,5599642,ASTLEY GRANGE HOMES LIMITED,23/10/2018,54302,Nursing Provision,Adult Services,LD Purchaser Residential Care,"1,397.86"
2515336,5599642,ASTLEY GRANGE HOMES LIMITED,25/10/2018,54302,Nursing Provision,Adult Services,MH Residential External Provision,"2,180.00"
39044,5662531,AUTISTIC SOCIETY GREATER MANCHESTER AREA,04/10/2018,52200,Contracted Services,Adult Services,MH Homecare,518.75
3124571,5599467,Bank House Care Home#1,23/10/2018,54301,Residential Provision,Adult Services,OA  External Provision Residential,"4,084.72"
4590014,5599498,Bankfield Care Home,25/10/2018,54301,Residential Provision,Adult Services,OA  External Provision Residential,"1,904.36"
2709325,5599445,Bannister Farm Cottage,25/10/2018,54301,Residential Provision,Adult Services,LD Purchaser Residential Care,"24,382.56"
4823093,5599506,Bascombe Court,25/10/2018,54301,Residential Provision,Adult Services,PD Purchaser Residential Care,"1,716.00"
39733,5599595,BEDFORD RESIDENTIAL NURSING CARE HOME,18/10/2018,54302,Nursing Provision,Adult Services,OA  External Provision Residential,"4,024.00"
39733,5599594,BEDFORD RESIDENTIAL NURSING CARE HOME,18/10/2018,54301,Residential Provision,Adult Services,OA  External Provision Residential,"1,700.00"
39733,5599595,BEDFORD RESIDENTIAL NURSING CARE HOME,11/10/2018,54302,Nursing Provision,Adult Services,PD Purchaser Residential Care,"2,012.00"
39733,5599594,BEDFORD RESIDENTIAL NURSING CARE HOME,11/10/2018,54301,Residential Provision,Adult Services,PD Purchaser Residential Care,"1,980.00"
1544379,5599612,BEECHFIELD LODGE#ANCHOR TRUST,11/10/2018,54301,Residential Provision,Adult Services,OA  External Provision Residential,"1,814.08"
247279,5599603,BEECHVILLE CARE HOME,08/10/2018,54301,Residential Provision,Adult Services,OA  External Provision Residential,"20,051.24"
247279,5599603,BEECHVILLE CARE HOME,11/10/2018,54301,Residential Provision,Adult Services,PD Purchaser Residential Care,"2,869.32"
1552722,5599614,BELONG ATHERTON#EPH,18/10/2018,54301,Residential Provision,Adult Services,OA  External Provision Residential,"1,980.00"
1552722,5599615,BELONG ATHERTON#EPH,25/10/2018,54302,Nursing Provision,Adult Services,MH Residential External Provision,"2,012.00"
2387309,5599636,BERKELEY HOUSE,11/10/2018,54302,Nursing Provision,Adult Services,LD Purchaser Residential Care,"14,539.80"
2906298,5599450,Blackrod House#1,23/10/2018,54301,Residential Provision,Adult Services,OA  External Provision Residential,"39,775.80"
2906298,5599450,Blackrod House#1,11/10/2018,54301,Residential Provision,Adult Services,PD Purchaser Residential Care,"1,960.00"
2906298,5599451,Blackrod House#1,18/10/2018,54301,Residential Provision,Adult Services,PD Purchaser Residential Care,"2,380.00"
2906298,5599450,Blackrod House#1,11/10/2018,54301,Residential Provision,Adult Services,MH Residential External Provision,"6,320.00"
3558671,5659491,Bolton at Home Ltd#RENTS,08/10/2018,44051,Clients Aids & Adaptations,Adult Services,Telecare,501.73
3558671,5664472,Bolton at Home Ltd#RENTS,08/10/2018,44051,Clients Aids & Adaptations,Adult Services,Telecare,"4,368.00"
3479681,5625395,Bolton Cares,08/10/2018,48509,Other Fees,Adult Services,OA  Management Team,750.00
3479681,5662649,Bolton Cares,08/10/2018,52215,Contracted Services - Bolton Care and Support Ltd,Adult Services,LD Provider  Outreach,"14,373.05"
3479681,5664502,Bolton Cares,08/10/2018,52215,Contracted Services - Bolton Care and Support Ltd,Adult Services,LD Purchaser Supported Housing,"1,052,737.97"
1548543,5599613,BRIDEOAKE CARE HOME,11/10/2018,54301,Residential Provision,Adult Services,OA  External Provision Residential,"1,980.00"
4248954,5613498,Bridgewater Home Care,11/10/2018,52200,Contracted Services,Adult Services,OA  Home Care Services external provision,680.00
4248954,5662445,Bridgewater Home Care,11/10/2018,52200,Contracted Services,Adult Services,OA  Home Care Services external provision,"2,058.38"
4248954,5662448,Bridgewater Home Care,18/10/2018,52200,Contracted Services,Adult Services,OA  Home Care Services external provision,"3,180.00"
4248954,5613497,Bridgewater Home Care,11/10/2018,52200,Contracted Services,Adult Services,PD Purcahser Domiciliary Care,"1,972.00"
264233,5599606,BROOKFIELD RESIDENTIAL CARE HOME LTD,11/10/2018,54301,Residential Provision,Adult Services,MH Residential External Provision,"2,200.00"
7524,5599581,BROOKVALE,11/10/2018,54301,Residential Provision,Adult Services,LD Purchaser Residential Care,"13,637.48"
6169,5599578,BROTHERS OF CHARITY SERVICES,11/10/2018,54302,Nursing Provision,Adult Services,LD Purchaser Residential Care,"3,764.44"
7528,5599553,BROUGHTON HOUSE#EPH,18/10/2018,54301,Residential Provision,Adult Services,OA  External Provision Residential,907.04
7528,5599552,BROUGHTON HOUSE#EPH,15/10/2018,54301,Residential Provision,Adult Services,OA  External Provision Residential,"1,814.08"
7529,5599554,BROWFIELD RESIDENTIAL CARE HOME,11/10/2018,54301,Residential Provision,Adult Services,MH Residential External Provision,"3,863.96"
1647552,5648464,BUDDI LTD,25/10/2018,44051,Clients Aids & Adaptations,Adult Services,Telecare,"1,560.00"
2794563,5599446,Burger Court,25/10/2018,54301,Residential Provision,Adult Services,MH Residential External Provision,"3,334.40"
1270916,5599611,BURRSWOOD HOUSE,08/10/2018,54302,Nursing Provision,Adult Services,OA  External Provision Residential,"3,808.72"
1270916,5599610,BURRSWOOD HOUSE,25/10/2018,54301,Residential Provision,Adult Services,OA  External Provision Residential,"3,928.72"
7612,5599573,CAMERON HOUSE CARE HOME,18/10/2018,54301,Residential Provision,Adult Services,OA  External Provision Residential,"3,808.72"
7612,5599573,CAMERON HOUSE CARE HOME,23/10/2018,54301,Residential Provision,Adult Services,PD Purchaser Residential Care,"3,808.72"
266244,5616710,CARE CORNER LIMITED,18/10/2018,44052,Clients Medical Requisites,Adult Services,Laburnum Lodge,528.00
252578,5599604,CARR BANK HOUSE,25/10/2018,54301,Residential Provision,Adult Services,MH Residential External Provision,"1,819.40"
3076771,5599463,Cheshire House,29/10/2018,54302,Nursing Provision,Adult Services,LD Purchaser Residential Care,"12,142.72"
4826047,5599510,Chorley Lodge Residential Care Home,29/10/2018,54301,Residential Provision,Adult Services,OA  External Provision Residential,"2,181.84"
3574685,5599481,Church View,25/10/2018,54301,Residential Provision,Adult Services,MH Residential External Provision,"5,421.28"
2566295,5599440,Claremont Lodge,18/10/2018,54301,Residential Provision,Adult Services,OA  External Provision Residential,"1,814.08"
3545680,5626432,CM2000 Care Management#HAS Technology Limited,18/10/2018,45409,Information and Communication Technology,Adult Services,Reablement,"3,118.50"
1862301,5599618,CONISTON HOUSE CARE HOME,04/10/2018,54301,Residential Provision,Adult Services,OA  External Provision Residential,"2,032.56"
1568136,5621562,Consolor Limited,11/10/2018,44051,Clients Aids & Adaptations,Adult Services,ICES,"3,865.12"
6227,5599579,CORNERSTONE TRUST,25/10/2018,54301,Residential Provision,Adult Services,LD Purchaser Residential Care,"20,412.80"
3460650,5599478,Cotleigh Residential Home,18/10/2018,54301,Residential Provision,Adult Services,OA  External Provision Residential,"1,752.00"
6233,5662449,CREATIVE SUPPORT LTD#3,25/10/2018,52200,Contracted Services,Adult Services,LD Provider  Supported Housing,"21,661.11"
6233,5616777,CREATIVE SUPPORT LTD#3,25/10/2018,52200,Contracted Services,Adult Services,LD Provider  Supported Housing,"21,681.72"
6233,5662451,CREATIVE SUPPORT LTD#3,04/10/2018,52200,Contracted Services,Adult Services,LD Provider  Supported Housing,"22,176.36"
6233,5616781,CREATIVE SUPPORT LTD#3,11/10/2018,52200,Contracted Services,Adult Services,LD Provider  Supported Housing,"22,176.36"
6233,5662450,CREATIVE SUPPORT LTD#3,11/10/2018,52200,Contracted Services,Adult Services,LD Provider  Supported Housing,"25,391.52"
6233,5616779,CREATIVE SUPPORT LTD#3,11/10/2018,52200,Contracted Services,Adult Services,LD Provider  Supported Housing,"25,398.39"
6233,5616776,CREATIVE SUPPORT LTD#3,02/10/2018,52200,Contracted Services,Adult Services,LD Purchaser Supported Housing,"2,265.76"
6233,5616778,CREATIVE SUPPORT LTD#3,02/10/2018,52200,Contracted Services,Adult Services,LD Purchaser Supported Housing,"2,265.76"
6233,5616780,CREATIVE SUPPORT LTD#3,02/10/2018,52200,Contracted Services,Adult Services,LD Purchaser Supported Housing,"2,265.76"
6233,5616777,CREATIVE SUPPORT LTD#3,04/10/2018,52200,Contracted Services,Adult Services,LD Purchaser Supported Housing,"3,847.20"
6233,5616781,CREATIVE SUPPORT LTD#3,11/10/2018,52200,Contracted Services,Adult Services,LD Purchaser Supported Housing,"3,847.20"
6233,5662449,CREATIVE SUPPORT LTD#3,25/10/2018,52200,Contracted Services,Adult Services,LD Purchaser Supported Housing,"6,112.96"
6233,5662451,CREATIVE SUPPORT LTD#3,25/10/2018,52200,Contracted Services,Adult Services,LD Purchaser Supported Housing,"6,112.96"
6233,5616779,CREATIVE SUPPORT LTD#3,08/10/2018,52200,Contracted Services,Adult Services,LD Purchaser Supported Housing,"7,694.40"
6233,5662450,CREATIVE SUPPORT LTD#3,23/10/2018,52200,Contracted Services,Adult Services,LD Purchaser Supported Housing,"9,960.16"
6233,5663446,CREATIVE SUPPORT LTD#3,18/10/2018,52200,Contracted Services,Adult Services,Supporting People  Capital Financing,"9,956.00"
2511617,5625997,CRG Limited#Homecare,18/10/2018,52200,Contracted Services,Adult Services,OA  Home Care Services external provision,"20,850.17"
2511617,5625997,CRG Limited#Homecare,25/10/2018,52200,Contracted Services,Adult Services,PD Purcahser Domiciliary Care,"14,660.90"
2511617,5625997,CRG Limited#Homecare,25/10/2018,52200,Contracted Services,Adult Services,MH Homecare,"3,205.47"
3456728,5599477,Crystal Hall Care Home,02/10/2018,54302,Nursing Provision,Adult Services,MH Residential External Provision,"3,300.00"
3283659,5616763,REDACTED - Personal Data,23/10/2018,48509,Other Fees,Adult Services,LD Purchaser Supported Housing,"2,360.00"
4823038,5599505,Denstone Crescent,11/10/2018,54301,Residential Provision,Adult Services,LD Purchaser Residential Care,"9,980.00"
3860973,5613491,Diamond Care Services Ltd,18/10/2018,52200,Contracted Services,Adult Services,OA  Home Care Services external provision,952.13
3860973,5613493,Diamond Care Services Ltd,04/10/2018,52200,Contracted Services,Adult Services,OA  Home Care Services external provision,"1,294.17"
3860973,5625990,Diamond Care Services Ltd,11/10/2018,52200,Contracted Services,Adult Services,OA  Home Care Services external provision,"1,615.57"
3860973,5613492,Diamond Care Services Ltd,11/10/2018,52200,Contracted Services,Adult Services,OA  Home Care Services external provision,"2,108.43"
3860973,5625991,Diamond Care Services Ltd,04/10/2018,52200,Contracted Services,Adult Services,OA  Home Care Services external provision,"2,291.90"
3540653,5630814,Diamond Home Support Bolton,25/10/2018,52300,Client Support Costs,Adult Services,MH Residential External Provision,980.00
3425630,5662492,Dignity in Life Ltd#DIL Foundation,04/10/2018,52200,Contracted Services,Adult Services,OA  Home Care Services external provision,530.60
3425630,5625978,Dignity in Life Ltd#DIL Foundation,18/10/2018,52200,Contracted Services,Adult Services,OA  Home Care Services external provision,552.52
3425630,5629262,Dignity in Life Ltd#DIL Foundation,11/10/2018,52200,Contracted Services,Adult Services,OA  Home Care Services external provision,565.77
3425630,5662486,Dignity in Life Ltd#DIL Foundation,04/10/2018,52200,Contracted Services,Adult Services,OA  Home Care Services external provision,583.66
3425630,5662487,Dignity in Life Ltd#DIL Foundation,25/10/2018,52200,Contracted Services,Adult Services,OA  Home Care Services external provision,588.66
3425630,5625985,Dignity in Life Ltd#DIL Foundation,29/10/2018,52200,Contracted Services,Adult Services,OA  Home Care Services external provision,636.72
3425630,5662490,Dignity in Life Ltd#DIL Foundation,23/10/2018,52200,Contracted Services,Adult Services,OA  Home Care Services external provision,636.72
3425630,5648893,Dignity in Life Ltd#DIL Foundation,11/10/2018,52200,Contracted Services,Adult Services,OA  Home Care Services external provision,636.72
3425630,5629261,Dignity in Life Ltd#DIL Foundation,25/10/2018,52200,Contracted Services,Adult Services,OA  Home Care Services external provision,736.78
3425630,5662484,Dignity in Life Ltd#DIL Foundation,23/10/2018,52200,Contracted Services,Adult Services,OA  Home Care Services external provision,758.00
3425630,5662491,Dignity in Life Ltd#DIL Foundation,15/10/2018,52200,Contracted Services,Adult Services,OA  Home Care Services external provision,883.07
3425630,5672495,Dignity in Life Ltd#DIL Foundation,25/10/2018,52200,Contracted Services,Adult Services,OA  Home Care Services external provision,955.08
3425630,5648891,Dignity in Life Ltd#DIL Foundation,18/10/2018,52200,Contracted Services,Adult Services,OA  Home Care Services external provision,"1,061.20"
3425630,5629260,Dignity in Life Ltd#DIL Foundation,15/10/2018,52200,Contracted Services,Adult Services,OA  Home Care Services external provision,"2,122.40"
3425630,5616765,Dignity in Life Ltd#DIL Foundation,11/10/2018,52200,Contracted Services,Adult Services,PD Purcahser Domiciliary Care,636.72
3425630,5662493,Dignity in Life Ltd#DIL Foundation,18/10/2018,52200,Contracted Services,Adult Services,PD Purcahser Domiciliary Care,636.72
3425630,5625980,Dignity in Life Ltd#DIL Foundation,02/10/2018,52200,Contracted Services,Adult Services,PD Purcahser Domiciliary Care,990.25
3425630,5625977,Dignity in Life Ltd#DIL Foundation,15/10/2018,52200,Contracted Services,Adult Services,PD Purcahser Domiciliary Care,"1,091.52"
3425630,5662488,Dignity in Life Ltd#DIL Foundation,23/10/2018,52200,Contracted Services,Adult Services,PD Purcahser Domiciliary Care,"1,910.16"
3425630,5662496,Dignity in Life Ltd#DIL Foundation,29/10/2018,52200,Contracted Services,Adult Services,PD Purcahser Domiciliary Care,"2,122.40"
3425630,5662497,Dignity in Life Ltd#DIL Foundation,25/10/2018,52200,Contracted Services,Adult Services,PD Purcahser Domiciliary Care,"2,122.40"
3425630,5629258,Dignity in Life Ltd#DIL Foundation,18/10/2018,52200,Contracted Services,Adult Services,PD Purcahser Domiciliary Care,"2,152.72"
3425630,5662489,Dignity in Life Ltd#DIL Foundation,02/10/2018,52200,Contracted Services,Adult Services,PD Purcahser Domiciliary Care,"2,263.69"
3425630,5662485,Dignity in Life Ltd#DIL Foundation,02/10/2018,52200,Contracted Services,Adult Services,PD Purcahser Domiciliary Care,"2,713.64"
3425630,5625979,Dignity in Life Ltd#DIL Foundation,02/10/2018,52200,Contracted Services,Adult Services,PD Purcahser Domiciliary Care,"2,759.12"
4845743,5599513,Dove Court Care Home,02/10/2018,54301,Residential Provision,Adult Services,OA  External Provision Residential,"2,032.56"
4845868,5630968,Drive DeVilbiss Sidhil Limited,02/10/2018,44051,Clients Aids & Adaptations,Adult Services,ICES,520.32
4364957,5599496,Dundoran Nursing Home,04/10/2018,54302,Nursing Provision,Adult Services,OA  External Provision Residential,"2,132.00"
183862,5627441,EASYLINK UK,25/10/2018,44051,Clients Aids & Adaptations,Adult Services,Telecare,759.00
183862,5650443,EASYLINK UK,23/10/2018,44051,Clients Aids & Adaptations,Adult Services,Telecare,"1,445.00"
9564,5599585,ECCLESHOLME,18/10/2018,54301,Residential Provision,Adult Services,OA  External Provision Residential,"3,628.16"
3544670,5599480,Eden Mansions,04/10/2018,54301,Residential Provision,Adult Services,OA  External Provision Residential,"3,800.00"
6635,5599568,ELLERSHAW HOUSE LTD,11/10/2018,54301,Residential Provision,Adult Services,LD Purchaser Residential Care,"9,773.52"
4827043,5616774,FCNA Homecare (First Call Nursing Agency),18/10/2018,52200,Contracted Services,Adult Services,OA  Home Care Services external provision,607.60
4827043,5629283,FCNA Homecare (First Call Nursing Agency),23/10/2018,52200,Contracted Services,Adult Services,OA  Home Care Services external provision,607.60
4827043,5629284,FCNA Homecare (First Call Nursing Agency),29/10/2018,52200,Contracted Services,Adult Services,OA  Home Care Services external provision,629.30
4827043,5616775,FCNA Homecare (First Call Nursing Agency),11/10/2018,52200,Contracted Services,Adult Services,OA  Home Care Services external provision,638.60
4827043,5629288,FCNA Homecare (First Call Nursing Agency),18/10/2018,52200,Contracted Services,Adult Services,OA  Home Care Services external provision,672.70
4827043,5616773,FCNA Homecare (First Call Nursing Agency),11/10/2018,52200,Contracted Services,Adult Services,PD Purcahser Domiciliary Care,502.20
4827043,5629286,FCNA Homecare (First Call Nursing Agency),15/10/2018,52200,Contracted Services,Adult Services,PD Purcahser Domiciliary Care,502.20
4827043,5629289,FCNA Homecare (First Call Nursing Agency),02/10/2018,52200,Contracted Services,Adult Services,PD Purcahser Domiciliary Care,933.10
3023367,5599458,Fernbank Lodge,02/10/2018,54301,Residential Provision,Adult Services,MH Residential External Provision,"3,200.00"
2278295,5599628,FOSSE BANK HOUSE,02/10/2018,54301,Residential Provision,Adult Services,MH Residential External Provision,"4,659.52"
6320,5599519,FOUR SEASONS NURSING HOME,18/10/2018,54302,Nursing Provision,Adult Services,OA  External Provision Residential,"27,880.00"
6320,5599518,FOUR SEASONS NURSING HOME,02/10/2018,54301,Residential Provision,Adult Services,OA  External Provision Residential,"85,287.86"
6320,5599519,FOUR SEASONS NURSING HOME,25/10/2018,54302,Nursing Provision,Adult Services,PD Purchaser Residential Care,"11,045.71"
6320,5599518,FOUR SEASONS NURSING HOME,02/10/2018,54301,Residential Provision,Adult Services,PD Purchaser Residential Care,"15,830.00"
6320,5599518,FOUR SEASONS NURSING HOME,02/10/2018,54301,Residential Provision,Adult Services,MH Residential External Provision,"4,360.00"
2609299,5613514,GC Prints,02/10/2018,42001,Uniforms,Adult Services,Management Team,715.00
1779291,5599617,GHS BROOKDALE,02/10/2018,54301,Residential Provision,Adult Services,OA  External Provision Residential,"2,424.36"
3583,5599583,Gillibrand Hall Nursing Home,02/10/2018,54301,Residential Provision,Adult Services,LD Purchaser Residential Care,"2,032.56"
6338,5599521,GLENBANK CARE HOME LTD,02/10/2018,54301,Residential Provision,Adult Services,OA  External Provision Residential,"10,330.00"
6338,5599521,GLENBANK CARE HOME LTD,02/10/2018,54301,Residential Provision,Adult Services,PD Purchaser Residential Care,"4,160.00"
6338,5599521,GLENBANK CARE HOME LTD,02/10/2018,54301,Residential Provision,Adult Services,MH Residential External Provision,"7,840.00"
2906299,5599452,Glenhomes Care Home,02/10/2018,54301,Residential Provision,Adult Services,OA  External Provision Residential,"7,840.00"
2906299,5599452,Glenhomes Care Home,02/10/2018,54301,Residential Provision,Adult Services,PD Purchaser Residential Care,"5,880.00"
2906299,5599452,Glenhomes Care Home,15/10/2018,54301,Residential Provision,Adult Services,MH Residential External Provision,"1,960.00"
6342,5599522,GORSEY CLOUGH NURSING HOME LTD,18/10/2018,54302,Nursing Provision,Adult Services,OA  External Provision Residential,"7,617.44"
6342,5599522,GORSEY CLOUGH NURSING HOME LTD,18/10/2018,54302,Nursing Provision,Adult Services,PD Purchaser Residential Care,"1,904.36"
6342,5599523,GORSEY CLOUGH NURSING HOME LTD,08/10/2018,54301,Residential Provision,Adult Services,PD Purchaser Residential Care,"1,904.36"
6342,5599522,GORSEY CLOUGH NURSING HOME LTD,11/10/2018,54302,Nursing Provision,Adult Services,MH Residential External Provision,"3,808.72"
6344,5599525,GRANGE LEA RESIDENTIAL CARE HOME LTD,23/10/2018,54301,Residential Provision,Adult Services,OA  External Provision Residential,"1,607.14"
6344,5599524,GRANGE LEA RESIDENTIAL CARE HOME LTD,18/10/2018,54301,Residential Provision,Adult Services,OA  External Provision Residential,"26,330.00"
6344,5599524,GRANGE LEA RESIDENTIAL CARE HOME LTD,23/10/2018,54301,Residential Provision,Adult Services,PD Purchaser Residential Care,"4,801.43"
6344,5599524,GRANGE LEA RESIDENTIAL CARE HOME LTD,23/10/2018,54301,Residential Provision,Adult Services,MH Residential External Provision,"1,960.00"
178961,5644464,GREAT PLACES HOUSING ASSOCIATION,23/10/2018,52200,Contracted Services,Adult Services,Supporting People  Capital Financing,"40,044.25"
2194290,5599624,GREENLANDS RESIDENTIAL HOME LTD,23/10/2018,54301,Residential Provision,Adult Services,OA  External Provision Residential,"1,050.00"
2194290,5599623,GREENLANDS RESIDENTIAL HOME LTD,04/10/2018,54301,Residential Provision,Adult Services,OA  External Provision Residential,"25,480.00"
2194290,5599623,GREENLANDS RESIDENTIAL HOME LTD,08/10/2018,54301,Residential Provision,Adult Services,PD Purchaser Residential Care,"9,800.00"
2194290,5599623,GREENLANDS RESIDENTIAL HOME LTD,02/10/2018,54301,Residential Provision,Adult Services,MH Residential External Provision,"1,960.00"
94713,5630773,GROSVENOR GUEST HOUSE#2,02/10/2018,52300,Client Support Costs,Adult Services,MH Residential External Provision,560.00
4845755,5613502,Guardian Homecare,02/10/2018,52200,Contracted Services,Adult Services,OA  Home Care Services external provision,"1,496.00"
38584,5599592,HALF ACRE CARE HOME,02/10/2018,54301,Residential Provision,Adult Services,PD Purchaser Residential Care,"1,904.36"
6357,5649258,HALLIWELL BEFRIENDING SERVICE,18/10/2018,52001,Vol Sect Grants  Misc,Adult Services,Prevention Services,"4,750.00"
2370296,5669447,HANDICARE ACCESSIBILITY LTD,08/10/2018,44051,Clients Aids & Adaptations,Adult Services,ICES,"1,642.44"
178960,5599602,Hartington House,23/10/2018,54301,Residential Provision,Adult Services,MH Residential External Provision,"13,226.20"
3507651,5626005,Harvest Healthcare Ltd,23/10/2018,44051,Clients Aids & Adaptations,Adult Services,ICES,884.20
3149580,5599468,Haslingden Hall and Lodge,25/10/2018,54301,Residential Provision,Adult Services,PD Purchaser Residential Care,"1,796.84"
3095477,5599465,Hatfield Residential And Nursing Home,29/10/2018,54301,Residential Provision,Adult Services,OA  External Provision Residential,"2,321.88"
6367,5599563,HAZELBROOK CHRISTIAN NURSING HOME,18/10/2018,54302,Nursing Provision,Adult Services,OA  External Provision Residential,"4,180.00"
6367,5599564,HAZELBROOK CHRISTIAN NURSING HOME,08/10/2018,54301,Residential Provision,Adult Services,OA  External Provision Residential,"3,920.00"
6367,5599562,HAZELBROOK CHRISTIAN NURSING HOME,08/10/2018,54301,Residential Provision,Adult Services,OA  External Provision Residential,"6,140.00"
6367,5599563,HAZELBROOK CHRISTIAN NURSING HOME,11/10/2018,54302,Nursing Provision,Adult Services,PD Purchaser Residential Care,"1,960.00"
6367,5599562,HAZELBROOK CHRISTIAN NURSING HOME,25/10/2018,54301,Residential Provision,Adult Services,PD Purchaser Residential Care,"10,540.00"
6367,5599562,HAZELBROOK CHRISTIAN NURSING HOME,25/10/2018,54301,Residential Provision,Adult Services,MH Residential External Provision,"4,410.00"
2957307,5599456,Hazelwell Lodge,29/10/2018,54301,Residential Provision,Adult Services,MH Residential External Provision,"1,968.64"
4365976,5664507,HC-One,25/10/2018,50002,Other Agency/Contracted Services,Adult Services,Management Team,"18,113.10"
3741693,5599483,Heaton Vale,23/10/2018,54301,Residential Provision,Adult Services,LD Purchaser Residential Care,"16,696.00"
6369,5599526,HENSHAWS SOCIETY FOR THE BLIND,25/10/2018,54301,Residential Provision,Adult Services,OA  External Provision Residential,"3,158.96"
4844745,5599512,High Peak Residential and Nursing Home,23/10/2018,54302,Nursing Provision,Adult Services,OA  External Provision Residential,"4,239.57"
258947,5599605,HIGHCLIFFE RESIDENTIAL HOME#TEAMCARE LTD,25/10/2018,54301,Residential Provision,Adult Services,PD Purchaser Residential Care,"2,032.56"
3152601,5599469,Highfield Hall,04/10/2018,54301,Residential Provision,Adult Services,PD Purchaser Residential Care,"2,265.84"
3193606,5599470,Hillcrest - Vernon,25/10/2018,54301,Residential Provision,Adult Services,LD Purchaser Residential Care,"4,870.72"
6454,5599531,HOLLANDS NURSING HOME,23/10/2018,54302,Nursing Provision,Adult Services,OA  External Provision Residential,"4,360.00"
6454,5599534,HOLLANDS NURSING HOME,23/10/2018,54301,Residential Provision,Adult Services,OA  External Provision Residential,"2,180.00"
6454,5599532,HOLLANDS NURSING HOME,31/10/2018,54301,Residential Provision,Adult Services,OA  External Provision Residential,"8,720.00"
6454,5599531,HOLLANDS NURSING HOME,04/10/2018,54302,Nursing Provision,Adult Services,PD Purchaser Residential Care,"8,720.00"
6454,5599532,HOLLANDS NURSING HOME,04/10/2018,54301,Residential Provision,Adult Services,PD Purchaser Residential Care,"2,180.00"
6454,5599534,HOLLANDS NURSING HOME,11/10/2018,54301,Residential Provision,Adult Services,PD Purchaser Residential Care,"2,180.00"
6454,5599533,HOLLANDS NURSING HOME,29/10/2018,54302,Nursing Provision,Adult Services,LD Purchaser Residential Care,"2,180.00"
6454,5599532,HOLLANDS NURSING HOME,23/10/2018,54301,Residential Provision,Adult Services,LD Purchaser Residential Care,"5,605.71"
6454,5599531,HOLLANDS NURSING HOME,18/10/2018,54302,Nursing Provision,Adult Services,MH Residential External Provision,"6,540.00"
6454,5599532,HOLLANDS NURSING HOME,18/10/2018,54301,Residential Provision,Adult Services,MH Residential External Provision,"13,469.29"
4266977,5599493,Hollybank Care Home,18/10/2018,54301,Residential Provision,Adult Services,MH Residential External Provision,"1,904.36"
128732,5613504,HOMECARE FOR YOU LTD#BLACKBURN,18/10/2018,52200,Contracted Services,Adult Services,OA  External Provision Residential,"4,329.69"
128732,5662534,HOMECARE FOR YOU LTD#BLACKBURN,25/10/2018,52200,Contracted Services,Adult Services,OA  External Provision Residential,"4,518.89"
128732,5648908,HOMECARE FOR YOU LTD#BLACKBURN,25/10/2018,52200,Contracted Services,Adult Services,OA  Home Care Services external provision,"2,511.24"
128732,5662453,HOMECARE FOR YOU LTD#BLACKBURN,18/10/2018,52200,Contracted Services,Adult Services,OA  Home Care Services external provision,"2,805.50"
128732,5613504,HOMECARE FOR YOU LTD#BLACKBURN,18/10/2018,52200,Contracted Services,Adult Services,OA  Home Care Services external provision,"32,524.74"
128732,5662534,HOMECARE FOR YOU LTD#BLACKBURN,08/10/2018,52200,Contracted Services,Adult Services,OA  Home Care Services external provision,"44,656.83"
128732,5662534,HOMECARE FOR YOU LTD#BLACKBURN,11/10/2018,52200,Contracted Services,Adult Services,PD Purcahser Domiciliary Care,"30,168.07"
128732,5613504,HOMECARE FOR YOU LTD#BLACKBURN,15/10/2018,52200,Contracted Services,Adult Services,PD Purcahser Domiciliary Care,"33,184.82"
128732,5662534,HOMECARE FOR YOU LTD#BLACKBURN,02/10/2018,52200,Contracted Services,Adult Services,LD Purchaser Domiciliary Care,501.46
128732,5613503,HOMECARE FOR YOU LTD#BLACKBURN,04/10/2018,52200,Contracted Services,Adult Services,MH Homecare,758.00
128732,5613504,HOMECARE FOR YOU LTD#BLACKBURN,25/10/2018,52200,Contracted Services,Adult Services,MH Homecare,"4,262.06"
128732,5662534,HOMECARE FOR YOU LTD#BLACKBURN,25/10/2018,52200,Contracted Services,Adult Services,MH Homecare,"5,232.61"
1617292,5629295,HOMECARE SUPPORT,04/10/2018,52200,Contracted Services,Adult Services,OA  Home Care Services external provision,900.00
1617292,5662454,HOMECARE SUPPORT,02/10/2018,52200,Contracted Services,Adult Services,OA  Home Care Services external provision,"3,890.64"
6138,5599517,HYDE  LEA,02/10/2018,54301,Residential Provision,Adult Services,OA  External Provision Residential,"16,100.00"
6138,5599517,HYDE  LEA,02/10/2018,54301,Residential Provision,Adult Services,MH Residential External Provision,"7,575.00"
3271615,5616750,ICRIT Healthcare,02/10/2018,52200,Contracted Services,Adult Services,OA  Home Care Services external provision,525.00
3271615,5662480,ICRIT Healthcare,02/10/2018,52200,Contracted Services,Adult Services,OA  Home Care Services external provision,525.00
3271615,5672493,ICRIT Healthcare,02/10/2018,52200,Contracted Services,Adult Services,OA  Home Care Services external provision,525.00
3271615,5616758,ICRIT Healthcare,25/10/2018,52200,Contracted Services,Adult Services,OA  Home Care Services external provision,577.50
3271615,5616752,ICRIT Healthcare,23/10/2018,52200,Contracted Services,Adult Services,OA  Home Care Services external provision,682.50
3271615,5662475,ICRIT Healthcare,02/10/2018,52200,Contracted Services,Adult Services,OA  Home Care Services external provision,682.50
3271615,5672488,ICRIT Healthcare,02/10/2018,52200,Contracted Services,Adult Services,OA  Home Care Services external provision,682.50
3271615,5616759,ICRIT Healthcare,02/10/2018,52200,Contracted Services,Adult Services,PD Purcahser Domiciliary Care,753.15
3271615,5662469,ICRIT Healthcare,25/10/2018,52200,Contracted Services,Adult Services,PD Purcahser Domiciliary Care,753.15
3271615,5672480,ICRIT Healthcare,04/10/2018,52200,Contracted Services,Adult Services,PD Purcahser Domiciliary Care,753.15
2822310,5664504,Inspire Community Services Ltd,23/10/2018,52200,Contracted Services,Adult Services,OA  External Provision Residential,724.50
2822310,5625972,Inspire Community Services Ltd,23/10/2018,52200,Contracted Services,Adult Services,OA  External Provision Residential,724.50
2822310,5625973,Inspire Community Services Ltd,23/10/2018,52200,Contracted Services,Adult Services,OA  External Provision Residential,724.50
2822310,5625974,Inspire Community Services Ltd,23/10/2018,52200,Contracted Services,Adult Services,OA  External Provision Residential,724.50
3081480,5603451,Jah Jireh Nursing Home,23/10/2018,54301,Residential Provision,Adult Services,PD Purchaser Residential Care,"1,980.00"
3121532,5625976,Jewel Home Support Ltd,23/10/2018,52200,Contracted Services,Adult Services,OA  Home Care Services external provision,"1,972.08"
3121532,5616745,Jewel Home Support Ltd,23/10/2018,52200,Contracted Services,Adult Services,OA  Home Care Services external provision,"3,303.14"
101173,5616782,KEYMEN ASSOCIATES LTD#MAYDAY,23/10/2018,52200,Contracted Services,Adult Services,OA  Home Care Services external provision,"4,847.64"
1989355,5599619,KINGARTH,23/10/2018,54301,Residential Provision,Adult Services,LD Purchaser Residential Care,"12,190.88"
4397,5625834,KITCHEQUIP.CO.UK#FACTOR KITCHEQUIP,23/10/2018,40100,Operational Equipment Purchase,Adult Services,OA - Catering Services,"5,468.65"
6434,5599566,KNIGHTSWOOD RESIDENTIAL HOME,23/10/2018,54301,Residential Provision,Adult Services,OA  External Provision Residential,"2,990.00"
6434,5599566,KNIGHTSWOOD RESIDENTIAL HOME,23/10/2018,54301,Residential Provision,Adult Services,PD Purchaser Residential Care,"1,960.00"
6434,5599566,KNIGHTSWOOD RESIDENTIAL HOME,23/10/2018,54301,Residential Provision,Adult Services,MH Residential External Provision,"1,960.00"
162508,5674455,L H TECHNICAL SOLUTIONS,23/10/2018,44051,Clients Aids & Adaptations,Adult Services,ICES,"1,095.00"
162508,5674449,L H TECHNICAL SOLUTIONS,29/10/2018,44051,Clients Aids & Adaptations,Adult Services,ICES,"1,380.00"
3811724,5613489,L&Q Living Ltd,11/10/2018,52200,Contracted Services,Adult Services,OA Extra Care Housing External Provision,617.28
3811724,5625989,L&Q Living Ltd,18/10/2018,52200,Contracted Services,Adult Services,OA Extra Care Housing External Provision,617.28
3811724,5629276,L&Q Living Ltd,15/10/2018,52200,Contracted Services,Adult Services,OA Extra Care Housing External Provision,617.28
3229615,5599471,Larkhall Springs,11/10/2018,54302,Nursing Provision,Adult Services,PD Purchaser Residential Care,"1,808.00"
4824145,5599508,Lauren Court Residential Care Home,11/10/2018,54301,Residential Provision,Adult Services,OA  External Provision Residential,"3,496.64"
1015735,5599608,LEVER EDGE CARE HOME,23/10/2018,54301,Residential Provision,Adult Services,OA  External Provision Residential,"87,355.72"
1015735,5599608,LEVER EDGE CARE HOME,15/10/2018,54301,Residential Provision,Adult Services,PD Purchaser Residential Care,"14,600.00"
1015735,5599608,LEVER EDGE CARE HOME,11/10/2018,54301,Residential Provision,Adult Services,MH Residential External Provision,"18,960.00"
3469653,5662498,Lifeways Community Care#Albion Mews,11/10/2018,52200,Contracted Services,Adult Services,LD Provider  Supported Housing,"3,986.43"
3469653,5662498,Lifeways Community Care#Albion Mews,02/10/2018,52200,Contracted Services,Adult Services,LD Purchaser Supported Housing,"10,314.33"
3773689,5616769,Linden Walk,02/10/2018,52200,Contracted Services,Adult Services,LD Provider  Supported Housing,631.68
3773689,5648895,Linden Walk,08/10/2018,52200,Contracted Services,Adult Services,LD Provider  Supported Housing,"5,388.68"
3773689,5616768,Linden Walk,08/10/2018,52200,Contracted Services,Adult Services,LD Provider  Supported Housing,"5,964.00"
63440,5660600,Interpreting & Translating Services,15/10/2018,48509,Other Fees,Adult Services,Community Learning Disability Team,"2,700.00"
3333633,5599474,Lotus Care (Ellerslie Court) Limited T/A Ellerslie Court,15/10/2018,54301,Residential Provision,Adult Services,PD Purchaser Residential Care,"2,722.32"
6449,5599530,LYNGATE RESIDENTIAL HOME,15/10/2018,54301,Residential Provision,Adult Services,OA  External Provision Residential,"1,960.00"
6449,5599529,LYNGATE RESIDENTIAL HOME,15/10/2018,54301,Residential Provision,Adult Services,OA  External Provision Residential,"28,140.00"
6449,5599529,LYNGATE RESIDENTIAL HOME,18/10/2018,54301,Residential Provision,Adult Services,PD Purchaser Residential Care,"1,960.00"
6449,5599530,LYNGATE RESIDENTIAL HOME,18/10/2018,54301,Residential Provision,Adult Services,PD Purchaser Residential Care,"1,960.00"
6449,5599529,LYNGATE RESIDENTIAL HOME,18/10/2018,54301,Residential Provision,Adult Services,MH Residential External Provision,"3,920.00"
4824051,5599507,Mandalay Care Home,18/10/2018,54301,Residential Provision,Adult Services,OA  External Provision Residential,"1,920.00"
17968,5667592,MANGAR INTERNATIONAL,18/10/2018,44051,Clients Aids & Adaptations,Adult Services,ICES,"2,175.00"
6470,5599567,MARLEY COURT  NURSING & RESIDENTAIL HOME,23/10/2018,54301,Residential Provision,Adult Services,OA  External Provision Residential,"1,796.84"
4808,5599555,MARY & JOSEPH HOUSE,02/10/2018,54301,Residential Provision,Adult Services,OA  External Provision Residential,"2,504.76"
4808,5599555,MARY & JOSEPH HOUSE,11/10/2018,54301,Residential Provision,Adult Services,MH Residential External Provision,"2,504.76"
4349954,5616770,Mary Seacole House,11/10/2018,52200,Contracted Services,Adult Services,LD Provider  Supported Housing,"5,006.50"
4349954,5616770,Mary Seacole House,18/10/2018,52200,Contracted Services,Adult Services,MH Residential Network,"4,181.76"
2497291,5599640,MAX POTENTIAL UK LTD,23/10/2018,54301,Residential Provision,Adult Services,LD Provider  ShortTerm Breaks,"2,500.00"
2497291,5599640,MAX POTENTIAL UK LTD,11/10/2018,54301,Residential Provision,Adult Services,LD Purchaser Residential Care,"3,250.00"
2497291,5599639,MAX POTENTIAL UK LTD,25/10/2018,54301,Residential Provision,Adult Services,LD Purchaser Residential Care,"3,500.00"
2497291,5599641,MAX POTENTIAL UK LTD,02/10/2018,54301,Residential Provision,Adult Services,LD Purchaser Residential Care,"7,000.00"
2497291,5599641,MAX POTENTIAL UK LTD,18/10/2018,54301,Residential Provision,Adult Services,MH Residential External Provision,"10,500.00"
3942953,5599489,McAuley Mount Care Home,15/10/2018,54301,Residential Provision,Adult Services,OA  External Provision Residential,"1,796.84"
38107,5599591,MEADOW BANK NURSING HOME,02/10/2018,54302,Nursing Provision,Adult Services,OA  External Provision Residential,"7,124.36"
4856,5599576,MEADOWBANK HOUSE,02/10/2018,54302,Nursing Provision,Adult Services,OA  External Provision Residential,"17,850.00"
4856,5599577,MEADOWBANK HOUSE,11/10/2018,54301,Residential Provision,Adult Services,OA  External Provision Residential,"19,600.00"
4856,5599576,MEADOWBANK HOUSE,02/10/2018,54302,Nursing Provision,Adult Services,PD Purchaser Residential Care,"7,840.00"
4856,5599577,MEADOWBANK HOUSE,08/10/2018,54301,Residential Provision,Adult Services,PD Purchaser Residential Care,"7,840.00"
4856,5599576,MEADOWBANK HOUSE,11/10/2018,54302,Nursing Provision,Adult Services,MH Residential External Provision,"1,960.00"
4856,5599577,MEADOWBANK HOUSE,18/10/2018,54301,Residential Provision,Adult Services,MH Residential External Provision,"3,920.00"
4578990,5657439,Meadowbank House Care Home,04/10/2018,50002,Other Agency/Contracted Services,Adult Services,Management Team,"7,035.67"
2109299,5599620,Mencap,11/10/2018,54301,Residential Provision,Adult Services,LD Purchaser Residential Care,"22,901.26"
3274635,5599472,Mewsbrook House,11/10/2018,54302,Nursing Provision,Adult Services,MH Residential External Provision,"2,167.80"
3597706,5662440,Midshires Care Limited#t/a Helping Hands Home Care,11/10/2018,52200,Contracted Services,Adult Services,OA  Home Care Services external provision,"1,596.90"
3962953,5599491,Millbrook Way - Heathwaite,11/10/2018,54301,Residential Provision,Adult Services,LD Purchaser Residential Care,"13,826.64"
10133,5599586,MILLVIEW NURSING HOME,15/10/2018,54302,Nursing Provision,Adult Services,OA  External Provision Residential,"65,843.57"
10133,5599588,MILLVIEW NURSING HOME,15/10/2018,54301,Residential Provision,Adult Services,OA  External Provision Residential,"1,820.00"
10133,5599587,MILLVIEW NURSING HOME,15/10/2018,54301,Residential Provision,Adult Services,OA  External Provision Residential,"95,296.42"
10133,5599586,MILLVIEW NURSING HOME,15/10/2018,54302,Nursing Provision,Adult Services,PD Purchaser Residential Care,"12,095.00"
10133,5599587,MILLVIEW NURSING HOME,18/10/2018,54301,Residential Provision,Adult Services,PD Purchaser Residential Care,"21,285.00"
10133,5599586,MILLVIEW NURSING HOME,23/10/2018,54302,Nursing Provision,Adult Services,MH Residential External Provision,"24,291.43"
10133,5599587,MILLVIEW NURSING HOME,04/10/2018,54301,Residential Provision,Adult Services,MH Residential External Provision,"19,596.43"
2938324,5599455,Morden Grange,23/10/2018,54302,Nursing Provision,Adult Services,MH Residential External Provision,"5,180.00"
2938324,5599454,Morden Grange,04/10/2018,54301,Residential Provision,Adult Services,MH Residential External Provision,"10,800.00"
2626324,5599443,Morgan Care Ltd,04/10/2018,54301,Residential Provision,Adult Services,OA  External Provision Residential,"14,232.00"
2147302,5599622,MOSTON GRANGE NURSING HOME,04/10/2018,54302,Nursing Provision,Adult Services,OA  External Provision Residential,"3,700.00"
25103,5648477,NEATER SOLUTIONS LTD,23/10/2018,44051,Clients Aids & Adaptations,Adult Services,ICES,"1,686.00"
3371638,5630965,New Destiny Horwich,04/10/2018,52000,Vol Assoc Grants  General,Adult Services,Prevention Services,"2,295.00"
4299954,5599494,Next Steps The Elms,11/10/2018,54301,Residential Provision,Adult Services,MH Residential External Provision,"3,728.60"
146416,5671489,NORTH WEST TURF & GARDEN SUPPLIES,04/10/2018,Z1051,Work in Progress Additions,Adult Services,Adult Services Balance Sheet,625.00
132953,5599599,OLD GATES NURSING HOME,11/10/2018,54302,Nursing Provision,Adult Services,OA  External Provision Residential,"2,528.80"
2397427,5599637,ORCHARD COURT,02/10/2018,54301,Residential Provision,Adult Services,OA  External Provision Residential,"2,026.36"
4336954,5648902,Orchid Home Care Support,25/10/2018,52200,Contracted Services,Adult Services,OA  Home Care Services external provision,565.96
4336954,5648900,Orchid Home Care Support,08/10/2018,52200,Contracted Services,Adult Services,OA  Home Care Services external provision,636.72
4336954,5662506,Orchid Home Care Support,08/10/2018,52200,Contracted Services,Adult Services,OA  Home Care Services external provision,636.72
4336954,5662503,Orchid Home Care Support,08/10/2018,52200,Contracted Services,Adult Services,OA  Home Care Services external provision,"1,015.72"
4336954,5648901,Orchid Home Care Support,08/10/2018,52200,Contracted Services,Adult Services,OA  Home Care Services external provision,"1,061.20"
4336954,5662502,Orchid Home Care Support,08/10/2018,52200,Contracted Services,Adult Services,OA  Home Care Services external provision,"1,910.16"
4336954,5662504,Orchid Home Care Support,23/10/2018,52200,Contracted Services,Adult Services,OA  Home Care Services external provision,"2,152.72"
4336954,5662501,Orchid Home Care Support,25/10/2018,52200,Contracted Services,Adult Services,OA  Home Care Services external provision,"3,638.40"
4336954,5662505,Orchid Home Care Support,04/10/2018,52200,Contracted Services,Adult Services,PD Purcahser Domiciliary Care,"1,061.20"
4336954,5648899,Orchid Home Care Support,29/10/2018,52200,Contracted Services,Adult Services,PD Purcahser Domiciliary Care,"1,910.16"
7907,5599536,PARKVIEW NURSING & RESIDENTIAL HOME,02/10/2018,54301,Residential Provision,Adult Services,OA  External Provision Residential,"1,960.00"
7907,5599535,PARKVIEW NURSING & RESIDENTIAL HOME,08/10/2018,54301,Residential Provision,Adult Services,OA  External Provision Residential,"40,616.80"
7907,5599535,PARKVIEW NURSING & RESIDENTIAL HOME,02/10/2018,54301,Residential Provision,Adult Services,PD Purchaser Residential Care,"9,800.00"
7907,5599535,PARKVIEW NURSING & RESIDENTIAL HOME,23/10/2018,54301,Residential Provision,Adult Services,MH Residential External Provision,"11,760.00"
35473,5629290,PREMIER CARE LTD#BOLTON CARE SERVICES,11/10/2018,52200,Contracted Services,Adult Services,OA  Home Care Services external provision,"12,022.13"
35473,5629290,PREMIER CARE LTD#BOLTON CARE SERVICES,04/10/2018,52200,Contracted Services,Adult Services,PD Purcahser Domiciliary Care,"11,340.64"
35473,5629290,PREMIER CARE LTD#BOLTON CARE SERVICES,11/10/2018,52200,Contracted Services,Adult Services,LD Purchaser Domiciliary Care,600.24
35473,5629290,PREMIER CARE LTD#BOLTON CARE SERVICES,15/10/2018,52200,Contracted Services,Adult Services,MH Homecare,590.17
4828098,5662510,Primrose Neurological Centre,15/10/2018,54301,Residential Provision,Adult Services,OA  External Provision Residential,"53,142.86"
739608,5655699,PRISM MEDICAL UK,18/10/2018,44051,Clients Aids & Adaptations,Adult Services,ICES,547.94
739608,5627512,PRISM MEDICAL UK,29/10/2018,44051,Clients Aids & Adaptations,Adult Services,ICES,610.44
739608,5627456,PRISM MEDICAL UK,25/10/2018,44051,Clients Aids & Adaptations,Adult Services,ICES,622.13
739608,5605455,PRISM MEDICAL UK,08/10/2018,44051,Clients Aids & Adaptations,Adult Services,ICES,669.82
739608,5667553,PRISM MEDICAL UK,25/10/2018,44051,Clients Aids & Adaptations,Adult Services,ICES,789.96
739608,5623487,PRISM MEDICAL UK,08/10/2018,44051,Clients Aids & Adaptations,Adult Services,ICES,814.94
739608,5667560,PRISM MEDICAL UK,25/10/2018,44051,Clients Aids & Adaptations,Adult Services,ICES,845.36
739608,5605462,PRISM MEDICAL UK,08/10/2018,44051,Clients Aids & Adaptations,Adult Services,ICES,933.14
739608,5644475,PRISM MEDICAL UK,08/10/2018,44051,Clients Aids & Adaptations,Adult Services,ICES,"1,069.28"
739608,5623490,PRISM MEDICAL UK,08/10/2018,44051,Clients Aids & Adaptations,Adult Services,ICES,"1,256.42"
739608,5617216,PRISM MEDICAL UK,08/10/2018,44051,Clients Aids & Adaptations,Adult Services,ICES,"1,339.39"
739608,5655702,PRISM MEDICAL UK,08/10/2018,44051,Clients Aids & Adaptations,Adult Services,ICES,"1,573.16"
739608,5618528,PRISM MEDICAL UK,08/10/2018,44051,Clients Aids & Adaptations,Adult Services,ICES,"2,596.00"
739608,5664528,PRISM MEDICAL UK,25/10/2018,44051,Clients Aids & Adaptations,Adult Services,ICES,"4,267.90"
739608,5659475,PRISM MEDICAL UK,25/10/2018,44051,Clients Aids & Adaptations,Adult Services,ICES,"4,977.60"
168404,5599601,QUEENS PARK VIEW#INTELLIGENT CARE,08/10/2018,54301,Residential Provision,Adult Services,MH Residential External Provision,"8,957.72"
653,5668553,R82 UK LTD,25/10/2018,44051,Clients Aids & Adaptations,Adult Services,ICES,704.00
2845300,5599448,Radcliffe Meadows Nursing Home,25/10/2018,54302,Nursing Provision,Adult Services,LD Purchaser Residential Care,"6,116.80"
2845300,5599447,Radcliffe Meadows Nursing Home,25/10/2018,54301,Residential Provision,Adult Services,LD Purchaser Residential Care,"5,000.00"
6595,5599538,RANDOMLIGHT LTD#HEIGHTSIDE HOUSE,11/10/2018,54302,Nursing Provision,Adult Services,MH Residential External Provision,"9,623.04"
6595,5599537,RANDOMLIGHT LTD#HEIGHTSIDE HOUSE,11/10/2018,54301,Residential Provision,Adult Services,MH Residential External Provision,"2,468.84"
3602683,5662441,Recovery Support Ltd,11/10/2018,52200,Contracted Services,Adult Services,MH Homecare,655.67
3602683,5613473,Recovery Support Ltd,02/10/2018,52200,Contracted Services,Adult Services,MH Homecare,826.22
3602683,5625988,Recovery Support Ltd,08/10/2018,52200,Contracted Services,Adult Services,MH Homecare,833.80
3602683,5672502,Recovery Support Ltd,18/10/2018,52200,Contracted Services,Adult Services,MH Homecare,"1,023.30"
3602683,5613476,Recovery Support Ltd,11/10/2018,52200,Contracted Services,Adult Services,MH Homecare,"4,032.56"
1538113,5668533,REDACTED - Personal Data,11/10/2018,52300,Client Support Costs,Adult Services,MH Residential External Provision,"2,163.20"
3801724,5648896,REDACTED - Personal Data,11/10/2018,52200,Contracted Services,Adult Services,LD Provider  Supported Housing,"31,812.16"
3533646,5613469,REDACTED - Personal Data,08/10/2018,52200,Contracted Services,Adult Services,LD Purchaser Supported Housing,507.08
3533646,5613471,REDACTED - Personal Data,29/10/2018,52200,Contracted Services,Adult Services,LD Purchaser Supported Housing,"1,014.16"
3533646,5613470,REDACTED - Personal Data,11/10/2018,52200,Contracted Services,Adult Services,LD Purchaser Supported Housing,"2,218.76"
3533646,5613472,REDACTED - Personal Data,08/10/2018,52200,Contracted Services,Adult Services,LD Purchaser Supported Housing,"4,437.52"
4850754,5648904,REDACTED - Personal Data,18/10/2018,52200,Contracted Services,Adult Services,MH Residential Network,553.20
4850754,5672504,REDACTED - Personal Data,04/10/2018,52200,Contracted Services,Adult Services,MH Residential Network,553.20
42398,5599596,REDBANK CARE HOME#PAYEE VOYAGE NORTH,18/10/2018,54301,Residential Provision,Adult Services,LD Purchaser Residential Care,"5,028.32"
2678357,5599444,Redbricks Care Home,18/10/2018,54301,Residential Provision,Adult Services,OA  External Provision Residential,"2,277.52"
3490653,5625886,Reed Specialist Recruitment Ltd,18/10/2018,53102,Agency Staff  Other,Adult Services,MH North Fieldwork Team,"1,018.54"
3490653,5616629,Reed Specialist Recruitment Ltd,11/10/2018,53102,Agency Staff  Other,Adult Services,MH North Fieldwork Team,"1,018.54"
3490653,5665558,Reed Specialist Recruitment Ltd,11/10/2018,53102,Agency Staff  Other,Adult Services,MH North Fieldwork Team,"1,018.54"
3490653,5625886,Reed Specialist Recruitment Ltd,15/10/2018,53102,Agency Staff  Other,Adult Services,MH Early Intervention Team,"1,458.75"
3490653,5648474,Reed Specialist Recruitment Ltd,29/10/2018,53102,Agency Staff  Other,Adult Services,MH Early Intervention Team,"1,519.06"
3490653,5665558,Reed Specialist Recruitment Ltd,08/10/2018,53102,Agency Staff  Other,Adult Services,MH Early Intervention Team,"1,640.76"
3490653,5616629,Reed Specialist Recruitment Ltd,11/10/2018,53102,Agency Staff  Other,Adult Services,MH Early Intervention Team,"1,667.23"
3490653,5648474,Reed Specialist Recruitment Ltd,11/10/2018,53102,Agency Staff  Other,Adult Services,ICES,723.27
3490653,5648474,Reed Specialist Recruitment Ltd,11/10/2018,53102,Agency Staff  Other,Adult Services,Districts & Neighbourhoods - HoS,935.95
3490653,5625886,Reed Specialist Recruitment Ltd,11/10/2018,53102,Agency Staff  Other,Adult Services,Districts & Neighbourhoods - HoS,"1,101.12"
3490653,5616629,Reed Specialist Recruitment Ltd,11/10/2018,53102,Agency Staff  Other,Adult Services,Districts & Neighbourhoods - HoS,"1,101.12"
3490653,5665558,Reed Specialist Recruitment Ltd,11/10/2018,53102,Agency Staff  Other,Adult Services,Laburnum Lodge,534.78
3490653,5648474,Reed Specialist Recruitment Ltd,11/10/2018,53102,Agency Staff  Other,Adult Services,Laburnum Lodge,"1,069.56"
3490653,5616629,Reed Specialist Recruitment Ltd,11/10/2018,53102,Agency Staff  Other,Adult Services,Reablement,605.30
7864,5608533,RELPHS FUNERAL SERVICE,11/10/2018,52300,Client Support Costs,Adult Services,OA  External Provision Residential,"1,400.00"
2996362,5599457,Richmond Care,11/10/2018,54302,Nursing Provision,Adult Services,MH Residential External Provision,"3,790.40"
3106489,5599466,Richmond Care Home,11/10/2018,54301,Residential Provision,Adult Services,OA  External Provision Residential,"1,943.48"
3836954,5599485,Ridgeway Lodge,11/10/2018,54301,Residential Provision,Adult Services,MH Residential External Provision,"2,099.00"
4627041,5599500,Riverside,11/10/2018,54302,Nursing Provision,Adult Services,OA  External Provision Residential,"2,059.80"
2596318,5599441,Rivington Park Care Home,11/10/2018,54301,Residential Provision,Adult Services,OA  External Provision Residential,"2,110.56"
6617,5599539,RIVINGTON VIEW NURSING HOME,11/10/2018,54302,Nursing Provision,Adult Services,OA  External Provision Residential,"7,840.00"
6617,5599540,RIVINGTON VIEW NURSING HOME,11/10/2018,54301,Residential Provision,Adult Services,OA  External Provision Residential,"14,152.00"
6617,5599539,RIVINGTON VIEW NURSING HOME,11/10/2018,54302,Nursing Provision,Adult Services,PD Purchaser Residential Care,"1,960.00"
6617,5599540,RIVINGTON VIEW NURSING HOME,11/10/2018,54301,Residential Provision,Adult Services,PD Purchaser Residential Care,"4,064.00"
6617,5599539,RIVINGTON VIEW NURSING HOME,11/10/2018,54302,Nursing Provision,Adult Services,MH Residential External Provision,"1,960.00"
6617,5599540,RIVINGTON VIEW NURSING HOME,11/10/2018,54301,Residential Provision,Adult Services,MH Residential External Provision,"1,960.00"
6623,5599541,ROSE COURT NURSING HOME,11/10/2018,54302,Nursing Provision,Adult Services,OA  External Provision Residential,"14,354.68"
6623,5599541,ROSE COURT NURSING HOME,11/10/2018,54302,Nursing Provision,Adult Services,MH Residential External Provision,"1,428.27"
6623,5599542,ROSE COURT NURSING HOME,11/10/2018,54301,Residential Provision,Adult Services,MH Residential External Provision,"3,808.72"
35,5599560,ROSEBRIDGE COURT,11/10/2018,54302,Nursing Provision,Adult Services,OA  External Provision Residential,"2,012.00"
35,5599560,ROSEBRIDGE COURT,11/10/2018,54302,Nursing Provision,Adult Services,PD Purchaser Residential Care,"3,820.00"
35,5599560,ROSEBRIDGE COURT,11/10/2018,54302,Nursing Provision,Adult Services,MH Residential External Provision,"5,692.00"
2205290,5629301,SAFEHANDS CARE LTD#SAFEHANDS GROUP,11/10/2018,52200,Contracted Services,Adult Services,OA  Home Care Services external provision,"2,566.03"
2205290,5625996,SAFEHANDS CARE LTD#SAFEHANDS GROUP,11/10/2018,52200,Contracted Services,Adult Services,OA  Home Care Services external provision,"46,969.65"
2205290,5625996,SAFEHANDS CARE LTD#SAFEHANDS GROUP,11/10/2018,52200,Contracted Services,Adult Services,PD Purcahser Domiciliary Care,"28,114.85"
2205290,5625996,SAFEHANDS CARE LTD#SAFEHANDS GROUP,11/10/2018,52200,Contracted Services,Adult Services,MH Homecare,"2,103.42"
3823770,5648897,Sakinas Healthcare Limited T/A SureCare Bolton,11/10/2018,52200,Contracted Services,Adult Services,OA  External Provision Residential,"1,015.51"
3823770,5629277,Sakinas Healthcare Limited T/A SureCare Bolton,11/10/2018,52200,Contracted Services,Adult Services,OA  Home Care Services external provision,"2,473.07"
3823770,5648897,Sakinas Healthcare Limited T/A SureCare Bolton,11/10/2018,52200,Contracted Services,Adult Services,OA  Home Care Services external provision,"35,665.46"
3823770,5648897,Sakinas Healthcare Limited T/A SureCare Bolton,11/10/2018,52200,Contracted Services,Adult Services,PD Purcahser Domiciliary Care,"32,950.24"
3823770,5648897,Sakinas Healthcare Limited T/A SureCare Bolton,11/10/2018,52200,Contracted Services,Adult Services,LD Purchaser Domiciliary Care,"1,718.52"
3823770,5648897,Sakinas Healthcare Limited T/A SureCare Bolton,08/10/2018,52200,Contracted Services,Adult Services,MH Homecare,"4,649.90"
2943312,5664464,Salvere Social Enterprise CIC,08/10/2018,52200,Contracted Services,Adult Services,Districts & Neighbourhoods - HoS,"11,095.62"
2943312,5664463,Salvere Social Enterprise CIC,02/10/2018,52200,Contracted Services,Adult Services,Districts & Neighbourhoods - HoS,"11,156.96"
4850755,5648905,Sanctuary Supported Living,23/10/2018,52200,Contracted Services,Adult Services,MH Residential Network,553.20
4850755,5672509,Sanctuary Supported Living,23/10/2018,52200,Contracted Services,Adult Services,MH Residential Network,553.20
4850755,5648906,Sanctuary Supported Living,11/10/2018,52200,Contracted Services,Adult Services,MH Residential Network,553.20
4850755,5672510,Sanctuary Supported Living,11/10/2018,52200,Contracted Services,Adult Services,MH Residential Network,553.20
4344954,5599495,Sandybrook House,04/10/2018,54301,Residential Provision,Adult Services,OA  External Provision Residential,"3,909.60"
527536,5662539,SEA RECRUITMENT SERVICES LTD,04/10/2018,52200,Contracted Services,Adult Services,LD Provider  Supported Housing,"8,120.00"
3315669,5599473,Segal Gardens,11/10/2018,54301,Residential Provision,Adult Services,LD Purchaser Residential Care,"15,488.88"
6656,5625993,SEVA LINE,04/10/2018,52200,Contracted Services,Adult Services,OA  External Provision Residential,"1,357.39"
6656,5662452,SEVA LINE,11/10/2018,52200,Contracted Services,Adult Services,OA  Home Care Services external provision,644.54
6656,5625993,SEVA LINE,18/10/2018,52200,Contracted Services,Adult Services,OA  Home Care Services external provision,"15,477.32"
6656,5625993,SEVA LINE,29/10/2018,52200,Contracted Services,Adult Services,PD Purcahser Domiciliary Care,"3,211.90"
4661010,5599502,Shannon Court Care Home Limited,25/10/2018,54302,Nursing Provision,Adult Services,OA  External Provision Residential,"34,310.00"
4661010,5599504,Shannon Court Care Home Limited,11/10/2018,54301,Residential Provision,Adult Services,OA  External Provision Residential,856.43
4661010,5599503,Shannon Court Care Home Limited,15/10/2018,54301,Residential Provision,Adult Services,OA  External Provision Residential,"50,140.00"
4661010,5599502,Shannon Court Care Home Limited,25/10/2018,54302,Nursing Provision,Adult Services,PD Purchaser Residential Care,"6,100.00"
4661010,5599503,Shannon Court Care Home Limited,25/10/2018,54301,Residential Provision,Adult Services,PD Purchaser Residential Care,"2,180.00"
4661010,5599502,Shannon Court Care Home Limited,11/10/2018,54302,Nursing Provision,Adult Services,MH Residential External Provision,"8,500.00"
4661010,5599504,Shannon Court Care Home Limited,25/10/2018,54301,Residential Provision,Adult Services,MH Residential External Provision,"1,323.57"
142271,5599600,SHAWCROSS CARE HOME#TAMENG CARE LTD,23/10/2018,54301,Residential Provision,Adult Services,OA  External Provision Residential,"1,980.00"
10408,5650465,SHORROCK TRICHEM,15/10/2018,20100,Day To Day Maintenance,Adult Services,Wilfred Geere (2),794.20
203373,5629292,SIGNHEALTH,25/10/2018,52200,Contracted Services,Adult Services,OA  Home Care Services external provision,813.58
203373,5629291,SIGNHEALTH,25/10/2018,52200,Contracted Services,Adult Services,OA  Home Care Services external provision,842.17
203373,5625994,SIGNHEALTH,29/10/2018,52200,Contracted Services,Adult Services,PD Purcahser Domiciliary Care,"1,590.63"
203373,5629293,SIGNHEALTH,23/10/2018,52200,Contracted Services,Adult Services,PD Purcahser Domiciliary Care,"1,601.87"
1097786,5630728,SIMPLYMED LTD,15/10/2018,44051,Clients Aids & Adaptations,Adult Services,ICES,525.00
1097786,5659493,SIMPLYMED LTD,08/10/2018,44051,Clients Aids & Adaptations,Adult Services,ICES,528.00
1097786,5626452,SIMPLYMED LTD,25/10/2018,44051,Clients Aids & Adaptations,Adult Services,ICES,555.00
1097786,5625907,SIMPLYMED LTD,11/10/2018,44051,Clients Aids & Adaptations,Adult Services,ICES,930.00
1097786,5674458,SIMPLYMED LTD,11/10/2018,44051,Clients Aids & Adaptations,Adult Services,ICES,980.00
1857,5627519,SMITCARE LIMITED,25/10/2018,44051,Clients Aids & Adaptations,Adult Services,ICES,652.50
1877,5599582,Somerset House,25/10/2018,54301,Residential Provision,Adult Services,MH Residential External Provision,"8,262.20"
6673,5599570,SOUTHLANDS RESIDENTIAL HOME#SOUTHLANDS,25/10/2018,54301,Residential Provision,Adult Services,OA  External Provision Residential,"1,960.00"
6673,5599569,SOUTHLANDS RESIDENTIAL HOME#SOUTHLANDS,15/10/2018,54301,Residential Provision,Adult Services,OA  External Provision Residential,"16,000.00"
991723,5599607,SOUTHVIEW LODGE RESIDENTIAL CARE HOME,25/10/2018,54301,Residential Provision,Adult Services,OA  External Provision Residential,"1,796.84"
113123,5599598,SPENNYMOOR CARE HOME LTD,25/10/2018,54301,Residential Provision,Adult Services,OA  External Provision Residential,685.71
113123,5599597,SPENNYMOOR CARE HOME LTD,11/10/2018,54301,Residential Provision,Adult Services,OA  External Provision Residential,"5,749.15"
113123,5599597,SPENNYMOOR CARE HOME LTD,11/10/2018,54301,Residential Provision,Adult Services,PD Purchaser Residential Care,"2,368.00"
6679,5599543,ST CATHERINES CARE HOME,11/10/2018,54302,Nursing Provision,Adult Services,OA  External Provision Residential,"41,584.49"
6679,5599543,ST CATHERINES CARE HOME,11/10/2018,54302,Nursing Provision,Adult Services,PD Purchaser Residential Care,"6,020.00"
6679,5599545,ST CATHERINES CARE HOME,02/10/2018,54302,Nursing Provision,Adult Services,LD Purchaser Residential Care,910.00
6679,5599543,ST CATHERINES CARE HOME,25/10/2018,54302,Nursing Provision,Adult Services,LD Purchaser Residential Care,"2,180.00"
6679,5599543,ST CATHERINES CARE HOME,18/10/2018,54302,Nursing Provision,Adult Services,MH Residential External Provision,"13,080.00"
2794378,5608484,St Georges Care Centre,02/10/2018,54302,Nursing Provision,Adult Services,OA  External Provision Residential,"2,340.00"
3936953,5599488,St Georges Care Home (Wigan) Ltd,11/10/2018,54302,Nursing Provision,Adult Services,OA  External Provision Residential,"2,012.00"
3936953,5599488,St Georges Care Home (Wigan) Ltd,29/10/2018,54302,Nursing Provision,Adult Services,PD Purchaser Residential Care,"3,400.00"
3936953,5599488,St Georges Care Home (Wigan) Ltd,23/10/2018,54302,Nursing Provision,Adult Services,MH Residential External Provision,"2,452.00"
2462352,5648479,St Helens Mobility Shop Limited T/A Aline Mobility,08/10/2018,44051,Clients Aids & Adaptations,Adult Services,ICES,"3,383.20"
3041414,5599459,Stanley Grange#1,11/10/2018,54301,Residential Provision,Adult Services,LD Purchaser Residential Care,"4,867.96"
4660999,5599501,Stansfield Hall Care Home,23/10/2018,54301,Residential Provision,Adult Services,OA  External Provision Residential,"1,920.00"
6686,5599546,STARMOUNT VILLA RESIDENTIAL CARE HOME,02/10/2018,54301,Residential Provision,Adult Services,OA  External Provision Residential,"3,808.72"
3912953,5599487,Stocks Hall Care Homes Ltd#St Helens,11/10/2018,54302,Nursing Provision,Adult Services,MH Residential External Provision,"3,164.24"
3767689,5599484,Strathmore Nursing And Residential Home,04/10/2018,54302,Nursing Provision,Adult Services,OA  External Provision Residential,"3,685.71"
3767689,5599484,Strathmore Nursing And Residential Home,08/10/2018,54302,Nursing Provision,Adult Services,PD Purchaser Residential Care,"8,460.00"
2225293,5621544,SU-MED INTERNATIONAL (UK) LTD,11/10/2018,44051,Clients Aids & Adaptations,Adult Services,ICES,"1,246.80"
2225293,5608461,SU-MED INTERNATIONAL (UK) LTD,02/10/2018,44051,Clients Aids & Adaptations,Adult Services,ICES,"3,750.00"
7857,5599571,SUNNYSIDE RESIDENTIAL HOME,08/10/2018,54301,Residential Provision,Adult Services,OA  External Provision Residential,"22,885.71"
7857,5599571,SUNNYSIDE RESIDENTIAL HOME,08/10/2018,54301,Residential Provision,Adult Services,PD Purchaser Residential Care,"11,840.00"
7857,5599571,SUNNYSIDE RESIDENTIAL HOME,08/10/2018,54301,Residential Provision,Adult Services,MH Residential External Provision,"17,720.00"
3528643,5599479,Syne Hills Care Home Ltd,08/10/2018,54301,Residential Provision,Adult Services,OA  External Provision Residential,"1,824.00"
3556670,5629275,Synergy Homecare,08/10/2018,52200,Contracted Services,Adult Services,OA  External Provision Residential,550.48
3556670,5629275,Synergy Homecare,29/10/2018,52200,Contracted Services,Adult Services,OA  Home Care Services external provision,"15,146.85"
3556670,5629275,Synergy Homecare,11/10/2018,52200,Contracted Services,Adult Services,PD Purcahser Domiciliary Care,"7,728.74"
3556670,5629275,Synergy Homecare,25/10/2018,52200,Contracted Services,Adult Services,MH Homecare,"3,992.81"
3054467,5599461,Take a Break with Choices,25/10/2018,54301,Residential Provision,Adult Services,PD Purchaser Residential Care,"2,200.00"
3054467,5599462,Take a Break with Choices,04/10/2018,54301,Residential Provision,Adult Services,LD Purchaser Residential Care,"6,300.00"
2146302,5599621,THE BEECHES CARE HOME,08/10/2018,54301,Residential Provision,Adult Services,OA  External Provision Residential,"2,181.84"
972,5599557,THE BRANDLES,02/10/2018,54301,Residential Provision,Adult Services,MH Residential External Provision,"3,808.72"
6438,5599528,THE BUNGALOW RESIDENTIAL HOME,08/10/2018,54301,Residential Provision,Adult Services,OA  External Provision Residential,"1,960.00"
6438,5599527,THE BUNGALOW RESIDENTIAL HOME,04/10/2018,54301,Residential Provision,Adult Services,OA  External Provision Residential,"18,156.00"
6438,5599527,THE BUNGALOW RESIDENTIAL HOME,11/10/2018,54301,Residential Provision,Adult Services,PD Purchaser Residential Care,"1,960.00"
6438,5599527,THE BUNGALOW RESIDENTIAL HOME,11/10/2018,54301,Residential Provision,Adult Services,MH Residential External Provision,"4,152.04"
2236315,5599626,THE CHANTERS CARE HOME,11/10/2018,54301,Residential Provision,Adult Services,OA  External Provision Residential,"1,615.71"
10139,5599590,THE CLOUGH RESIDENTIAL HOME,11/10/2018,54301,Residential Provision,Adult Services,OA  External Provision Residential,"1,960.00"
10139,5599589,THE CLOUGH RESIDENTIAL HOME,11/10/2018,54301,Residential Provision,Adult Services,OA  External Provision Residential,"11,760.00"
10139,5599589,THE CLOUGH RESIDENTIAL HOME,11/10/2018,54301,Residential Provision,Adult Services,MH Residential External Provision,"4,830.00"
3364632,5599476,The Conifers Nursing Home,11/10/2018,54302,Nursing Provision,Adult Services,OA  External Provision Residential,"2,427.12"
6713,5599580,THE DAVID LEWIS CENTRE,11/10/2018,54301,Residential Provision,Adult Services,LD Purchaser Residential Care,"11,384.12"
2876386,5599449,The Lakes Care Centre,11/10/2018,54301,Residential Provision,Adult Services,OA  External Provision Residential,"2,291.60"
1604381,5599616,THE LIMES#MAKING SPACES,11/10/2018,54301,Residential Provision,Adult Services,MH Residential External Provision,"2,100.00"
207974,5626096,THE LOCAL CARE COMPANY (BOLTON) LTD,11/10/2018,52200,Contracted Services,Adult Services,OA  External Provision Residential,724.57
207974,5613549,THE LOCAL CARE COMPANY (BOLTON) LTD,11/10/2018,52200,Contracted Services,Adult Services,OA  Home Care Services external provision,"1,547.76"
207974,5626096,THE LOCAL CARE COMPANY (BOLTON) LTD,11/10/2018,52200,Contracted Services,Adult Services,OA  Home Care Services external provision,"22,394.01"
207974,5626096,THE LOCAL CARE COMPANY (BOLTON) LTD,18/10/2018,52200,Contracted Services,Adult Services,PD Purcahser Domiciliary Care,"13,501.91"
207974,5626096,THE LOCAL CARE COMPANY (BOLTON) LTD,08/10/2018,52200,Contracted Services,Adult Services,LD Purchaser Domiciliary Care,"1,744.68"
207974,5626096,THE LOCAL CARE COMPANY (BOLTON) LTD,29/10/2018,52200,Contracted Services,Adult Services,MH Homecare,"1,751.95"
4825032,5599509,The Meadows,18/10/2018,54301,Residential Provision,Adult Services,OA  External Provision Residential,"16,985.71"
9243,5599584,THE OLD VICARAGE,08/10/2018,54301,Residential Provision,Adult Services,OA  External Provision Residential,"33,880.01"
9243,5599584,THE OLD VICARAGE,25/10/2018,54301,Residential Provision,Adult Services,MH Residential External Provision,"1,960.00"
3335627,5599475,The Orchard,15/10/2018,54301,Residential Provision,Adult Services,PD Purchaser Residential Care,"3,622.60"
1912,5599556,THE SPINAL UNIT ACTION GROUP,25/10/2018,54301,Residential Provision,Adult Services,PD Purchaser Residential Care,"2,288.88"
4837744,5599511,The Spires,15/10/2018,54301,Residential Provision,Adult Services,OA  External Provision Residential,"3,400.00"
176678,5630484,THE STROKE ASSOCIATION,04/10/2018,52001,Vol Sect Grants  Misc,Adult Services,Prevention Services,"1,666.66"
39372,5599593,THORLEY HOUSE,04/10/2018,54301,Residential Provision,Adult Services,PD Purchaser Residential Care,"1,980.00"
265081,5667627,TUNSTALL HEALTHCARE (UK)LTD,15/10/2018,44051,Clients Aids & Adaptations,Adult Services,Telecare,"3,750.00"
8863,5605441,University of Salford,04/10/2018,46004,Staff Training Courses,Adult Services,OA  Management Team,"2,520.00"
3076773,5599464,Vale House,04/10/2018,54302,Nursing Provision,Adult Services,LD Purchaser Residential Care,"71,595.80"
3054461,5599460,Voyage Care,11/10/2018,54301,Residential Provision,Adult Services,OA  External Provision Residential,"8,194.08"
3863953,5599486,Walshaw Hall & The Beeches R C H,08/10/2018,54301,Residential Provision,Adult Services,OA  External Provision Residential,"1,904.36"
7621,5599574,WALSHAW HALL RESIDENTIAL HOME,04/10/2018,54301,Residential Provision,Adult Services,OA  External Provision Residential,"1,904.36"
3616772,5599482,Wentworth House Care Services Ltd,15/10/2018,54301,Residential Provision,Adult Services,OA  External Provision Residential,"1,814.08"
4624992,5599499,Westmead,18/10/2018,54301,Residential Provision,Adult Services,LD Purchaser Residential Care,"46,860.00"
4522961,5599497,Westmorland Court,25/10/2018,54301,Residential Provision,Adult Services,OA  External Provision Residential,"2,292.00"
2472294,5599638,WESTWOOD RESIDENTIAL CARE HOME,25/10/2018,54301,Residential Provision,Adult Services,OA  External Provision Residential,"3,144.47"
2379296,5599635,WHITEFIELD HOUSE,11/10/2018,54301,Residential Provision,Adult Services,OA  External Provision Residential,"1,904.36"
6780,5599548,WINGATES RESIDENTIAL HOME,11/10/2018,54301,Residential Provision,Adult Services,OA  External Provision Residential,"2,940.00"
6780,5599547,WINGATES RESIDENTIAL HOME,11/10/2018,54301,Residential Provision,Adult Services,OA  External Provision Residential,"43,810.00"
6780,5599548,WINGATES RESIDENTIAL HOME,04/10/2018,54301,Residential Provision,Adult Services,PD Purchaser Residential Care,980.00
6780,5599547,WINGATES RESIDENTIAL HOME,18/10/2018,54301,Residential Provision,Adult Services,PD Purchaser Residential Care,"1,960.00"
6780,5599547,WINGATES RESIDENTIAL HOME,18/10/2018,54301,Residential Provision,Adult Services,MH Residential External Provision,"1,960.00"
1402,5599558,WITHINS RESIDENTIAL HOME,18/10/2018,54301,Residential Provision,Adult Services,OA  External Provision Residential,"59,100.00"
1402,5599558,WITHINS RESIDENTIAL HOME,08/10/2018,54301,Residential Provision,Adult Services,PD Purchaser Residential Care,"16,720.00"
1402,5599558,WITHINS RESIDENTIAL HOME,15/10/2018,54301,Residential Provision,Adult Services,LD Purchaser Residential Care,"1,960.00"
1402,5599558,WITHINS RESIDENTIAL HOME,15/10/2018,54301,Residential Provision,Adult Services,MH Residential External Provision,"5,880.00"
4845744,5599514,Woodlands Court Residential Home,08/10/2018,54301,Residential Provision,Adult Services,OA  External Provision Residential,"3,394.29"
6783,5599550,WOODLANDS HOUSE RESIDENTIAL HOME LTD,15/10/2018,54301,Residential Provision,Adult Services,OA  External Provision Residential,"18,362.86"
6783,5599551,WOODLANDS HOUSE RESIDENTIAL HOME LTD,08/10/2018,54301,Residential Provision,Adult Services,PD Purchaser Residential Care,"2,680.00"
6783,5599550,WOODLANDS HOUSE RESIDENTIAL HOME LTD,15/10/2018,54301,Residential Provision,Adult Services,MH Residential External Provision,"4,630.00"
2915306,5659464,Woodlands Westhoughton,15/10/2018,54301,Residential Provision,Adult Services,OA  External Provision Residential,"11,404.54"
2915306,5599453,Woodlands Westhoughton,02/10/2018,54301,Residential Provision,Adult Services,OA  External Provision Residential,"19,744.29"
2915306,5599453,Woodlands Westhoughton,25/10/2018,54301,Residential Provision,Adult Services,PD Purchaser Residential Care,"2,180.00"
2915306,5599453,Woodlands Westhoughton,18/10/2018,54301,Residential Provision,Adult Services,LD Purchaser Residential Care,"6,200.00"
2915306,5599453,Woodlands Westhoughton,04/10/2018,54301,Residential Provision,Adult Services,MH Residential External Provision,"4,360.00"
1420,5599575,WORSLEY LODGE NURSING HOME,08/10/2018,54301,Residential Provision,Adult Services,OA  External Provision Residential,"1,814.08"
1420,5599575,WORSLEY LODGE NURSING HOME,25/10/2018,54301,Residential Provision,Adult Services,PD Purchaser Residential Care,"1,814.08"
3483728,5613458,Yasnad Ltd t/a Bluebird Care Bury,02/10/2018,52200,Contracted Services,Adult Services,MH Homecare,"2,632.35"
2243500,5613510,YOUR CARE (UK) LIMITED,25/10/2018,52200,Contracted Services,Adult Services,OA  Home Care Services external provision,746.77
2243500,5662548,YOUR CARE (UK) LIMITED,25/10/2018,52200,Contracted Services,Adult Services,OA  Home Care Services external provision,"1,478.10"
2243500,5613511,YOUR CARE (UK) LIMITED,25/10/2018,52200,Contracted Services,Adult Services,OA  Home Care Services external provision,"1,485.68"
3597714,5648462,Bolton At Home Ltd#Refunds From Bolton Council Accounts Receivable,25/10/2018,Z9721,PARIS Unidentified Feeder,Bolton MBC ,Bolton MBC Balance Sheet,500.00
21285,5616666,CONSERVATION CONTRACTS NORTH WEST LTD,25/10/2018,Z6008,Expense AP Accrual,Bolton MBC ,Bolton MBC Balance Sheet,967.75
21285,5616668,CONSERVATION CONTRACTS NORTH WEST LTD,23/10/2018,Z6008,Expense AP Accrual,Bolton MBC ,Bolton MBC Balance Sheet,"1,307.20"
21285,5616667,CONSERVATION CONTRACTS NORTH WEST LTD,23/10/2018,Z6008,Expense AP Accrual,Bolton MBC ,Bolton MBC Balance Sheet,"1,993.00"
21285,5616669,CONSERVATION CONTRACTS NORTH WEST LTD,23/10/2018,Z6008,Expense AP Accrual,Bolton MBC ,Bolton MBC Balance Sheet,"2,554.70"
21285,5616665,CONSERVATION CONTRACTS NORTH WEST LTD,23/10/2018,Z6008,Expense AP Accrual,Bolton MBC ,Bolton MBC Balance Sheet,"2,927.50"
267953,5616476,Grantfen Fire & Security,02/10/2018,Z6008,Expense AP Accrual,Bolton MBC ,Bolton MBC Balance Sheet,"3,388.03"
2284378,5630470,H TIMMINS GROUP LTD,02/10/2018,Z6008,Expense AP Accrual,Bolton MBC ,Bolton MBC Balance Sheet,"28,121.90"
596,5613612,PSI (RESOURCES) LTD,02/10/2018,Z6008,Expense AP Accrual,Bolton MBC ,Bolton MBC Balance Sheet,"5,457.00"
4845746,5622516,Resource & Environmental Consultants Limited,02/10/2018,Z1051,Work in Progress Additions,Bolton MBC ,Bolton MBC Balance Sheet,"1,650.00"
6739,5667516,TREND CONTROL SYSTEMS LTD,02/10/2018,Z6008,Expense AP Accrual,Bolton MBC ,Bolton MBC Balance Sheet,"2,620.00"
269069,5631437,AECOM LTD,04/10/2018,20101,Programmed Maint. Work,Chief Executives,Admin Buildings Portfolio,"7,500.00"
871655,5664547,AGILISYS LIMITED,18/10/2018,45616,Agilisys - Refreshed Assets,Chief Executives,FM Contract,"5,847.22"
871655,5631521,AGILISYS LIMITED,25/10/2018,45411,ICT Security,Chief Executives,Corporate IT Investment,"11,818.00"
871655,5625841,AGILISYS LIMITED,11/10/2018,45401,Computer Maintenance,Chief Executives,Corporate IT Investment,"8,834.00"
871655,5639449,AGILISYS LIMITED,11/10/2018,45430,Computer Software,Chief Executives,Corporate IT Investment,"2,088.69"
871655,5665471,AGILISYS LIMITED,04/10/2018,45100,Telephones Direct Rental,Chief Executives,ICT Infrastructure,"10,171.39"
871655,5671435,AGILISYS LIMITED,29/10/2018,45100,Telephones Direct Rental,Chief Executives,ICT Infrastructure,"11,409.15"
871655,5669443,AGILISYS LIMITED,23/10/2018,45100,Telephones Direct Rental,Chief Executives,ICT Infrastructure,"12,460.17"
871655,5665473,AGILISYS LIMITED,25/10/2018,45106,Centrex Telephones,Chief Executives,ICT Operational Billing,"41,008.08"
871655,5631435,AGILISYS LIMITED,11/10/2018,45600,Fujitsu  Data N/wk Line Rent,Chief Executives,ICT Operational Billing,"12,921.05"
871655,5631523,AGILISYS LIMITED,04/10/2018,48509,Other Fees,Chief Executives,ICT Operational Billing,"21,115.39"
110901,5623497,ALLPAY.NET LTD,11/10/2018,48509,Other Fees,Chief Executives,CSD Cashiers,809.13
110901,5623504,ALLPAY.NET LTD,29/10/2018,48509,Other Fees,Chief Executives,CSD Cashiers,"2,152.61"
110901,5623500,ALLPAY.NET LTD,18/10/2018,48509,Other Fees,Chief Executives,CSD Cashiers,"7,342.08"
4888746,5659492,Amey OW Limited,11/10/2018,48509,Other Fees,Chief Executives,Land and Property Portfolios,"3,445.20"
155243,5640443,Anthony Collins Solicitors,11/10/2018,48509,Other Fees,Chief Executives,HR - Corporate,871.20
18039,5667585,AQUILA SHELTERS LTD#1,11/10/2018,48203,Marketing,Chief Executives,Marketing - Holding Code,990.00
6104,5626061,AUTOMATIC ALARMS LIMITED,11/10/2018,20101,Programmed Maint. Work,Chief Executives,Admin Buildings Portfolio,"4,619.36"
7357,5630796,Best Asian Media Ltd,11/10/2018,48203,Marketing,Chief Executives,Marketing - Holding Code,550.00
3445692,5631532,Bloom Procurement Services Limited,15/10/2018,48509,Other Fees,Chief Executives,Business Support,"346,224.00"
7437,5656436,BOLTON COMMUNITY HOMES,11/10/2018,52200,Contracted Services,Chief Executives,Anti Poverty Measures,"3,050.21"
213906,5608453,BOLTON COMMUNITY RADIO CIC#BOLTON FM CIC,15/10/2018,48203,Marketing,Chief Executives,Marketing - Holding Code,500.00
16302,5613446,BOLTON COMMUNITY TRANSPORT & FURNITURE SERVICES#BCT & FS,15/10/2018,47103,Miscellaneous Grants,Chief Executives,Voluntary Sector Grants,"4,656.25"
6149,5674468,BOLTON STONE RESTORATION LTD,15/10/2018,20100,Day To Day Maintenance,Chief Executives,Admin Buildings Portfolio,"2,100.50"
6149,5626055,BOLTON STONE RESTORATION LTD,15/10/2018,20103,Day To Day Maintenance Structural,Chief Executives,Business Support,"1,201.76"
6182,5651475,C HORROCKS & SONS LTD,15/10/2018,48203,Marketing,Chief Executives,Marketing - Holding Code,882.68
3683684,5617273,Cadent Gas Ltd,15/10/2018,20102,Health & Safety,Chief Executives,Land and Property Portfolios,"1,241.00"
6190,5617212,CANON (UK) LIMITED#OCE (UK) LIMITED,04/10/2018,43032,Office Stationery,Chief Executives,Text & Reprographics,678.40
9175,5623577,CH Bolton Limited,04/10/2018,22002,Management Fee,Chief Executives,Castle Hill,"154,609.32"
9175,5631478,CH Bolton Limited,08/10/2018,48511,Management Fees,Chief Executives,Castle Hill,"10,847.91"
2643324,5625924,Complete Background Screening Ltd#CBS,11/10/2018,19400,Disclosure Monitoring,Chief Executives,HR - Corporate,514.50
6225,5664498,COPYRIGHT LICENSING AGENCY LTD,25/10/2018,48509,Other Fees,Chief Executives,Corporate Information Team,"11,240.14"
34651,5630770,CRANLEIGH DESIGN CONSULTANTS LTD,25/10/2018,20100,Day To Day Maintenance,Chief Executives,Land and Property Portfolios,760.00
34651,5630540,CRANLEIGH DESIGN CONSULTANTS LTD,25/10/2018,20100,Day To Day Maintenance,Chief Executives,Land and Property Portfolios,"1,282.00"
1307936,5664490,CREDITSAFE BUSINESS SOLUTIONS LIMITED,25/10/2018,47200,General Subscriptions,Chief Executives,Financial Management,"8,000.00"
3134566,5641442,DAC Beachcroft LLP,02/10/2018,48502,Legal Fees,Chief Executives,Land and Property Portfolios,656.00
3134566,5625918,DAC Beachcroft LLP,02/10/2018,48509,Other Fees,Chief Executives,Business Support,"1,100.00"
3134566,5625923,DAC Beachcroft LLP,23/10/2018,48509,Other Fees,Chief Executives,Bolton Cares Recharges,"2,274.00"
3134566,5625921,DAC Beachcroft LLP,18/10/2018,48509,Other Fees,Chief Executives,Financial Management,"1,838.00"
302830,5640450,DATASPACE,18/10/2018,48506,Records Storage,Chief Executives,Legal Services Trading Account,769.63
125827,5625288,LAST DROP VILLAGE HOTEL,18/10/2018,46001,Staff Hotel Expenses,Chief Executives,Mayoralty,"1,170.83"
62794,5626453,Direct Communications Radio Services Ltd,18/10/2018,48203,Marketing,Chief Executives,Marketing - Holding Code,"1,281.00"
2218304,5626062,DISCLOSURE AND BARRING SERVICE,02/10/2018,19400,Disclosure Monitoring,Chief Executives,HR - Corporate,"12,506.00"
245548,5616670,DURABLE LTD,02/10/2018,20106,Glazing,Chief Executives,Annual Charge Holding Account,749.91
3886956,5667677,REDACTED - Personal Data,02/10/2018,48509,Other Fees,Chief Executives,Members,"1,237.50"
3126625,5626272,EE Limited#2,23/10/2018,45252,Mobile Telephone Rental,Chief Executives,ICT Operational Billing,"2,869.36"
40924,5667489,ELECTORAL REFORM SERVICES,04/10/2018,79001,Survey Fees,Chief Executives,Elections,"3,962.30"
40924,5664479,ELECTORAL REFORM SERVICES,04/10/2018,79001,Survey Fees,Chief Executives,Elections,"5,165.17"
2417,5615447,ELECTRICITY NORTH WEST LIMITED#UNITED UTILITIES ELECTRICITY SERVICES LTD,04/10/2018,20102,Health & Safety,Chief Executives,Land and Property Portfolios,568.55
14143,5675102,EQUITA LIMITED,25/10/2018,48509,Other Fees,Chief Executives,Non-Domestic Rating,"2,288.41"
47084,5623509,EVENTPLUS LTD,25/10/2018,48203,Marketing,Chief Executives,Marketing Agency,"7,553.00"
47084,5617227,EVENTPLUS LTD,25/10/2018,48203,Marketing,Chief Executives,Marketing - Holding Code,"1,095.00"
1579359,5617100,EXCLUSEC SECURITY SOLUTIONS LTD,25/10/2018,48203,Marketing,Chief Executives,Marketing - Holding Code,"2,666.45"
3590695,5667532,G4S Cash Solutions (UK) Ltd,02/10/2018,44402,Security Cash Collection,Chief Executives,CSD Cashiers,616.74
1667290,5630501,GAZPROM MARKETING & RETAIL LTD,02/10/2018,21200,Gas  General,Chief Executives,Admin Buildings Portfolio,"16,014.12"
1667290,5623479,GAZPROM MARKETING & RETAIL LTD,02/10/2018,21200,Gas  General,Chief Executives,Admin Buildings Portfolio,743.10
1667290,5630501,GAZPROM MARKETING & RETAIL LTD,25/10/2018,21200,Gas  General,Chief Executives,Admin Buildings Portfolio,"5,263.22"
1667290,5630501,GAZPROM MARKETING & RETAIL LTD,11/10/2018,21200,Gas  General,Chief Executives,Castle Hill,"2,603.14"
2036308,5649208,GOVDELIVERY,02/10/2018,45431,Computer Software Licences,Chief Executives,Web Team,"1,369.33"
2036308,5630491,GOVDELIVERY,02/10/2018,45431,Computer Software Licences,Chief Executives,Web Team,"2,054.00"
22994,5630506,IKEN BUSINESS LTD,02/10/2018,45431,Computer Software Licences,Chief Executives,Estates & Property Management,"6,745.68"
1194842,5617145,IMPRESSION (BOLTON) LIMITED#1,02/10/2018,48203,Marketing,Chief Executives,Marketing - Holding Code,538.00
1194842,5617141,IMPRESSION (BOLTON) LIMITED#1,29/10/2018,48203,Marketing,Chief Executives,Marketing - Holding Code,"1,483.50"
1194842,5626537,IMPRESSION (BOLTON) LIMITED#1,29/10/2018,48203,Marketing,Chief Executives,Marketing - Holding Code,"1,950.00"
1194842,5617143,IMPRESSION (BOLTON) LIMITED#1,11/10/2018,48203,Marketing,Chief Executives,Marketing - Holding Code,"2,732.00"
2703315,5631436,IRONMAN Ltd,02/10/2018,48203,Marketing,Chief Executives,Marketing - Holding Code,"41,000.00"
16022,5651485,JACOBS CERTIFICATED BAILIFFS#4,02/10/2018,48509,Other Fees,Chief Executives,Council Tax,"6,855.08"
16022,5675103,JACOBS CERTIFICATED BAILIFFS#4,02/10/2018,48509,Other Fees,Chief Executives,Council Tax,"8,472.96"
16022,5626179,JACOBS CERTIFICATED BAILIFFS#4,02/10/2018,48509,Other Fees,Chief Executives,Council Tax,"18,041.66"
3404629,5606444,John Turner Contruction Group Ltd,04/10/2018,48509,Other Fees,Chief Executives,Admin Buildings Portfolio,600.00
75641,5648487,LIGHTMEDIA DISPLAYS LTD,29/10/2018,48203,Marketing,Chief Executives,Marketing - Holding Code,"3,200.00"
6467,5664457,Manchester City Council,11/10/2018,55032,Procurement Hub,Chief Executives,Finance Dept Procurement Team,"33,731.00"
2768301,5623517,Mapchester Limited,18/10/2018,19100,Training Exps Tuition Fees,Chief Executives,Business Support,"3,120.00"
39557,5625853,Mazars LLP,11/10/2018,48519,External Audit Fees,Chief Executives,Financial Management,"23,312.00"
267311,5631444,MERITEC LIMITED,02/10/2018,52200,Contracted Services,Chief Executives,Anti Poverty Measures,"7,674.48"
267311,5631441,MERITEC LIMITED,02/10/2018,52200,Contracted Services,Chief Executives,Anti Poverty Measures,"8,369.09"
267311,5631453,MERITEC LIMITED,02/10/2018,52200,Contracted Services,Chief Executives,Housing Benefits,"4,600.44"
2246441,5664467,NB COLOUR PRINT LIMITED,02/10/2018,48203,Marketing,Chief Executives,Marketing - Holding Code,600.00
4873745,5630496,NLA Media Access Limited,18/10/2018,48203,Marketing,Chief Executives,Marketing - Holding Code,"9,136.04"
2908299,5630762,Northgate Public Services (UK) Ltd,04/10/2018,45430,Computer Software,Chief Executives,T&B Systems Project Team,582.23
2908299,5626014,Northgate Public Services (UK) Ltd,29/10/2018,43032,Office Stationery,Chief Executives,C.R.M. Operations,"2,295.40"
10182,5630459,NPOWER LIMITED,18/10/2018,21100,Electricity  General,Chief Executives,Land and Property Portfolios,"1,484.31"
10182,5630459,NPOWER LIMITED,25/10/2018,21100,Electricity  General,Chief Executives,Admin Buildings Portfolio,"38,088.25"
10182,5630459,NPOWER LIMITED,15/10/2018,21100,Electricity  General,Chief Executives,Admin Buildings Portfolio,"7,474.60"
10182,5630459,NPOWER LIMITED,04/10/2018,21100,Electricity  General,Chief Executives,Castle Hill,"8,824.07"
313,5613636,Oldham Council,08/10/2018,48203,Marketing,Chief Executives,Marketing - Holding Code,"6,203.40"
6558,5630696,PHS GROUP PLC,08/10/2018,26001,Hygiene Requisite,Chief Executives,Admin Buildings Portfolio,620.10
166629,5615454,PILLARBOX ENVELOPES & PRINT,08/10/2018,43032,Office Stationery,Chief Executives,Text & Reprographics,550.00
6572,5630579,PREMIER PAPER GROUP LIMITED,18/10/2018,43032,Office Stationery,Chief Executives,Text & Reprographics,"1,122.00"
4703995,5625850,R Developments Limited,08/10/2018,Z1051,Work in Progress Additions,Chief Executives,Chief Execs Balance Sheet,"71,095.59"
2910325,5674465,REDACTED - Personal Data,08/10/2018,48509,Other Fees,Chief Executives,Financial Management,"2,043.00"
3314627,5651448,REDACTED - Personal Data,08/10/2018,48203,Marketing,Chief Executives,Marketing - Holding Code,"2,000.00"
4923770,5626454,REDACTED - Personal Data,08/10/2018,48203,Marketing,Chief Executives,Marketing - Holding Code,725.00
3490653,5616629,Reed Specialist Recruitment Ltd,18/10/2018,53102,Agency Staff  Other,Chief Executives,Legal Services Trading Account,"3,615.36"
3490653,5625886,Reed Specialist Recruitment Ltd,08/10/2018,53102,Agency Staff  Other,Chief Executives,Legal Services Trading Account,"3,942.93"
3490653,5648474,Reed Specialist Recruitment Ltd,08/10/2018,53102,Agency Staff  Other,Chief Executives,Legal Services Trading Account,"4,361.33"
3490653,5665558,Reed Specialist Recruitment Ltd,29/10/2018,53102,Agency Staff  Other,Chief Executives,Legal Services Trading Account,"5,553.24"
3490653,5625886,Reed Specialist Recruitment Ltd,18/10/2018,53102,Agency Staff  Other,Chief Executives,HR - Adults and Community Services,609.24
3490653,5616629,Reed Specialist Recruitment Ltd,08/10/2018,53102,Agency Staff  Other,Chief Executives,HR - Adults and Community Services,609.24
3490653,5648474,Reed Specialist Recruitment Ltd,08/10/2018,53102,Agency Staff  Other,Chief Executives,HR - Adults and Community Services,609.24
3490653,5665558,Reed Specialist Recruitment Ltd,25/10/2018,53102,Agency Staff  Other,Chief Executives,HR - Adults and Community Services,609.24
3490653,5665558,Reed Specialist Recruitment Ltd,11/10/2018,53102,Agency Staff  Other,Chief Executives,Organisational Development,500.18
3490653,5625886,Reed Specialist Recruitment Ltd,11/10/2018,53102,Agency Staff  Other,Chief Executives,Organisational Development,504.06
3490653,5648474,Reed Specialist Recruitment Ltd,11/10/2018,53102,Agency Staff  Other,Chief Executives,Organisational Development,521.50
3490653,5665558,Reed Specialist Recruitment Ltd,18/10/2018,53102,Agency Staff  Other,Chief Executives,Health and Safety,566.34
3490653,5616629,Reed Specialist Recruitment Ltd,11/10/2018,53102,Agency Staff  Other,Chief Executives,Health and Safety,698.49
3490653,5648474,Reed Specialist Recruitment Ltd,11/10/2018,53102,Agency Staff  Other,Chief Executives,Health and Safety,698.49
3490653,5625886,Reed Specialist Recruitment Ltd,15/10/2018,53102,Agency Staff  Other,Chief Executives,Marketing Agency,565.95
3490653,5665558,Reed Specialist Recruitment Ltd,04/10/2018,53102,Agency Staff  Other,Chief Executives,Business Support,814.35
3490653,5616629,Reed Specialist Recruitment Ltd,02/10/2018,53102,Agency Staff  Other,Chief Executives,Business Support,"1,964.93"
3490653,5625886,Reed Specialist Recruitment Ltd,23/10/2018,53102,Agency Staff  Other,Chief Executives,Business Support,"2,784.83"
3490653,5648474,Reed Specialist Recruitment Ltd,29/10/2018,53102,Agency Staff  Other,Chief Executives,Business Support,"2,784.83"
3490653,5648474,Reed Specialist Recruitment Ltd,11/10/2018,53102,Agency Staff  Other,Chief Executives,Operational Facilities Management,674.03
3490653,5625886,Reed Specialist Recruitment Ltd,23/10/2018,53102,Agency Staff  Other,Chief Executives,Operational Facilities Management,707.73
3490653,5616629,Reed Specialist Recruitment Ltd,18/10/2018,53102,Agency Staff  Other,Chief Executives,Operational Facilities Management,712.55
3490653,5665558,Reed Specialist Recruitment Ltd,02/10/2018,53102,Agency Staff  Other,Chief Executives,Operational Facilities Management,712.55
3490653,5625886,Reed Specialist Recruitment Ltd,23/10/2018,53102,Agency Staff  Other,Chief Executives,Projects,711.62
3490653,5616629,Reed Specialist Recruitment Ltd,11/10/2018,53102,Agency Staff  Other,Chief Executives,Projects,711.62
3490653,5648474,Reed Specialist Recruitment Ltd,02/10/2018,53102,Agency Staff  Other,Chief Executives,Projects,711.62
3490653,5665558,Reed Specialist Recruitment Ltd,18/10/2018,53102,Agency Staff  Other,Chief Executives,Projects,711.62
3490653,5665558,Reed Specialist Recruitment Ltd,02/10/2018,53102,Agency Staff  Other,Chief Executives,Estates & Property Management,"1,040.00"
3490653,5625886,Reed Specialist Recruitment Ltd,02/10/2018,53102,Agency Staff  Other,Chief Executives,Financial Management,742.89
3490653,5616629,Reed Specialist Recruitment Ltd,02/10/2018,53102,Agency Staff  Other,Chief Executives,Financial Management,742.89
3490653,5648474,Reed Specialist Recruitment Ltd,02/10/2018,53102,Agency Staff  Other,Chief Executives,Financial Management,742.89
3490653,5665558,Reed Specialist Recruitment Ltd,02/10/2018,53102,Agency Staff  Other,Chief Executives,Financial Management,742.89
3490653,5648474,Reed Specialist Recruitment Ltd,02/10/2018,53102,Agency Staff  Other,Chief Executives,C.R.M. Operations,"1,703.52"
3490653,5616629,Reed Specialist Recruitment Ltd,02/10/2018,53102,Agency Staff  Other,Chief Executives,C.R.M. Operations,"2,607.61"
3490653,5665558,Reed Specialist Recruitment Ltd,02/10/2018,53102,Agency Staff  Other,Chief Executives,C.R.M. Operations,"2,815.19"
3490653,5625886,Reed Specialist Recruitment Ltd,25/10/2018,53102,Agency Staff  Other,Chief Executives,C.R.M. Operations,"2,827.76"
10146,5667662,RICOH UK LIMITED,25/10/2018,43030,Photocopying Lease/Maintenance,Chief Executives,Text & Reprographics,"2,345.20"
6629,5667492,ROYAL MAIL GROUP LTD,11/10/2018,79001,Survey Fees,Chief Executives,Elections,"1,248.71"
6629,5667474,ROYAL MAIL GROUP LTD,02/10/2018,79001,Survey Fees,Chief Executives,Elections,"1,666.33"
6629,5613615,ROYAL MAIL GROUP LTD,08/10/2018,45000,Postages Direct Costs,Chief Executives,Housing Benefits,657.50
6629,5664599,ROYAL MAIL GROUP LTD,23/10/2018,45000,Postages Direct Costs,Chief Executives,Housing Benefits,701.57
6629,5623484,ROYAL MAIL GROUP LTD,02/10/2018,45000,Postages Direct Costs,Chief Executives,Housing Benefits,923.60
6629,5613615,ROYAL MAIL GROUP LTD,11/10/2018,45000,Postages Direct Costs,Chief Executives,Council Tax,"1,331.22"
6629,5623484,ROYAL MAIL GROUP LTD,29/10/2018,45000,Postages Direct Costs,Chief Executives,Council Tax,"1,927.94"
6629,5664599,ROYAL MAIL GROUP LTD,25/10/2018,45000,Postages Direct Costs,Chief Executives,Council Tax,"2,006.27"
6629,5623484,ROYAL MAIL GROUP LTD,25/10/2018,45000,Postages Direct Costs,Chief Executives,Accounts Receivable (R & B),866.64
46513,5623491,SCOTTISH & SOUTHERN ENERGY PLC,02/10/2018,21100,Electricity  General,Chief Executives,Halliwell UCAN,"1,054.72"
46513,5623491,SCOTTISH & SOUTHERN ENERGY PLC,02/10/2018,21100,Electricity  General,Chief Executives,Admin Buildings Portfolio,"3,367.50"
266126,5631438,SKIBAND,02/10/2018,48203,Marketing,Chief Executives,Marketing - Holding Code,"1,700.00"
3639684,5649295,Space Stage Ltd,02/10/2018,48203,Marketing,Chief Executives,Marketing - Holding Code,"3,000.00"
6675,5659454,SPECTRA SECURITY LTD,29/10/2018,20100,Day To Day Maintenance,Chief Executives,Admin Buildings Portfolio,552.00
232370,5640446,THE TRAINING CO,18/10/2018,19100,Training Exps Tuition Fees,Chief Executives,Organisational Development,825.00
4925805,5631472,Tonic Consultancy Ltd,25/10/2018,48203,Marketing,Chief Executives,Marketing - Holding Code,790.00
6739,5671454,TREND CONTROL SYSTEMS LTD,25/10/2018,20100,Day To Day Maintenance,Chief Executives,Land and Property Portfolios,"3,798.15"
6739,5662617,TREND CONTROL SYSTEMS LTD,25/10/2018,Z1051,Work in Progress Additions,Chief Executives,Chief Execs Balance Sheet,"5,228.00"
2532340,5630702,Tusker,25/10/2018,48509,Other Fees,Chief Executives,Car Salary Sacrifice Scheme,"2,167.59"
2532340,5630495,Tusker,25/10/2018,31100,Vehicle Purchase,Chief Executives,Car Salary Sacrifice Scheme,"34,484.16"
4614995,5664477,Universal Tanker Solutions Limited,25/10/2018,48203,Marketing,Chief Executives,Marketing Agency,650.00
6151,5612438,URBAN OUTREACH (BOLTON),02/10/2018,44103,Governer SupportLEA,Chief Executives,HB Third Party Commissions,"3,744.00"
6151,5612436,URBAN OUTREACH (BOLTON),02/10/2018,44103,Governer SupportLEA,Chief Executives,HB Third Party Commissions,"4,287.00"
6151,5612440,URBAN OUTREACH (BOLTON),02/10/2018,44103,Governer SupportLEA,Chief Executives,HB Third Party Commissions,"4,315.00"
150827,5671437,URBAN VISION PARTNERSHIP LTD#GMGU,02/10/2018,48509,Other Fees,Chief Executives,Admin Buildings Portfolio,"45,000.00"
150827,5610435,URBAN VISION PARTNERSHIP LTD#GMGU,02/10/2018,52200,Contracted Services,Chief Executives,Estates & Property Management,"2,180.19"
150827,5640444,URBAN VISION PARTNERSHIP LTD#GMGU,02/10/2018,48509,Other Fees,Chief Executives,Estates & Property Management,"2,949.06"
78998,5631520,Venn Group Ltd,02/10/2018,53100,Agency Staff  Fulltime,Chief Executives,Chief Executive,"1,360.00"
78998,5630729,Venn Group Ltd,02/10/2018,53100,Agency Staff  Fulltime,Chief Executives,Chief Executive,"1,870.00"
78998,5631522,Venn Group Ltd,02/10/2018,53100,Agency Staff  Fulltime,Chief Executives,Chief Executive,"1,904.00"
78998,5631519,Venn Group Ltd,02/10/2018,53100,Agency Staff  Fulltime,Chief Executives,Chief Executive,"3,298.00"
78998,5630730,Venn Group Ltd,02/10/2018,53100,Agency Staff  Fulltime,Chief Executives,Chief Executive,"3,366.00"
78998,5630767,Venn Group Ltd,04/10/2018,53100,Agency Staff  Fulltime,Chief Executives,Chief Executive,"3,944.00"
78998,5625909,Venn Group Ltd,25/10/2018,53102,Agency Staff  Other,Chief Executives,Corporate Information Team,872.00
78998,5625908,Venn Group Ltd,23/10/2018,53102,Agency Staff  Other,Chief Executives,Corporate Information Team,948.43
78998,5640505,Venn Group Ltd,25/10/2018,53102,Agency Staff  Other,Chief Executives,Corporate Information Team,965.12
78998,5661439,Venn Group Ltd,04/10/2018,53102,Agency Staff  Other,Chief Executives,Corporate Information Team,"1,170.56"
78998,5661438,Venn Group Ltd,25/10/2018,53102,Agency Staff  Other,Chief Executives,Corporate Information Team,"1,547.04"
176718,5664543,VIRGIN MEDIA PAYMENTS LTD#VIRGIN MEDIA BUSINESS,25/10/2018,45600,Fujitsu  Data N/wk Line Rent,Chief Executives,ICT Infrastructure,"28,019.00"
3592683,5673447,Viva la Zoom,04/10/2018,48203,Marketing,Chief Executives,Marketing Agency,"2,079.00"
3592683,5664436,Viva la Zoom,25/10/2018,48203,Marketing,Chief Executives,Marketing - Holding Code,"7,561.80"
1293,5628629,VODAFONE LIMITED#1,04/10/2018,45250,Mobile Telephone Purchase,Chief Executives,ICT Operational Billing,591.00
1293,5629489,VODAFONE LIMITED#1,04/10/2018,45252,Mobile Telephone Rental,Chief Executives,ICT Operational Billing,"43,695.39"
1293,5629491,VODAFONE LIMITED#1,25/10/2018,45252,Mobile Telephone Rental,Chief Executives,ICT Operational Billing,"60,799.59"
1546445,5662639,VODAFONE LTD FIXED NETWORKS#VODAFONE LTD,15/10/2018,45411,ICT Security,Chief Executives,ICT Infrastructure,"4,179.51"
423333,5607439,W CRAVEN & SON,25/10/2018,20100,Day To Day Maintenance,Chief Executives,Admin Buildings Portfolio,"4,000.00"
8963,5659478,Wigan Council,02/10/2018,19000,Recruitment Advertising,Chief Executives,HR - Corporate,800.00
8963,5628480,Wigan Council,02/10/2018,45613,Fujitsu  Managed Service,Chief Executives,FM Contract,"2,669.95"
8963,5631528,Wigan Council,25/10/2018,45613,Fujitsu  Managed Service,Chief Executives,FM Contract,"4,385.00"
8963,5631527,Wigan Council,25/10/2018,45613,Fujitsu  Managed Service,Chief Executives,Corporate IT Investment,"5,804.31"
4025957,5617423,Zencontrol Limited,08/10/2018,20100,Day To Day Maintenance,Chief Executives,Business Support,"1,925.00"
4907745,5618492,18 St John Street Chamber,25/10/2018,48502,Legal Fees,Childrens Services,Management Team,650.00
4611992,5623513,4 Pure Heart Limited,29/10/2018,52000,Vol Assoc Grants  General,Childrens Services,Res Serv Agency Placements,"51,000.00"
156135,5648888,ACCESS TO CARE LTD,08/10/2018,52000,Vol Assoc Grants  General,Childrens Services,Res Serv Agency Placements,885.00
156135,5648910,ACCESS TO CARE LTD,08/10/2018,52000,Vol Assoc Grants  General,Childrens Services,Res Serv Agency Placements,"2,900.00"
156135,5648911,ACCESS TO CARE LTD,25/10/2018,52000,Vol Assoc Grants  General,Childrens Services,Res Serv Agency Placements,"4,142.00"
156135,5644457,ACCESS TO CARE LTD,29/10/2018,52000,Vol Assoc Grants  General,Childrens Services,Res Serv Agency Placements,"6,447.86"
156135,5648888,ACCESS TO CARE LTD,08/10/2018,52000,Vol Assoc Grants  General,Childrens Services,Unaccompanied Asylum Seeking Children,"2,655.00"
156135,5644457,ACCESS TO CARE LTD,25/10/2018,52000,Vol Assoc Grants  General,Childrens Services,Unaccompanied Asylum Seeking Children,"7,080.00"
248862,5626079,ACTION FOR CHILDREN,29/10/2018,52200,Contracted Services,Childrens Services,Integrated Commissioning,"21,216.25"
1194837,5623467,ACTIVE8 CARE LTD,15/10/2018,52000,Vol Assoc Grants  General,Childrens Services,Res Serv Agency Placements,"16,928.57"
1194837,5623466,ACTIVE8 CARE LTD,08/10/2018,52000,Vol Assoc Grants  General,Childrens Services,Res Serv Agency Placements,"16,928.57"
124443,5626006,ADVANCED CHILDCARE ASSESSMENTS LTD,08/10/2018,48509,Other Fees,Childrens Services,Management Team,"1,459.50"
124443,5661437,ADVANCED CHILDCARE ASSESSMENTS LTD,15/10/2018,48509,Other Fees,Childrens Services,Management Team,"1,783.55"
124443,5661436,ADVANCED CHILDCARE ASSESSMENTS LTD,08/10/2018,48509,Other Fees,Childrens Services,Management Team,"4,177.60"
6952,5663438,After Adoption,04/10/2018,53000,Private Contracted Services,Childrens Services,Regional Adoption Agency (RAA),"8,707.50"
871655,5660471,AGILISYS LIMITED,15/10/2018,45405,Computer Consumables,Childrens Services,Connexions PAs,"1,720.00"
871655,5660473,AGILISYS LIMITED,18/10/2018,48509,Other Fees,Childrens Services,Castle Hill Youth Club (Yth Srv),"3,940.00"
871655,5616593,AGILISYS LIMITED,23/10/2018,40100,Operational Equipment Purchase,Childrens Services,Admin IT (Schools),"47,658.97"
2473315,5661468,ALERE TOXICOLOGY PLC,25/10/2018,48509,Other Fees,Childrens Services,Management Team,770.00
147742,5615449,ALKEMYGOLD LTD,11/10/2018,53100,Agency Staff  Fulltime,Childrens Services,Bolton Learning Alliance,"12,404.11"
245267,5640500,ANGLIA DNA SERVICES LIMITED,11/10/2018,48509,Other Fees,Childrens Services,Management Team,524.00
4942746,5659524,Aspects Psychology & Consultancy,11/10/2018,48509,Other Fees,Childrens Services,Education Psychology Service,"4,600.00"
3235619,5644519,Associated Cleaning Contractors#Champion Cleaning Services Group,15/10/2018,26101,Contract Cleaning,Childrens Services,Technical Innovation Centre,"1,736.03"
39044,5649238,AUTISTIC SOCIETY GREATER MANCHESTER AREA,15/10/2018,52200,Contracted Services,Childrens Services,Admin Commissioning,"2,500.00"
2457290,5599651,AXCIS EDUCATION RECRUITMENT,15/10/2018,53100,Agency Staff  Fulltime,Childrens Services,Early Intervention Team,675.00
2457290,5621555,AXCIS EDUCATION RECRUITMENT,29/10/2018,53100,Agency Staff  Fulltime,Childrens Services,Early Intervention Team,675.00
2457290,5640441,AXCIS EDUCATION RECRUITMENT,18/10/2018,53100,Agency Staff  Fulltime,Childrens Services,Early Intervention Team,675.00
2457290,5644565,AXCIS EDUCATION RECRUITMENT,18/10/2018,53100,Agency Staff  Fulltime,Childrens Services,Early Intervention Team,675.00
2457290,5675439,AXCIS EDUCATION RECRUITMENT,15/10/2018,53100,Agency Staff  Fulltime,Childrens Services,Early Intervention Team,675.00
6111,5639443,BADENOCH & CLARK,15/10/2018,53102,Agency Staff  Other,Childrens Services,Integrated Commissioning,"1,824.16"
6111,5626063,BADENOCH & CLARK,29/10/2018,53102,Agency Staff  Other,Childrens Services,Integrated Commissioning,"8,664.76"
4167967,5629486,Baltimore Consulting Ltd,15/10/2018,53102,Agency Staff  Other,Childrens Services,Integrated Commissioning,"10,800.00"
7298,5631510,BARNARDOS,15/10/2018,52000,Vol Assoc Grants  General,Childrens Services,Res Serv Agency Placements,"11,085.43"
4637992,5630489,Berry RT TA RTB Education Consultancy,15/10/2018,53000,Private Contracted Services,Childrens Services,Educational Improvement - Sec,"1,500.00"
7401,5615448,Blackburn with Darwen Borough Council,15/10/2018,52200,Contracted Services,Childrens Services,Music Serv - BwD,"71,668.38"
7401,5617113,Blackburn with Darwen Borough Council,18/10/2018,22004,Room Hire,Childrens Services,Music Serv - BwD,640.00
4685165,5618524,BOBTEACHES,25/10/2018,52200,Contracted Services,Childrens Services,Music Serv - BwD,"2,164.82"
3558671,5667595,Bolton at Home Ltd#RENTS,11/10/2018,52200,Contracted Services,Childrens Services,Emergency Duty Team,"2,666.62"
7431,5616729,BOLTON BLINDS T/A BLINDTEX,18/10/2018,40150,Office Furniture Purchase,Childrens Services,Harvey CC,"2,289.53"
7431,5616731,BOLTON BLINDS T/A BLINDTEX,11/10/2018,40150,Office Furniture Purchase,Childrens Services,Harvey CC,"3,112.01"
3479681,5667613,Bolton Cares,11/10/2018,19100,Training Exps Tuition Fees,Childrens Services,WPD Project Link,600.00
7950,5630950,BOLTON TOY LIBRARY,18/10/2018,52200,Contracted Services,Childrens Services,Admin Commissioning,"1,750.00"
7950,5630949,BOLTON TOY LIBRARY,11/10/2018,52200,Contracted Services,Childrens Services,Admin Commissioning,"1,750.00"
2052,5667518,Bolton Under Fives Forum#BUFF,11/10/2018,19100,Training Exps Tuition Fees,Childrens Services,WPD Project Link,500.00
2052,5667505,Bolton Under Fives Forum#BUFF,04/10/2018,19100,Training Exps Tuition Fees,Childrens Services,WPD Project Link,650.00
7465,5633467,BOLTON YOUNG PERSONS HOUSING SCHEME#BYPHS,18/10/2018,52000,Vol Assoc Grants  General,Childrens Services,Res Serv Agency Placements,"2,420.28"
7465,5633470,BOLTON YOUNG PERSONS HOUSING SCHEME#BYPHS,25/10/2018,52000,Vol Assoc Grants  General,Childrens Services,Unaccompanied Asylum Seeking Children,"1,228.04"
2775307,5664550,Bryn Melyn Care Ltd,11/10/2018,52000,Vol Assoc Grants  General,Childrens Services,Res Serv Agency Placements,"24,268.57"
6180,5665493,Bury Council,08/10/2018,52200,Contracted Services,Childrens Services,Gtr Manchester Music Education Hub,"70,256.00"
1551594,5650503,BY THE BRIDGE NORTH WEST,18/10/2018,52000,Vol Assoc Grants  General,Childrens Services,Res Serv Agency Placements,"3,707.14"
1551594,5650499,BY THE BRIDGE NORTH WEST,18/10/2018,52000,Vol Assoc Grants  General,Childrens Services,Res Serv Agency Placements,"3,830.71"
1551594,5650500,BY THE BRIDGE NORTH WEST,18/10/2018,52000,Vol Assoc Grants  General,Childrens Services,Res Serv Agency Placements,"3,847.50"
1551594,5650504,BY THE BRIDGE NORTH WEST,23/10/2018,52000,Vol Assoc Grants  General,Childrens Services,Res Serv Agency Placements,"3,847.50"
1551594,5650502,BY THE BRIDGE NORTH WEST,08/10/2018,52000,Vol Assoc Grants  General,Childrens Services,Res Serv Agency Placements,"3,847.50"
1551594,5651436,BY THE BRIDGE NORTH WEST,18/10/2018,52000,Vol Assoc Grants  General,Childrens Services,Res Serv Agency Placements,"3,847.50"
1551594,5650505,BY THE BRIDGE NORTH WEST,08/10/2018,52000,Vol Assoc Grants  General,Childrens Services,Res Serv Agency Placements,"3,969.00"
1551594,5650484,BY THE BRIDGE NORTH WEST,04/10/2018,52000,Vol Assoc Grants  General,Childrens Services,Res Serv Agency Placements,"3,975.75"
1551594,5650493,BY THE BRIDGE NORTH WEST,25/10/2018,52000,Vol Assoc Grants  General,Childrens Services,Res Serv Agency Placements,"3,975.75"
1551594,5650490,BY THE BRIDGE NORTH WEST,11/10/2018,52000,Vol Assoc Grants  General,Childrens Services,Res Serv Agency Placements,"3,975.75"
1551594,5650486,BY THE BRIDGE NORTH WEST,25/10/2018,52000,Vol Assoc Grants  General,Childrens Services,Res Serv Agency Placements,"3,975.75"
1551594,5650488,BY THE BRIDGE NORTH WEST,18/10/2018,52000,Vol Assoc Grants  General,Childrens Services,Res Serv Agency Placements,"4,101.30"
390859,5621436,C R ATKINSON,04/10/2018,53000,Private Contracted Services,Childrens Services,Educational Improvement - Sec,990.00
2779298,5623575,Cambian Childcare Ltd,11/10/2018,52000,Vol Assoc Grants  General,Childrens Services,Res Serv Agency Placements,"21,257.01"
2779298,5623576,Cambian Childcare Ltd,08/10/2018,52000,Vol Assoc Grants  General,Childrens Services,Res Serv Agency Placements,"21,921.34"
6196,5629419,CARE TODAY CHILDRENS SERVICE,18/10/2018,52000,Vol Assoc Grants  General,Childrens Services,Res Serv Agency Placements,"1,337.16"
6196,5629420,CARE TODAY CHILDRENS SERVICE,25/10/2018,52000,Vol Assoc Grants  General,Childrens Services,Res Serv Agency Placements,"3,242.70"
6196,5629417,CARE TODAY CHILDRENS SERVICE,04/10/2018,52000,Vol Assoc Grants  General,Childrens Services,Res Serv Agency Placements,"4,005.00"
6196,5629418,CARE TODAY CHILDRENS SERVICE,11/10/2018,52000,Vol Assoc Grants  General,Childrens Services,Res Serv Agency Placements,"4,005.00"
6196,5631506,CARE TODAY CHILDRENS SERVICE,04/10/2018,52000,Vol Assoc Grants  General,Childrens Services,Res Serv Agency Placements,"10,478.70"
6196,5631499,CARE TODAY CHILDRENS SERVICE,29/10/2018,52000,Vol Assoc Grants  General,Childrens Services,Res Serv Agency Placements,"10,478.70"
6196,5631505,CARE TODAY CHILDRENS SERVICE,25/10/2018,52000,Vol Assoc Grants  General,Childrens Services,Res Serv Agency Placements,"27,857.10"
3643687,5638444,Care4Children Residential Services,25/10/2018,52000,Vol Assoc Grants  General,Childrens Services,Res Serv Agency Placements,"1,419.30"
3643687,5631515,Care4Children Residential Services,25/10/2018,52000,Vol Assoc Grants  General,Childrens Services,Res Serv Agency Placements,"25,823.62"
3081464,5650481,Caritas Care Ltd,04/10/2018,52000,Vol Assoc Grants  General,Childrens Services,Res Serv Agency Placements,"1,071.43"
9175,5623523,CH Bolton Limited,04/10/2018,20100,Day To Day Maintenance,Childrens Services,Castle Hill Youth Club (Yth Srv),"4,409.02"
1048773,5664446,CHESHIRE CENTRE FOR INDEPENDENT LIVING,04/10/2018,52000,Vol Assoc Grants  General,Childrens Services,Direct Payments,"10,280.75"
6131,5630599,CHILD ACTION NORTHWEST,08/10/2018,52200,Contracted Services,Childrens Services,Youth Offending Team,"1,806.95"
6131,5629421,CHILD ACTION NORTHWEST,08/10/2018,52000,Vol Assoc Grants  General,Childrens Services,Res Serv Agency Placements,"4,304.70"
4677992,5616716,Clitheroe Guitar Studio,18/10/2018,52200,Contracted Services,Childrens Services,Music Serv - BwD,"1,984.00"
4888749,5598551,CNS Media Ltd,11/10/2018,48202,General Publicity,Childrens Services,Regional Adoption Agency (RAA),"1,704.00"
4805084,5623446,Companion Support Services Limited,15/10/2018,52000,Vol Assoc Grants  General,Childrens Services,Res Serv Agency Placements,"6,085.80"
4805084,5623436,Companion Support Services Limited,11/10/2018,52000,Vol Assoc Grants  General,Childrens Services,Res Serv Agency Placements,"19,345.80"
3026369,5629442,Compass Fostering North Limited,23/10/2018,52000,Vol Assoc Grants  General,Childrens Services,Res Serv Agency Placements,"2,391.31"
3026369,5629440,Compass Fostering North Limited,29/10/2018,52000,Vol Assoc Grants  General,Childrens Services,Res Serv Agency Placements,"2,391.31"
3026369,5629441,Compass Fostering North Limited,11/10/2018,52000,Vol Assoc Grants  General,Childrens Services,Res Serv Agency Placements,"2,657.01"
3026369,5629443,Compass Fostering North Limited,11/10/2018,52000,Vol Assoc Grants  General,Childrens Services,Res Serv Agency Placements,"3,454.33"
3026369,5631514,Compass Fostering North Limited,29/10/2018,52000,Vol Assoc Grants  General,Childrens Services,Res Serv Agency Placements,"5,270.00"
2807305,5616483,Coram,11/10/2018,48204,Promoting Events,Childrens Services,Regional Adoption Agency (RAA),900.00
3126683,5617370,CTS (Care Training Services) Ltd,11/10/2018,19100,Training Exps Tuition Fees,Childrens Services,WPD Project Link,900.00
4413954,5622474,Daniels Coaching,08/10/2018,52200,Contracted Services,Childrens Services,Bikeability,"1,620.00"
302830,5634503,DATASPACE,04/10/2018,48506,Records Storage,Childrens Services,Business Support  Children Social Care,827.95
2852305,5626197,David Phillips Furniture Ltd,08/10/2018,40110,Op Equip Furniture Purchase,Childrens Services,Harvey CC,699.00
2852305,5626193,David Phillips Furniture Ltd,08/10/2018,40110,Op Equip Furniture Purchase,Childrens Services,Harvey CC,699.00
2852305,5629463,David Phillips Furniture Ltd,25/10/2018,40110,Op Equip Furniture Purchase,Childrens Services,Harvey CC,"2,097.00"
4981,5618491,Deans Court Chambers,25/10/2018,48502,Legal Fees,Childrens Services,Management Team,650.00
125827,5625543,VHM UK MPS,15/10/2018,48509,Other Fees,Childrens Services,Child Prot Leaving Care Team,700.00
125827,5625020,ROYAL MAIL ONLINE SHOP,15/10/2018,45000,Postages Direct Costs,Childrens Services,Business Support    West District,912.00
125827,5625023,AMAZON MARKETPLACE UK,18/10/2018,40750,Text Books,Childrens Services,Business Support    West District,989.99
125827,5625827,ATG TICKETS,23/10/2018,48629,Miscellaneous Expenses,Childrens Services,Financial Admin,"1,638.00"
125827,5625073,WWW.ADASS.ORG.UK,08/10/2018,47103,Miscellaneous Grants,Childrens Services,Financial Admin,"1,140.00"
125827,5625818,SYKES COTTAGES,11/10/2018,46001,Staff Hotel Expenses,Childrens Services,Financial Admin,708.00
125827,5624502,FONE WAREHOUSE,11/10/2018,48631,Office Expenses  General,Childrens Services,Admin IT (Schools),"1,177.00"
6259,5616594,DELL CORPORATION LTD,02/10/2018,45400,Computer Purchase,Childrens Services,Admin IT (Schools),"3,497.64"
6259,5616595,DELL CORPORATION LTD,11/10/2018,45400,Computer Purchase,Childrens Services,Admin IT (Schools),"5,699.36"
3193,5671451,Durham County Council,11/10/2018,52000,Vol Assoc Grants  General,Childrens Services,Res Serv Agency Placements,"29,850.00"
1147813,5616510,ECM EDUCATION CONSULTANTS LTD,02/10/2018,52200,Contracted Services,Childrens Services,SIPs,600.00
1147813,5626396,ECM EDUCATION CONSULTANTS LTD,02/10/2018,52200,Contracted Services,Childrens Services,SIPs,"2,400.00"
3244671,5617106,Edstart Specialist Education Limited,02/10/2018,52200,Contracted Services,Childrens Services,Behaviour Support,"3,833.33"
3244671,5617107,Edstart Specialist Education Limited,29/10/2018,52200,Contracted Services,Childrens Services,Behaviour Support,"3,833.33"
3244671,5617108,Edstart Specialist Education Limited,29/10/2018,52200,Contracted Services,Childrens Services,Behaviour Support,"3,833.33"
3244671,5617109,Edstart Specialist Education Limited,04/10/2018,52200,Contracted Services,Childrens Services,Behaviour Support,"3,833.33"
3244671,5617110,Edstart Specialist Education Limited,11/10/2018,52200,Contracted Services,Childrens Services,Behaviour Support,"3,833.33"
46608,5618460,E-Partners Solutions Ltd,15/10/2018,48517,Fees/Expenses Schools,Childrens Services,Bolton Learning Alliance,"1,650.00"
187793,5598545,Exchange Chambers,11/10/2018,48502,Legal Fees,Childrens Services,Management Team,850.00
17844,5661473,FIELDINGS PORTER#10,18/10/2018,48629,Miscellaneous Expenses,Childrens Services,Contact & Direct Work,600.00
3430,5610436,FIRST MANCHESTER LTD & FIRST TRANSFORMING TRAVEL,02/10/2018,34401,Clients  Bus Fares,Childrens Services,Contact & Direct Work,"3,200.00"
2535348,5661442,Forensic Testing Service Ltd,23/10/2018,48509,Other Fees,Childrens Services,Management Team,810.00
3463,5665501,FOSTER CARE ASSOCIATES LTD,02/10/2018,52000,Vol Assoc Grants  General,Childrens Services,Res Serv Agency Placements,"2,915.55"
3463,5665499,FOSTER CARE ASSOCIATES LTD,25/10/2018,52000,Vol Assoc Grants  General,Childrens Services,Res Serv Agency Placements,"3,069.00"
3463,5665503,FOSTER CARE ASSOCIATES LTD,15/10/2018,52000,Vol Assoc Grants  General,Childrens Services,Res Serv Agency Placements,"3,565.93"
3463,5665450,FOSTER CARE ASSOCIATES LTD,25/10/2018,52000,Vol Assoc Grants  General,Childrens Services,Res Serv Agency Placements,"3,565.93"
3463,5665449,FOSTER CARE ASSOCIATES LTD,15/10/2018,52000,Vol Assoc Grants  General,Childrens Services,Res Serv Agency Placements,"3,782.62"
3025364,5651468,Fostering Ltd,25/10/2018,52000,Vol Assoc Grants  General,Childrens Services,Res Serv Agency Placements,727.50
3025364,5651470,Fostering Ltd,11/10/2018,52000,Vol Assoc Grants  General,Childrens Services,Res Serv Agency Placements,727.50
3025364,5651472,Fostering Ltd,11/10/2018,52000,Vol Assoc Grants  General,Childrens Services,Res Serv Agency Placements,799.00
3025364,5651469,Fostering Ltd,02/10/2018,52000,Vol Assoc Grants  General,Childrens Services,Res Serv Agency Placements,799.00
220061,5621547,GATENBYSANDERSON,02/10/2018,48509,Other Fees,Childrens Services,Admin DMT,"1,340.00"
220061,5616458,GATENBYSANDERSON,02/10/2018,48509,Other Fees,Childrens Services,Admin DMT,"2,010.00"
220061,5667648,GATENBYSANDERSON,18/10/2018,19000,Recruitment Advertising,Childrens Services,Admin DMT,"2,833.23"
220061,5648517,GATENBYSANDERSON,18/10/2018,19000,Recruitment Advertising,Childrens Services,Admin DMT,"4,132.50"
220061,5664561,GATENBYSANDERSON,25/10/2018,19000,Recruitment Advertising,Childrens Services,Admin DMT,"8,302.66"
220061,5626086,GATENBYSANDERSON,25/10/2018,52200,Contracted Services,Childrens Services,Admin Directorate,"15,660.00"
4874745,5633468,Gateway Outsource Solutions Limited,23/10/2018,53000,Private Contracted Services,Childrens Services,Admin IT (Schools),630.00
4874745,5617471,Gateway Outsource Solutions Limited,08/10/2018,53000,Private Contracted Services,Childrens Services,Admin IT (Schools),700.00
4874745,5617472,Gateway Outsource Solutions Limited,23/10/2018,53000,Private Contracted Services,Childrens Services,Admin IT (Schools),700.00
4874745,5617473,Gateway Outsource Solutions Limited,08/10/2018,53000,Private Contracted Services,Childrens Services,Admin IT (Schools),700.00
4874745,5617456,Gateway Outsource Solutions Limited,25/10/2018,53000,Private Contracted Services,Childrens Services,Admin IT (Schools),700.00
4874745,5623586,Gateway Outsource Solutions Limited,18/10/2018,53000,Private Contracted Services,Childrens Services,Admin IT (Schools),700.00
194355,5648511,GLENDALE GUEST HOUSE,02/10/2018,44054,Other Clients Services,Childrens Services,Referral & Assessment Team,"1,000.00"
170064,5667558,GORDON ALSTON#ALSTON ASSOCIATES,04/10/2018,52200,Contracted Services,Childrens Services,SIPs,600.00
67033,5626059,GRAFFIX SYSTEMS LIMITED,02/10/2018,45430,Computer Software,Childrens Services,Troubled Families,"10,000.00"
630578,5641438,HART PSYCHOLOGICAL CONSULTING,02/10/2018,48509,Other Fees,Childrens Services,Management Team,"2,967.80"
4701023,5630908,Hastings Cars NW Limited,02/10/2018,34402,Clients  Taxi Fares,Childrens Services,Contact & Direct Work,864.00
146379,5662594,HEARTLIFT,02/10/2018,52200,Contracted Services,Childrens Services,Admin Commissioning,"10,000.00"
2729316,5623472,Hexagon Care Services Ltd,02/10/2018,52000,Vol Assoc Grants  General,Childrens Services,Res Serv Agency Placements,"10,200.00"
2729316,5671448,Hexagon Care Services Ltd,23/10/2018,52000,Vol Assoc Grants  General,Childrens Services,Res Serv Agency Placements,"12,835.72"
2729316,5664552,Hexagon Care Services Ltd,25/10/2018,52000,Vol Assoc Grants  General,Childrens Services,Res Serv Agency Placements,"13,263.57"
2729316,5664558,Hexagon Care Services Ltd,25/10/2018,52000,Vol Assoc Grants  General,Childrens Services,Res Serv Agency Placements,"26,350.00"
2976300,5664492,Holistic Approach Ltd,25/10/2018,52000,Vol Assoc Grants  General,Childrens Services,Res Serv Agency Placements,"11,935.00"
2976300,5664494,Holistic Approach Ltd,04/10/2018,52000,Vol Assoc Grants  General,Childrens Services,Res Serv Agency Placements,"11,935.00"
2976300,5667462,Holistic Approach Ltd,04/10/2018,52000,Vol Assoc Grants  General,Childrens Services,Res Serv Agency Placements,"11,935.00"
2976300,5664500,Holistic Approach Ltd,04/10/2018,52000,Vol Assoc Grants  General,Childrens Services,Res Serv Agency Placements,"11,935.00"
2976300,5664501,Holistic Approach Ltd,04/10/2018,52000,Vol Assoc Grants  General,Childrens Services,Res Serv Agency Placements,"11,935.00"
2976300,5667459,Holistic Approach Ltd,04/10/2018,52000,Vol Assoc Grants  General,Childrens Services,Res Serv Agency Placements,"16,135.00"
3909,5633469,INFORMATION & DATA NETWORK SUPPLIES LTD#IDN,04/10/2018,45400,Computer Purchase,Childrens Services,Admin IT (Schools),"4,428.74"
4096954,5648912,Informed Assessment Limited,04/10/2018,19000,Recruitment Advertising,Childrens Services,Admin DMT,"3,527.70"
2822310,5629244,Inspire Community Services Ltd,04/10/2018,52200,Contracted Services,Childrens Services,Res Serv Agency Placements,"1,982.10"
2822310,5629344,Inspire Community Services Ltd,02/10/2018,52000,Vol Assoc Grants  General,Childrens Services,Res Serv Agency Placements,"1,242.75"
2822310,5629347,Inspire Community Services Ltd,29/10/2018,52000,Vol Assoc Grants  General,Childrens Services,Res Serv Agency Placements,"1,982.10"
2822310,5671477,Inspire Community Services Ltd,11/10/2018,52000,Vol Assoc Grants  General,Childrens Services,Res Serv Agency Placements,"1,982.10"
2822310,5631543,Inspire Community Services Ltd,02/10/2018,52000,Vol Assoc Grants  General,Childrens Services,Res Serv Agency Placements,"5,404.20"
2822310,5631546,Inspire Community Services Ltd,08/10/2018,52000,Vol Assoc Grants  General,Childrens Services,Res Serv Agency Placements,"6,313.35"
2822310,5629346,Inspire Community Services Ltd,08/10/2018,52000,Vol Assoc Grants  General,Childrens Services,Unaccompanied Asylum Seeking Children,"1,242.75"
2822310,5629351,Inspire Community Services Ltd,02/10/2018,52000,Vol Assoc Grants  General,Childrens Services,Unaccompanied Asylum Seeking Children,"1,242.75"
2822310,5671479,Inspire Community Services Ltd,02/10/2018,52000,Vol Assoc Grants  General,Childrens Services,Unaccompanied Asylum Seeking Children,"1,242.75"
2822310,5629349,Inspire Community Services Ltd,08/10/2018,52000,Vol Assoc Grants  General,Childrens Services,Unaccompanied Asylum Seeking Children,"1,255.20"
2822310,5629354,Inspire Community Services Ltd,08/10/2018,52000,Vol Assoc Grants  General,Childrens Services,Unaccompanied Asylum Seeking Children,"1,607.10"
4816031,5629480,IRG Advisors LLP T/A Odgers Interim,02/10/2018,48509,Other Fees,Childrens Services,Admin DMT,"10,400.00"
88701,5664474,Islington Council,02/10/2018,52000,Vol Assoc Grants  General,Childrens Services,Unaccompanied Asylum Seeking Children,"8,300.25"
2923333,5617272,J Linden Limited,02/10/2018,53100,Agency Staff  Fulltime,Childrens Services,Educational Improvement - Sec,"1,856.25"
138629,5626015,KEYS CHILDCARE LTD,02/10/2018,52000,Vol Assoc Grants  General,Childrens Services,Res Serv Agency Placements,"1,962.00"
138629,5623564,KEYS CHILDCARE LTD,02/10/2018,52000,Vol Assoc Grants  General,Childrens Services,Res Serv Agency Placements,"15,721.43"
4467,5626304,LANCASHIRE FAYRE,11/10/2018,41101,Catering ProvisionsFood,Childrens Services,Technical Innovation Centre,599.25
4467,5644545,LANCASHIRE FAYRE,02/10/2018,41101,Catering ProvisionsFood,Childrens Services,Technical Innovation Centre,709.66
3536653,5665442,Leaving Care Services Ltd T/A Pathway to Prospects Ltd,23/10/2018,52000,Vol Assoc Grants  General,Childrens Services,Res Serv Agency Placements,"1,386.00"
3536653,5629412,Leaving Care Services Ltd T/A Pathway to Prospects Ltd,02/10/2018,52000,Vol Assoc Grants  General,Childrens Services,Res Serv Agency Placements,"3,750.00"
3536653,5665543,Leaving Care Services Ltd T/A Pathway to Prospects Ltd,02/10/2018,52000,Vol Assoc Grants  General,Childrens Services,Res Serv Agency Placements,"3,875.00"
3536653,5629414,Leaving Care Services Ltd T/A Pathway to Prospects Ltd,02/10/2018,52000,Vol Assoc Grants  General,Childrens Services,Unaccompanied Asylum Seeking Children,"3,750.00"
3536653,5665541,Leaving Care Services Ltd T/A Pathway to Prospects Ltd,02/10/2018,52000,Vol Assoc Grants  General,Childrens Services,Unaccompanied Asylum Seeking Children,"3,875.00"
1104799,5631529,LIAM TRIPPIER SCHOOL IMPROVEMENT LTD,02/10/2018,52200,Contracted Services,Childrens Services,SIPs,600.00
1104799,5631529,LIAM TRIPPIER SCHOOL IMPROVEMENT LTD,02/10/2018,53000,Private Contracted Services,Childrens Services,SIPs,"3,671.61"
4843749,5633446,Lorimer Fostering,02/10/2018,52000,Vol Assoc Grants  General,Childrens Services,Res Serv Agency Placements,"3,432.14"
6461,5608473,Manchester Metropolitan University,23/10/2018,19100,Training Exps Tuition Fees,Childrens Services,WPD Project Link,850.00
6461,5608483,Manchester Metropolitan University,18/10/2018,19100,Training Exps Tuition Fees,Childrens Services,WPD Project Link,850.00
6461,5608482,Manchester Metropolitan University,18/10/2018,19100,Training Exps Tuition Fees,Childrens Services,WPD Project Link,850.00
6461,5608486,Manchester Metropolitan University,02/10/2018,19100,Training Exps Tuition Fees,Childrens Services,WPD Project Link,850.00
6461,5608474,Manchester Metropolitan University,18/10/2018,19100,Training Exps Tuition Fees,Childrens Services,WPD Project Link,850.00
6461,5608472,Manchester Metropolitan University,18/10/2018,19100,Training Exps Tuition Fees,Childrens Services,WPD Project Link,850.00
6461,5608495,Manchester Metropolitan University,18/10/2018,19100,Training Exps Tuition Fees,Childrens Services,WPD Project Link,850.00
4939762,5659506,Metro Boxing Club,23/10/2018,40100,Operational Equipment Purchase,Childrens Services,Castle Hill Youth Club (Yth Srv),"2,000.00"
4827062,5644528,Mr Barton Maths Limited,02/10/2018,48509,Other Fees,Childrens Services,Bolton Learning Alliance,"1,000.00"
187,5671459,NEW HORIZONS (STOCKPORT) LTD,29/10/2018,52000,Vol Assoc Grants  General,Childrens Services,Res Serv Agency Placements,"13,200.00"
3057458,5671470,"Next Stage ""A Way Forward"" Youth Development Limited",25/10/2018,52000,Vol Assoc Grants  General,Childrens Services,Res Serv Agency Placements,"4,805.00"
3057458,5671464,"Next Stage ""A Way Forward"" Youth Development Limited",02/10/2018,52000,Vol Assoc Grants  General,Childrens Services,Res Serv Agency Placements,"4,805.00"
3057458,5671457,"Next Stage ""A Way Forward"" Youth Development Limited",18/10/2018,52000,Vol Assoc Grants  General,Childrens Services,Res Serv Agency Placements,"4,805.00"
3057458,5671473,"Next Stage ""A Way Forward"" Youth Development Limited",02/10/2018,52000,Vol Assoc Grants  General,Childrens Services,Res Serv Agency Placements,"4,805.00"
3057458,5671467,"Next Stage ""A Way Forward"" Youth Development Limited",02/10/2018,52000,Vol Assoc Grants  General,Childrens Services,Res Serv Agency Placements,"4,805.00"
3057458,5671462,"Next Stage ""A Way Forward"" Youth Development Limited",02/10/2018,52000,Vol Assoc Grants  General,Childrens Services,Res Serv Agency Placements,"4,805.00"
2535411,5623534,Next Stage 4 Life,02/10/2018,52000,Vol Assoc Grants  General,Childrens Services,Res Serv Agency Placements,"34,055.67"
2535411,5623533,Next Stage 4 Life,02/10/2018,52000,Vol Assoc Grants  General,Childrens Services,Res Serv Agency Placements,"34,055.67"
2709387,5625906,Nine St John Street,02/10/2018,48502,Legal Fees,Childrens Services,Management Team,500.00
4909749,5618471,Nine St John Street,02/10/2018,48502,Legal Fees,Childrens Services,Management Team,550.00
4909749,5618474,Nine St John Street,18/10/2018,48502,Legal Fees,Childrens Services,Management Team,650.00
4909749,5660469,Nine St John Street,02/10/2018,48502,Legal Fees,Childrens Services,Management Team,"2,500.00"
1390052,5660468,Nine St John Street,02/10/2018,48502,Legal Fees,Childrens Services,Management Team,650.00
1390052,5641446,Nine St John Street,02/10/2018,48502,Legal Fees,Childrens Services,Management Team,"1,300.00"
203434,5629525,NORTHERN EDUCATION,02/10/2018,53102,Agency Staff  Other,Childrens Services,Educational Improvement - Sec,"3,660.00"
203434,5629527,NORTHERN EDUCATION,18/10/2018,52200,Contracted Services,Childrens Services,Educational Improvement - Sec,610.00
10182,5630459,NPOWER LIMITED,11/10/2018,21100,Electricity  General,Childrens Services,Technical Innovation Centre,"1,176.32"
313,5665475,Oldham Council,25/10/2018,52200,Contracted Services,Childrens Services,Gtr Manchester Music Education Hub,"172,801.00"
3371648,5623531,Orange Grove Foster Care Ltd,04/10/2018,52000,Vol Assoc Grants  General,Childrens Services,Res Serv Agency Placements,"3,551.36"
22404,5638443,PARAMOUNT CARE AND SAFETY,25/10/2018,52000,Vol Assoc Grants  General,Childrens Services,Res Serv Agency Placements,"2,398.35"
22404,5638442,PARAMOUNT CARE AND SAFETY,23/10/2018,52000,Vol Assoc Grants  General,Childrens Services,Disability Serv External Provision,663.30
22404,5663440,PARAMOUNT CARE AND SAFETY,29/10/2018,52000,Vol Assoc Grants  General,Childrens Services,Disability Serv External Provision,"5,951.72"
40476,5626077,PAWS FOR KIDS,29/10/2018,52000,Vol Assoc Grants  General,Childrens Services,Quality Assurance and Improvement Team,"12,000.00"
4847756,5605435,People Who Foster Limited,18/10/2018,52000,Vol Assoc Grants  General,Childrens Services,Res Serv Agency Placements,"5,092.06"
111260,5623526,PERPETUAL FOSTERING LTD,15/10/2018,52000,Vol Assoc Grants  General,Childrens Services,Res Serv Agency Placements,"3,275.15"
111260,5623528,PERPETUAL FOSTERING LTD,23/10/2018,52000,Vol Assoc Grants  General,Childrens Services,Res Serv Agency Placements,"3,538.34"
111260,5623530,PERPETUAL FOSTERING LTD,18/10/2018,52000,Vol Assoc Grants  General,Childrens Services,Res Serv Agency Placements,"4,694.33"
162038,5622485,Prestwich Cycle Factors,08/10/2018,40100,Operational Equipment Purchase,Childrens Services,"Sport, Health & Inclusion General",546.55
2501345,5621626,Primesight Ltd#1,08/10/2018,48202,General Publicity,Childrens Services,Regional Adoption Agency (RAA),"2,719.06"
4578955,5606438,Psychology People,23/10/2018,48509,Other Fees,Childrens Services,Education Psychology Service,"1,560.00"
1457062,5629589,RED,29/10/2018,53000,Private Contracted Services,Childrens Services,SIPs,"1,560.00"
3438638,5626011,REDACTED - Personal Data,29/10/2018,52200,Contracted Services,Childrens Services,Music ServInstru & Vocal Teach,575.00
2284331,5622478,REDACTED - Personal Data,29/10/2018,48509,Other Fees,Childrens Services,"Sport, Health & Inclusion General",933.30
4669012,5668543,REDACTED - Personal Data,29/10/2018,52200,Contracted Services,Childrens Services,Music Serv - BwD,935.50
4669012,5616733,REDACTED - Personal Data,29/10/2018,52200,Contracted Services,Childrens Services,Music Serv - BwD,"1,146.16"
3326632,5622494,REDACTED - Personal Data,29/10/2018,52200,Contracted Services,Childrens Services,Bikeability,"1,160.00"
4664992,5626430,REDACTED - Personal Data,11/10/2018,52200,Contracted Services,Childrens Services,Music Serv - BwD,"1,150.25"
3460647,5629526,REDACTED - Personal Data,11/10/2018,48509,Other Fees,Childrens Services,Education Psychology Service,"6,400.00"
4674992,5616713,REDACTED - Personal Data,02/10/2018,52200,Contracted Services,Childrens Services,Music Serv - BwD,536.00
3581681,5622495,REDACTED - Personal Data,11/10/2018,52200,Contracted Services,Childrens Services,Bikeability,"1,085.00"
167010,5650462,REDACTED - Personal Data,08/10/2018,48630,NonStaff Training,Childrens Services,Disability Serv Bolton Shared Care,500.00
52347,5662567,REDACTED - Personal Data,08/10/2018,48509,Other Fees,Childrens Services,Management Team,586.48
4672992,5626542,REDACTED - Personal Data,25/10/2018,52200,Contracted Services,Childrens Services,Music Serv - BwD,"1,343.00"
4834814,5626158,REDACTED - Personal Data,25/10/2018,48511,Management Fees,Childrens Services,Quality Assurance and Improvement Team,"3,571.10"
4685166,5664594,REDACTED - Personal Data,18/10/2018,52200,Contracted Services,Childrens Services,Music Serv - BwD,"1,126.50"
3514655,5647436,REDACTED - Personal Data,15/10/2018,48509,Other Fees,Childrens Services,Education Psychology Service,"3,400.00"
37036,5650459,REDACTED - Personal Data,29/10/2018,48509,Other Fees,Childrens Services,Management Team,745.09
4674993,5618522,REDACTED - Personal Data,11/10/2018,52200,Contracted Services,Childrens Services,Music Serv - BwD,"2,013.50"
4930747,5636566,REDACTED - Personal Data,11/10/2018,48509,Other Fees,Childrens Services,Income Teaching & Learning CPD,700.00
4930747,5636567,REDACTED - Personal Data,15/10/2018,48509,Other Fees,Childrens Services,Income Teaching & Learning CPD,700.00
4930747,5667555,REDACTED - Personal Data,15/10/2018,48509,Other Fees,Childrens Services,Income Teaching & Learning CPD,700.00
4678992,5616642,REDACTED - Personal Data,18/10/2018,52200,Contracted Services,Childrens Services,Music Serv - BwD,"1,741.50"
3644685,5622471,REDACTED - Personal Data,23/10/2018,52200,Contracted Services,Childrens Services,In School Coaching,"1,862.50"
2797300,5622482,REDACTED - Personal Data,25/10/2018,52200,Contracted Services,Childrens Services,In School Coaching,"1,560.00"
4685028,5626543,REDACTED - Personal Data,11/10/2018,52200,Contracted Services,Childrens Services,Music Serv - BwD,833.50
1457062,5629589,REDACTED - Personal Data,15/10/2018,52200,Contracted Services,Childrens Services,SIPs,"1,800.00"
4828735,5616511,REDACTED - Personal Data,15/10/2018,53000,Private Contracted Services,Childrens Services,SIPs,900.00
3037367,5622484,REDACTED - Personal Data,15/10/2018,52200,Contracted Services,Childrens Services,In School Coaching,"1,140.00"
4482967,5646447,REDACTED - Personal Data,15/10/2018,53000,Private Contracted Services,Childrens Services,Educational Improvement - Sec,"1,250.00"
4663992,5618527,REDACTED - Personal Data,15/10/2018,52200,Contracted Services,Childrens Services,Music Serv - BwD,"1,220.48"
4685170,5668545,REDACTED - Personal Data,15/10/2018,52200,Contracted Services,Childrens Services,Music Serv - BwD,"3,818.00"
4843744,5622497,REDACTED - Personal Data,15/10/2018,52200,Contracted Services,Childrens Services,Bikeability,635.00
3490653,5648474,Reed Specialist Recruitment Ltd,15/10/2018,53102,Agency Staff  Other,Childrens Services,Children and Family Supp Svs West,611.09
3490653,5665558,Reed Specialist Recruitment Ltd,15/10/2018,53102,Agency Staff  Other,Childrens Services,Children and Family Supp Svs West,611.09
3490653,5625886,Reed Specialist Recruitment Ltd,15/10/2018,53102,Agency Staff  Other,Childrens Services,Children and Family Supp Svs West,"1,222.18"
3490653,5616629,Reed Specialist Recruitment Ltd,15/10/2018,53102,Agency Staff  Other,Childrens Services,Children and Family Supp Svs West,"1,222.18"
3490653,5616629,Reed Specialist Recruitment Ltd,15/10/2018,53102,Agency Staff  Other,Childrens Services,Start Well: Assessment & Contact Team,"1,213.91"
3490653,5648474,Reed Specialist Recruitment Ltd,25/10/2018,53102,Agency Staff  Other,Childrens Services,Start Well: Assessment & Contact Team,"1,222.18"
3490653,5625886,Reed Specialist Recruitment Ltd,11/10/2018,53102,Agency Staff  Other,Childrens Services,Start Well: Assessment & Contact Team,"1,780.96"
3490653,5665558,Reed Specialist Recruitment Ltd,18/10/2018,53102,Agency Staff  Other,Childrens Services,Start Well: Assessment & Contact Team,"1,833.27"
3490653,5625886,Reed Specialist Recruitment Ltd,18/10/2018,53102,Agency Staff  Other,Childrens Services,Quality & inclusion,700.42
3490653,5616629,Reed Specialist Recruitment Ltd,15/10/2018,53102,Agency Staff  Other,Childrens Services,Quality & inclusion,700.42
3490653,5648474,Reed Specialist Recruitment Ltd,25/10/2018,53102,Agency Staff  Other,Childrens Services,Quality & inclusion,700.42
3490653,5665558,Reed Specialist Recruitment Ltd,04/10/2018,53102,Agency Staff  Other,Childrens Services,Quality & inclusion,700.42
3490653,5625886,Reed Specialist Recruitment Ltd,02/10/2018,53102,Agency Staff  Other,Childrens Services,Res Serv Resource Mgmt Team,"1,020.19"
3490653,5616629,Reed Specialist Recruitment Ltd,25/10/2018,53102,Agency Staff  Other,Childrens Services,Res Serv Resource Mgmt Team,"1,020.19"
3490653,5648474,Reed Specialist Recruitment Ltd,04/10/2018,53102,Agency Staff  Other,Childrens Services,Res Serv Resource Mgmt Team,"1,020.19"
3490653,5665558,Reed Specialist Recruitment Ltd,11/10/2018,53102,Agency Staff  Other,Childrens Services,Res Serv Resource Mgmt Team,"1,020.19"
3490653,5665558,Reed Specialist Recruitment Ltd,02/10/2018,53102,Agency Staff  Other,Childrens Services,Conference and Reviewing,"3,530.84"
3490653,5625886,Reed Specialist Recruitment Ltd,23/10/2018,53102,Agency Staff  Other,Childrens Services,Conference and Reviewing,"3,793.40"
3490653,5616629,Reed Specialist Recruitment Ltd,23/10/2018,53102,Agency Staff  Other,Childrens Services,Conference and Reviewing,"3,793.40"
3490653,5648474,Reed Specialist Recruitment Ltd,25/10/2018,53102,Agency Staff  Other,Childrens Services,Conference and Reviewing,"3,793.40"
3490653,5648474,Reed Specialist Recruitment Ltd,25/10/2018,53102,Agency Staff  Other,Childrens Services,Child Prot Leaving Care Team,592.55
3490653,5616629,Reed Specialist Recruitment Ltd,23/10/2018,53102,Agency Staff  Other,Childrens Services,Child Prot Leaving Care Team,730.81
3490653,5665558,Reed Specialist Recruitment Ltd,25/10/2018,53102,Agency Staff  Other,Childrens Services,Child Prot Leaving Care Team,730.81
3490653,5625886,Reed Specialist Recruitment Ltd,25/10/2018,53102,Agency Staff  Other,Childrens Services,Business Support  Children Social Care,503.24
3490653,5648474,Reed Specialist Recruitment Ltd,25/10/2018,53102,Agency Staff  Other,Childrens Services,Business Support  Children Social Care,503.24
3490653,5665558,Reed Specialist Recruitment Ltd,25/10/2018,53102,Agency Staff  Other,Childrens Services,Business Support  Children Social Care,503.24
3490653,5625886,Reed Specialist Recruitment Ltd,23/10/2018,53102,Agency Staff  Other,Childrens Services,Regional Adoption Agency (RAA),605.62
3490653,5616629,Reed Specialist Recruitment Ltd,20/09/2018,53102,Agency Staff  Other,Childrens Services,Regional Adoption Agency (RAA),"1,926.96"
3490653,5616629,Reed Specialist Recruitment Ltd,23/10/2018,53102,Agency Staff  Other,Childrens Services,FIAT,525.89
3490653,5648474,Reed Specialist Recruitment Ltd,18/10/2018,53102,Agency Staff  Other,Childrens Services,FIAT,549.32
3490653,5625886,Reed Specialist Recruitment Ltd,18/10/2018,53102,Agency Staff  Other,Childrens Services,Integrated Commissioning,"1,202.80"
3490653,5616629,Reed Specialist Recruitment Ltd,25/10/2018,53102,Agency Staff  Other,Childrens Services,Integrated Commissioning,"1,202.80"
3490653,5648474,Reed Specialist Recruitment Ltd,02/10/2018,53102,Agency Staff  Other,Childrens Services,Integrated Commissioning,"1,202.80"
3490653,5665558,Reed Specialist Recruitment Ltd,02/10/2018,53102,Agency Staff  Other,Childrens Services,Integrated Commissioning,"1,202.80"
3490653,5616629,Reed Specialist Recruitment Ltd,02/10/2018,53102,Agency Staff  Other,Childrens Services,Referral & Assessment Team,825.84
3490653,5665558,Reed Specialist Recruitment Ltd,02/10/2018,53102,Agency Staff  Other,Childrens Services,Referral & Assessment Team,"1,018.54"
3490653,5625886,Reed Specialist Recruitment Ltd,18/10/2018,53102,Agency Staff  Other,Childrens Services,Referral & Assessment Team,"1,844.38"
3490653,5648474,Reed Specialist Recruitment Ltd,15/10/2018,53102,Agency Staff  Other,Childrens Services,Referral & Assessment Team,"1,844.38"
3490653,5625886,Reed Specialist Recruitment Ltd,18/10/2018,53102,Agency Staff  Other,Childrens Services,Safeguarding Team,"2,862.92"
3490653,5665558,Reed Specialist Recruitment Ltd,08/10/2018,53102,Agency Staff  Other,Childrens Services,Safeguarding Team,"2,959.27"
3490653,5648474,Reed Specialist Recruitment Ltd,25/10/2018,53102,Agency Staff  Other,Childrens Services,Safeguarding Team,"3,021.22"
3490653,5616629,Reed Specialist Recruitment Ltd,11/10/2018,53102,Agency Staff  Other,Childrens Services,Safeguarding Team,"3,471.79"
3490653,5625886,Reed Specialist Recruitment Ltd,11/10/2018,53102,Agency Staff  Other,Childrens Services,LAC Team,"1,899.44"
3490653,5665558,Reed Specialist Recruitment Ltd,25/10/2018,53102,Agency Staff  Other,Childrens Services,LAC Team,"2,009.55"
3490653,5616629,Reed Specialist Recruitment Ltd,04/10/2018,53102,Agency Staff  Other,Childrens Services,LAC Team,"2,037.08"
3490653,5648474,Reed Specialist Recruitment Ltd,18/10/2018,53102,Agency Staff  Other,Childrens Services,LAC Team,"2,037.08"
4685013,5630509,ROC Northwest Limited,15/10/2018,52000,Vol Assoc Grants  General,Childrens Services,Res Serv Agency Placements,"14,142.90"
4685013,5630507,ROC Northwest Limited,18/10/2018,52000,Vol Assoc Grants  General,Childrens Services,Res Serv Agency Placements,"14,142.90"
3823770,5629245,Sakinas Healthcare Limited T/A SureCare Bolton,18/10/2018,52200,Contracted Services,Childrens Services,Disability Serv External Provision,642.32
10259,5665482,Salford City Council,04/10/2018,52200,Contracted Services,Childrens Services,Gtr Manchester Music Education Hub,"83,377.00"
46513,5623491,SCOTTISH & SOUTHERN ENERGY PLC,25/10/2018,21100,Electricity  General,Childrens Services,Harvey CC,986.74
46513,5623491,SCOTTISH & SOUTHERN ENERGY PLC,04/10/2018,21100,Electricity  General,Childrens Services,Tonge CC,"1,054.60"
252791,5626010,SEASHELL TRUST,29/10/2018,52000,Vol Assoc Grants  General,Childrens Services,Disability Serv External Provision,"2,618.95"
47832,5665551,SILK GROUP LTD,25/10/2018,43032,Office Stationery,Childrens Services,Connexions PAs,520.00
80311,5618489,St John's Buildings Barristers Chambers,11/10/2018,48502,Legal Fees,Childrens Services,Management Team,"2,350.00"
94691,5661469,St John's Buildings Barristers Chambers,11/10/2018,48502,Legal Fees,Childrens Services,Management Team,650.00
89825,5626009,St John's Buildings Barristers Chambers,11/10/2018,48502,Legal Fees,Childrens Services,Management Team,591.67
89825,5626013,St John's Buildings Barristers Chambers,11/10/2018,48502,Legal Fees,Childrens Services,Management Team,808.33
19413,5665506,STAGECOACH SERVICES LTD,11/10/2018,34401,Clients  Bus Fares,Childrens Services,Contact & Direct Work,715.00
798,5627440,Stockport MBC,29/10/2018,48509,Other Fees,Childrens Services,Gtr Manchester Music Education Hub,840.00
882,5617239,SWIIS FOSTER CARE LTD,18/10/2018,52000,Vol Assoc Grants  General,Childrens Services,Res Serv Agency Placements,760.48
882,5629308,SWIIS FOSTER CARE LTD,18/10/2018,52000,Vol Assoc Grants  General,Childrens Services,Res Serv Agency Placements,760.48
882,5644508,SWIIS FOSTER CARE LTD,18/10/2018,52000,Vol Assoc Grants  General,Childrens Services,Res Serv Agency Placements,760.48
912,5665483,Tameside MBC,11/10/2018,52200,Contracted Services,Childrens Services,Gtr Manchester Music Education Hub,"87,252.00"
2515296,5626519,THE UK ASSOCIATION FOR MUSIC EDUCATION-MUSIC MARK,18/10/2018,19100,Training Exps Tuition Fees,Childrens Services,Music ServInstru & Vocal Teach,"2,550.00"
2916340,5629452,Three Circles Fostering Ltd,15/10/2018,52000,Vol Assoc Grants  General,Childrens Services,Res Serv Agency Placements,"1,717.71"
2916340,5629451,Three Circles Fostering Ltd,11/10/2018,52000,Vol Assoc Grants  General,Childrens Services,Res Serv Agency Placements,"3,420.00"
2980346,5622486,Town Sports,18/10/2018,52200,Contracted Services,Childrens Services,In School Coaching,"1,100.00"
4438955,5639438,UK Fostering Ltd,25/10/2018,52000,Vol Assoc Grants  General,Childrens Services,Res Serv Agency Placements,"3,021.30"
4438955,5639435,UK Fostering Ltd,04/10/2018,52000,Vol Assoc Grants  General,Childrens Services,Res Serv Agency Placements,"3,021.30"
4438955,5639436,UK Fostering Ltd,25/10/2018,52000,Vol Assoc Grants  General,Childrens Services,Res Serv Agency Placements,"3,471.30"
2418,5630514,UNITED UTILITIES WATER PLC#1,23/10/2018,22200,Water Charges  Metered,Childrens Services,Res Serv Mayor Street,525.11
8863,5608465,University of Salford,15/10/2018,19100,Training Exps Tuition Fees,Childrens Services,WPD Project Link,750.00
8863,5608457,University of Salford,15/10/2018,19100,Training Exps Tuition Fees,Childrens Services,WPD Project Link,750.00
8863,5621510,University of Salford,15/10/2018,19100,Training Exps Tuition Fees,Childrens Services,WPD Project Link,750.00
8863,5629532,University of Salford,15/10/2018,19100,Training Exps Tuition Fees,Childrens Services,WPD Project Link,750.00
8863,5608468,University of Salford,15/10/2018,19100,Training Exps Tuition Fees,Childrens Services,WPD Project Link,750.00
6151,5662580,URBAN OUTREACH (BOLTON),11/10/2018,55700,Grant Funded Expenditure,Childrens Services,Troubled Families,"24,800.00"
6151,5662587,URBAN OUTREACH (BOLTON),11/10/2018,52000,Vol Assoc Grants  General,Childrens Services,Integrated Commissioning,"15,000.00"
176718,5623588,VIRGIN MEDIA PAYMENTS LTD#VIRGIN MEDIA BUSINESS,11/10/2018,40100,Operational Equipment Purchase,Childrens Services,Admin IT (Schools),850.00
176718,5623587,VIRGIN MEDIA PAYMENTS LTD#VIRGIN MEDIA BUSINESS,25/10/2018,40100,Operational Equipment Purchase,Childrens Services,Admin IT (Schools),"14,229.00"
4661993,5616435,Waite Psychology Limited,23/10/2018,48509,Other Fees,Childrens Services,Education Psychology Service,"1,200.00"
8963,5617218,Wigan Council,23/10/2018,33201,Transport Hire,Childrens Services,Transport Service General,"4,613.04"
8963,5665484,Wigan Council,23/10/2018,52200,Contracted Services,Childrens Services,Gtr Manchester Music Education Hub,"110,485.00"
176898,5626535,AA PROJECTS LTD,15/10/2018,Z1051,Work in Progress Additions,Development & Regeneration,Development & Regeneration Capital,"2,000.00"
101393,5629464,ADAMS SELFSTORE,25/10/2018,22004,Room Hire,Development & Regeneration,Collections Access MUS,661.44
245759,5626069,ADVANCED BUILDING (NW) LTD,23/10/2018,48629,Miscellaneous Expenses,Development & Regeneration,LMA External Funded Projects,"23,500.00"
269069,5626064,AECOM LTD,25/10/2018,48509,Other Fees,Development & Regeneration,Dilapidations Revenue Spend,"57,623.00"
201037,5664439,Aldi Stores Ltd,15/10/2018,48509,Other Fees,Development & Regeneration,Marketing,"6,193.84"
2615382,5605450,Askews & Holts Library Services Ltd,29/10/2018,40753,Book Fund Expenditure,Development & Regeneration,Libraries Info. Systems,"1,679.92"
2615382,5648506,Askews & Holts Library Services Ltd,23/10/2018,40753,Book Fund Expenditure,Development & Regeneration,Libraries Info. Systems,"2,130.83"
2615382,5627452,Askews & Holts Library Services Ltd,23/10/2018,40753,Book Fund Expenditure,Development & Regeneration,Libraries Info. Systems,"2,202.31"
4887862,5598546,Autism For The Arts,23/10/2018,46004,Staff Training Courses,Development & Regeneration,LMA Library Mgmt,500.00
2944418,5626412,Axiell ALM Ltd,08/10/2018,45401,Computer Maintenance,Development & Regeneration,Libraries Info. Systems,"1,157.52"
4627005,5663436,Beacon Counselling Trust,25/10/2018,48509,Other Fees,Development & Regeneration,LMA External Funded Projects,"1,140.00"
7436,5659457,Bolton College#Was Community College,23/10/2018,52200,Contracted Services,Development & Regeneration,Adult Education,"163,862.00"
43551,5687110,BOLTON COMMUNITY LEISURE LTD,04/10/2018,52200,Contracted Services,Development & Regeneration,The Leisure Trust,"177,321.88"
4529959,5629502,Breakdown Bolton CIC,18/10/2018,48509,Other Fees,Development & Regeneration,LMA External Funded Projects,"3,184.00"
6182,5667620,C HORROCKS & SONS LTD,11/10/2018,52200,Contracted Services,Development & Regeneration,TC Leadership Board Projects,"1,477.55"
6182,5626420,C HORROCKS & SONS LTD,04/10/2018,40100,Operational Equipment Purchase,Development & Regeneration,LMA Library Mgmt,595.32
3623684,5640502,CMS Cameron McKenna Nabarro Olswang LLP,15/10/2018,48509,Other Fees,Development & Regeneration,Development Management,"1,552.50"
435415,5616662,CORNFLOWER LIMITED,15/10/2018,40613,Goods for Resale,Development & Regeneration,LMA Retail,"1,202.50"
125827,5623631,REDACTED - Personal Data,15/10/2018,48629,Miscellaneous Expenses,Development & Regeneration,LMA Promotions,570.00
125827,5623637,AMAZON MARKETPLACE UK,15/10/2018,48629,Miscellaneous Expenses,Development & Regeneration,LMA Promotions,964.00
125827,5625152,SQ CHEF TO GO,15/10/2018,41101,Catering ProvisionsFood,Development & Regeneration,Marketing,500.00
125827,5625153,SQ CHEF TO GO,15/10/2018,41101,Catering ProvisionsFood,Development & Regeneration,Marketing,500.00
125827,5625159,SQ CHEF TO GO,15/10/2018,41101,Catering ProvisionsFood,Development & Regeneration,Marketing,500.00
125827,5625160,SQ CHEF TO GO,15/10/2018,41101,Catering ProvisionsFood,Development & Regeneration,Marketing,500.00
125827,5625161,SQ CHEF TO GO,15/10/2018,41101,Catering ProvisionsFood,Development & Regeneration,Marketing,500.00
125827,5625162,SQ CHEF TO GO,15/10/2018,41101,Catering ProvisionsFood,Development & Regeneration,Marketing,500.00
125827,5625163,SQ CHEF TO GO,15/10/2018,41101,Catering ProvisionsFood,Development & Regeneration,Marketing,500.00
125827,5625149,THE CHURCH GREEN,15/10/2018,48207,Hospitality,Development & Regeneration,Marketing,"2,000.00"
62794,5626455,Direct Communications Radio Services Ltd,15/10/2018,40102,Operational Equipment Rental,Development & Regeneration,Marketing,574.00
362467,5664462,ERIC WRIGHT FACILITIES MANAGEMENT,15/10/2018,22001,Buildings Service Charge,Development & Regeneration,Libraries - Breightmet,"7,888.38"
362467,5629477,ERIC WRIGHT FACILITIES MANAGEMENT,04/10/2018,21100,Electricity  General,Development & Regeneration,BoltonOne Leisure,"9,104.55"
362467,5615456,ERIC WRIGHT FACILITIES MANAGEMENT,18/10/2018,21100,Electricity  General,Development & Regeneration,BoltonOne Leisure,"17,932.65"
362467,5615456,ERIC WRIGHT FACILITIES MANAGEMENT,04/10/2018,22200,Water Charges  Metered,Development & Regeneration,BoltonOne Leisure,"3,295.73"
362467,5629477,ERIC WRIGHT FACILITIES MANAGEMENT,04/10/2018,22200,Water Charges  Metered,Development & Regeneration,BoltonOne Leisure,"4,482.92"
2694323,5608499,Event Technical Support Limited,25/10/2018,40102,Operational Equipment Rental,Development & Regeneration,Marketing,"1,360.00"
2694323,5613610,Event Technical Support Limited,02/10/2018,40102,Operational Equipment Rental,Development & Regeneration,Marketing,"4,390.00"
37884,5608456,Framearound Limited,18/10/2018,48600,Exhibits Purchase,Development & Regeneration,Collections Access MUS,919.00
1432045,5626041,GARDINER & THEOBALD LLP,18/10/2018,Z1051,Work in Progress Additions,Development & Regeneration,Development & Regeneration Capital,"2,891.00"
1667290,5630501,GAZPROM MARKETING & RETAIL LTD,29/10/2018,21200,Gas  General,Development & Regeneration,Smithills Hall Museum,954.63
3430627,5598555,Geldards LLP,02/10/2018,Z1051,Work in Progress Additions,Development & Regeneration,Development & Regeneration Capital,"6,500.00"
3398627,5626207,Greengrape Solutions,02/10/2018,53102,Agency Staff  Other,Development & Regeneration,The Work Programme,693.75
3398627,5634609,Greengrape Solutions,04/10/2018,53102,Agency Staff  Other,Development & Regeneration,The Work Programme,693.75
3398627,5626207,Greengrape Solutions,02/10/2018,53102,Agency Staff  Other,Development & Regeneration,Skills For Employment,693.75
4845774,5649206,Harrisons Worsley Limited T/A Chef To Go,02/10/2018,48205,Promoting Bolton,Development & Regeneration,LMA Promotions,"3,480.00"
3250620,5616712,Henry Riley LLP,25/10/2018,Z1051,Work in Progress Additions,Development & Regeneration,Development & Regeneration Capital,"1,250.00"
3250620,5617248,Henry Riley LLP,04/10/2018,Z1051,Work in Progress Additions,Development & Regeneration,Development & Regeneration Capital,"6,300.00"
2680340,5664435,Icescape Limited,11/10/2018,40102,Operational Equipment Rental,Development & Regeneration,Marketing,"23,027.60"
2680340,5663447,Icescape Limited,29/10/2018,40102,Operational Equipment Rental,Development & Regeneration,Marketing,"34,541.40"
1194842,5613437,IMPRESSION (BOLTON) LIMITED#1,04/10/2018,40100,Operational Equipment Purchase,Development & Regeneration,LMA Library Mgmt,700.00
1194842,5629100,IMPRESSION (BOLTON) LIMITED#1,15/10/2018,48509,Other Fees,Development & Regeneration,Marketing,990.00
6399,5640439,J DICKINSON & SONS (HORWICH) LTD#2,04/10/2018,40601,General Materials,Development & Regeneration,Marketing,"1,166.44"
4036,5619502,J W WHITTLE LIMITED#STORE-AWAY ARCHIVE FACILITIES,25/10/2018,22006,Rent of Storage Facilities,Development & Regeneration,Museum Premises,552.00
4036,5629465,J W WHITTLE LIMITED#STORE-AWAY ARCHIVE FACILITIES,25/10/2018,22006,Rent of Storage Facilities,Development & Regeneration,Museum Premises,552.00
4036,5619501,J W WHITTLE LIMITED#STORE-AWAY ARCHIVE FACILITIES,11/10/2018,22006,Rent of Storage Facilities,Development & Regeneration,Museum Premises,720.00
1122809,5616532,JONES LIGHTING LTD,11/10/2018,40610,Direct Materials,Development & Regeneration,Marketing,"1,575.00"
1122809,5616531,JONES LIGHTING LTD,29/10/2018,40610,Direct Materials,Development & Regeneration,Marketing,"2,520.00"
1122809,5667485,JONES LIGHTING LTD,08/10/2018,47106,Xmas Lights,Development & Regeneration,Departmental Contingency,"1,461.00"
4852743,5626017,Kings chambers,11/10/2018,48502,Legal Fees,Development & Regeneration,Development Management,"1,113.75"
119950,5619448,MEACO MEASUREMENT & CONTROL LTD#MEACO MEASUREMENT & CONTROL SOLUTIONS LTD,29/10/2018,40100,Operational Equipment Purchase,Development & Regeneration,LMA Library Mgmt,"1,800.00"
2212370,5671461,MHG (SUPPLIES) LTD,25/10/2018,43032,Office Stationery,Development & Regeneration,LMA Library Mgmt,896.50
4929745,5636460,Miller Metcalfe Commercial,11/10/2018,Z1051,Work in Progress Additions,Development & Regeneration,Development & Regeneration Capital,"2,000.00"
3473644,5639439,Mindography,18/10/2018,48509,Other Fees,Development & Regeneration,LMA External Funded Projects,526.79
9982,5662557,NATIONAL CAR PARKS LTD#NCP,15/10/2018,37100,Car Parking,Development & Regeneration,D&R Departmental Account,"17,160.38"
299684,5616457,NATURE PLANET APS,18/10/2018,40613,Goods for Resale,Development & Regeneration,LMA Retail,996.30
2613325,5617128,Newsquest Media Group,18/10/2018,40700,Newspapers,Development & Regeneration,Divisional Development,590.46
2613325,5616603,Newsquest Media Group,23/10/2018,40700,Newspapers,Development & Regeneration,Divisional Development,635.88
2613325,5659563,Newsquest Media Group,08/10/2018,40700,Newspapers,Development & Regeneration,Divisional Development,726.72
2613325,5630970,Newsquest Media Group,11/10/2018,40700,Newspapers,Development & Regeneration,Divisional Development,"18,773.66"
10182,5630459,NPOWER LIMITED,23/10/2018,21100,Electricity  General,Development & Regeneration,The Leverhulme Centre,"1,244.05"
6526,5664444,Octagon Theatre Trust Ltd,29/10/2018,48501,Artistes Fees,Development & Regeneration,Marketing,"5,085.20"
6526,5615453,Octagon Theatre Trust Ltd,25/10/2018,47103,Miscellaneous Grants,Development & Regeneration,The Octagon,"36,345.00"
4300955,5667610,Peron Plastics Limited,15/10/2018,48600,Exhibits Purchase,Development & Regeneration,LMA External Funded Projects,"1,780.00"
4300955,5664493,Peron Plastics Limited,25/10/2018,48600,Exhibits Purchase,Development & Regeneration,LMA External Funded Projects,"8,003.00"
6553,5648503,PETERS LTD,11/10/2018,40753,Book Fund Expenditure,Development & Regeneration,Libraries Info. Systems,615.27
253035,5665536,REDACTED - Personal Data,11/10/2018,40140,Office Equipment Purchase,Development & Regeneration,Museum Archives,"7,840.00"
253035,5665538,REDACTED - Personal Data,25/10/2018,48509,Other Fees,Development & Regeneration,Museum Archives,"16,792.23"
6360,5677435,REDACTED - Personal Data,25/10/2018,20100,Day To Day Maintenance,Development & Regeneration,Dilapidations Revenue Spend,"1,510.77"
4838827,5626049,Reddish Demolition Limited,25/10/2018,Z1051,Work in Progress Additions,Development & Regeneration,Development & Regeneration Capital,"95,179.68"
3490653,5625886,Reed Specialist Recruitment Ltd,23/10/2018,53102,Agency Staff  Other,Development & Regeneration,Divisional Development,510.27
3490653,5616629,Reed Specialist Recruitment Ltd,23/10/2018,53102,Agency Staff  Other,Development & Regeneration,Divisional Development,510.27
3490653,5665558,Reed Specialist Recruitment Ltd,08/10/2018,53102,Agency Staff  Other,Development & Regeneration,Divisional Development,587.93
4843748,5617353,Saunatec,11/10/2018,20101,Programmed Maint. Work,Development & Regeneration,Middlebrook Arena,"3,929.00"
46513,5623491,SCOTTISH & SOUTHERN ENERGY PLC,18/10/2018,21100,Electricity  General,Development & Regeneration,Libraries - Harwood,"1,229.40"
46513,5623491,SCOTTISH & SOUTHERN ENERGY PLC,18/10/2018,21100,Electricity  General,Development & Regeneration,Libraries - Westhoughton,"1,445.11"
46513,5623491,SCOTTISH & SOUTHERN ENERGY PLC,25/10/2018,21100,Electricity  General,Development & Regeneration,Libraries - Horwich,510.94
46513,5623491,SCOTTISH & SOUTHERN ENERGY PLC,08/10/2018,21100,Electricity  General,Development & Regeneration,Smithills Hall Museum,"2,257.23"
3502645,5662556,Shoosmiths LLP,11/10/2018,48509,Other Fees,Development & Regeneration,Development Management,"1,479.00"
47314,5617111,SHOWSEC INTERNATIONAL LIMITED,11/10/2018,40102,Operational Equipment Rental,Development & Regeneration,Marketing,"1,456.24"
47314,5617225,SHOWSEC INTERNATIONAL LIMITED,29/10/2018,40102,Operational Equipment Rental,Development & Regeneration,Marketing,"1,460.00"
798,5649168,Stockport MBC,11/10/2018,45401,Computer Maintenance,Development & Regeneration,Libraries Info. Systems,"1,080.00"
15895,5623482,Superior Signs Limited,15/10/2018,Z1051,Work in Progress Additions,Development & Regeneration,Development & Regeneration Capital,"2,012.00"
3616774,5629513,Sushma Snacks,08/10/2018,48205,Promoting Bolton,Development & Regeneration,LMA Promotions,700.00
1548572,5617152,TRANSPORT FOR GREATER MANCHESTER,23/10/2018,48509,Other Fees,Development & Regeneration,PTP General Policy,800.00
6742,5648510,ULVERSCROFT LARGE PRINT BOOKS LIMITED,04/10/2018,40753,Book Fund Expenditure,Development & Regeneration,Libraries Info. Systems,633.20
150827,5665464,URBAN VISION PARTNERSHIP LTD#GMGU,04/10/2018,53102,Agency Staff  Other,Development & Regeneration,Divisional Development,"3,120.00"
150827,5665466,URBAN VISION PARTNERSHIP LTD#GMGU,04/10/2018,53102,Agency Staff  Other,Development & Regeneration,Divisional Development,"4,560.00"
150827,5631489,URBAN VISION PARTNERSHIP LTD#GMGU,04/10/2018,53102,Agency Staff  Other,Development & Regeneration,Divisional Development,"4,584.85"
150827,5631494,URBAN VISION PARTNERSHIP LTD#GMGU,23/10/2018,53102,Agency Staff  Other,Development & Regeneration,Divisional Development,"4,711.04"
150827,5631486,URBAN VISION PARTNERSHIP LTD#GMGU,29/10/2018,53102,Agency Staff  Other,Development & Regeneration,Divisional Development,"5,354.55"
150827,5665461,URBAN VISION PARTNERSHIP LTD#GMGU,11/10/2018,53102,Agency Staff  Other,Development & Regeneration,Divisional Development,"5,940.00"
150827,5631484,URBAN VISION PARTNERSHIP LTD#GMGU,23/10/2018,53102,Agency Staff  Other,Development & Regeneration,Divisional Development,"6,028.17"
150827,5665463,URBAN VISION PARTNERSHIP LTD#GMGU,08/10/2018,53102,Agency Staff  Other,Development & Regeneration,Divisional Development,"6,043.40"
150827,5665468,URBAN VISION PARTNERSHIP LTD#GMGU,29/10/2018,53102,Agency Staff  Other,Development & Regeneration,Divisional Development,"6,133.55"
150827,5631493,URBAN VISION PARTNERSHIP LTD#GMGU,11/10/2018,53102,Agency Staff  Other,Development & Regeneration,Divisional Development,"7,169.77"
77600,5671446,WEIGHTMANS LLP,02/10/2018,48502,Legal Fees,Development & Regeneration,Dilapidations Revenue Spend,"4,193.10"
1596322,5623455,WESTAIR REPRODUCTIONS LTD,02/10/2018,40613,Goods for Resale,Development & Regeneration,LMA Retail,667.20
204318,5605457,WILDE CONSULTANTS LTD,11/10/2018,Z1051,Work in Progress Additions,Development & Regeneration,Development & Regeneration Capital,"2,023.37"
2694364,5662607,A P Broome Landscapes Ltd,11/10/2018,52200,Contracted Services,Environmental Services,Activities and Operations,"6,271.00"
3160606,5644507,A1 Vehicle Dismantlers,08/10/2018,52200,Contracted Services,Environmental Services,Transport Support Service,725.00
6916,5646437,ACCESS DOORS SYSTEMS LTD,25/10/2018,40101,Operational Equipment Maint,Environmental Services,Markets  Rent Account,625.00
2055299,5603443,AEBI SCHMIDT UK LTD,11/10/2018,52200,Contracted Services,Environmental Services,Transport Support Service,"1,540.77"
2055299,5621625,AEBI SCHMIDT UK LTD,23/10/2018,36200,Uninsured Losses  Vehicles,Environmental Services,Transport Support Service,666.09
2055299,5635461,AEBI SCHMIDT UK LTD,25/10/2018,36200,Uninsured Losses  Vehicles,Environmental Services,Transport Support Service,934.56
269069,5629475,AECOM LTD,08/10/2018,48510,Consultancy Fees,Environmental Services,Management & Support,"15,000.00"
2052291,5667446,AGGREGATE INDUSTRIES UK LIMITED,23/10/2018,40610,Direct Materials,Environmental Services,Highway Services,570.00
2052291,5667450,AGGREGATE INDUSTRIES UK LIMITED,23/10/2018,40610,Direct Materials,Environmental Services,Highway Services,665.00
2052291,5667448,AGGREGATE INDUSTRIES UK LIMITED,11/10/2018,40610,Direct Materials,Environmental Services,Highway Services,760.00
2052291,5644537,AGGREGATE INDUSTRIES UK LIMITED,08/10/2018,40610,Direct Materials,Environmental Services,Highway Services,950.00
2052291,5644536,AGGREGATE INDUSTRIES UK LIMITED,25/10/2018,40610,Direct Materials,Environmental Services,Highway Services,"1,696.60"
2052291,5619510,AGGREGATE INDUSTRIES UK LIMITED,23/10/2018,40610,Direct Materials,Environmental Services,Highways Maintenance Billable Costs,634.33
2052291,5619509,AGGREGATE INDUSTRIES UK LIMITED,08/10/2018,40610,Direct Materials,Environmental Services,Highways Maintenance Billable Costs,716.87
232430,5617438,ALUMINIUM ACCESS PRODUCTS LTD,23/10/2018,40101,Operational Equipment Maint,Environmental Services,Albert Halls  Operations,"2,481.23"
6082,5626098,Anthony Axford Ltd,25/10/2018,40601,General Materials,Environmental Services,Bereavement Services,"1,474.60"
2913298,5644543,Arden Telecom Ltd,11/10/2018,45100,Telephones Direct Rental,Environmental Services,Markets  Rent Account,851.34
6433,5607448,ASD METAL SERVICES#KLOCKNER METAL SVS LTD,08/10/2018,40610,Direct Materials,Environmental Services,Sign Shop,"2,250.00"
6126,5644463,BETHELL CONSTRUCTION LTD,08/10/2018,20405,NonScheduled Work,Environmental Services,Assets,"9,403.40"
7841,5648493,BID GROUP LIMITED,23/10/2018,25108,Security Maintenance,Environmental Services,Depots,666.00
4925804,5631488,Billy Pearce Entertainments Limited,11/10/2018,48501,Artistes Fees,Environmental Services,Albert Halls  Operations,991.67
3558671,5640448,Bolton at Home Ltd#RENTS,25/10/2018,Z6011,CR Bal Hold A/c Exp,Environmental Services,Environmental Services Balance sheet,"1,488.51"
16302,5626083,BOLTON COMMUNITY TRANSPORT & FURNITURE SERVICES#BCT & FS,11/10/2018,52200,Contracted Services,Environmental Services,Waste,"4,540.00"
6149,5640491,BOLTON STONE RESTORATION LTD,08/10/2018,20100,Day To Day Maintenance,Environmental Services,Assets,"1,120.00"
6149,5640469,BOLTON STONE RESTORATION LTD,23/10/2018,20102,Health & Safety,Environmental Services,Assets,"1,431.00"
7481,5622447,BRADSHAW SHEET METAL WORKS LTD,25/10/2018,31305,Vehicle Servicing,Environmental Services,Transport Support Service,724.00
6180,5615462,Bury Council,11/10/2018,48502,Legal Fees,Environmental Services,Markets  Rent Account,902.51
6180,5649328,Bury Council,08/10/2018,48502,Legal Fees,Environmental Services,Markets  Rent Account,"1,938.71"
6185,5644462,C P DAVIDSON & SONS LTD,23/10/2018,52200,Contracted Services,Environmental Services,Transport Support Service,"1,495.04"
6185,5630494,C P DAVIDSON & SONS LTD,25/10/2018,33201,Transport Hire,Environmental Services,Transport Support Service,"4,400.00"
6185,5626088,C P DAVIDSON & SONS LTD,25/10/2018,33201,Transport Hire,Environmental Services,Transport Support Service,"5,100.00"
16410,5629496,CALLIGRAPHY UK LTD,11/10/2018,40610,Direct Materials,Environmental Services,Bereavement Services,911.86
3380631,5649166,Challenger Site Services LLP,08/10/2018,52200,Contracted Services,Environmental Services,Assets,"1,448.00"
3076507,5626071,Cheshire & Greater Manchester Community Rehabilitation Company,23/10/2018,55700,Grant Funded Expenditure,Environmental Services,Community Safety,"8,750.00"
1796290,5622500,COLLETT TRANSPORT SERVICES LTD#SPECIALIST FLEET SERVICES,23/10/2018,33201,Transport Hire,Environmental Services,Transport Support Service,"3,120.00"
2662360,5626303,Commsec Limited,08/10/2018,25105,Other Security,Environmental Services,Community Safety,"5,000.00"
1609294,5631474,CRAEMER UK LTD,25/10/2018,Z1051,Work in Progress Additions,Environmental Services,Environmental Services Balance sheet,"5,148.00"
1609294,5623520,CRAEMER UK LTD,11/10/2018,Z1051,Work in Progress Additions,Environmental Services,Environmental Services Balance sheet,"10,124.40"
1609294,5614435,CRAEMER UK LTD,23/10/2018,Z1051,Work in Progress Additions,Environmental Services,Environmental Services Balance sheet,"10,296.00"
1609294,5626073,CRAEMER UK LTD,25/10/2018,Z1051,Work in Progress Additions,Environmental Services,Environmental Services Balance sheet,"10,296.00"
1609294,5630481,CRAEMER UK LTD,11/10/2018,Z1051,Work in Progress Additions,Environmental Services,Environmental Services Balance sheet,"10,296.00"
1609294,5630483,CRAEMER UK LTD,08/10/2018,Z1051,Work in Progress Additions,Environmental Services,Environmental Services Balance sheet,"10,296.00"
6252,5616512,DANVIC TURF CARE LTD,08/10/2018,40601,General Materials,Environmental Services,Activities and Operations,"1,600.00"
4673992,5644492,Das-Automotive,23/10/2018,52200,Contracted Services,Environmental Services,Transport Support Service,"1,142.05"
4673992,5605453,Das-Automotive,11/10/2018,52200,Contracted Services,Environmental Services,Transport Support Service,"1,220.70"
302830,5634580,DATASPACE,08/10/2018,48506,Records Storage,Environmental Services,Highway Management,"1,181.93"
125827,5625653,TOM CHAMBERS LTD,23/10/2018,40609,Horticultural Materials,Environmental Services,Heaton Fold,900.00
125827,5625549,ALLIANCE DISPOSABLES,25/10/2018,26002,Other Materials,Environmental Services,Building Cleaning,815.00
125827,5623996,THE GOOD FOOD CHAIN LTD,08/10/2018,41101,Catering ProvisionsFood,Environmental Services,Catering,500.00
125827,5623997,THE GOOD FOOD CHAIN LTD,25/10/2018,41101,Catering ProvisionsFood,Environmental Services,Catering,500.00
125827,5623866,THE GOOD FOOD CHAIN LTD,11/10/2018,41101,Catering ProvisionsFood,Environmental Services,Catering,730.80
125827,5623663,CICELEY COMMERCIALS,23/10/2018,52200,Contracted Services,Environmental Services,Transport Support Service,"3,187.51"
125827,5623670,CICELEY COMMERCIALS,11/10/2018,31306,MOT Test Certificate,Environmental Services,Transport Support Service,590.83
125827,5623670,CICELEY COMMERCIALS,25/10/2018,31305,Vehicle Servicing,Environmental Services,Transport Support Service,"1,072.23"
125827,5625722,DVLA VEHICLE TAX,23/10/2018,31300,Vehicle Tax,Environmental Services,Transport Support Service,652.50
125827,5625723,DVLA VEHICLE TAX,08/10/2018,31300,Vehicle Tax,Environmental Services,Transport Support Service,652.50
125827,5625724,DVLA VEHICLE TAX,11/10/2018,31300,Vehicle Tax,Environmental Services,Transport Support Service,652.50
125827,5625730,DVLA VEHICLE TAX,25/10/2018,31300,Vehicle Tax,Environmental Services,Transport Support Service,652.50
125827,5625251,ELEVEN SPORTS MEDIA LIMITED,08/10/2018,48200,Advertising General,Environmental Services,Markets  Rent Account,965.24
125827,5624737,LOOP PUBLISHING LTD,23/10/2018,48200,Advertising General,Environmental Services,Albert Halls  Operations,500.00
125827,5625502,PEA SOUP LIMITED,08/10/2018,41101,Catering ProvisionsFood,Environmental Services,Albert Halls  Operations,787.02
2991,5617309,DESTITUTE ANIMAL SHELTER,11/10/2018,52200,Contracted Services,Environmental Services,Activities and Operations,542.50
2991,5617300,DESTITUTE ANIMAL SHELTER,23/10/2018,52200,Contracted Services,Environmental Services,Activities and Operations,"1,660.00"
2991,5617297,DESTITUTE ANIMAL SHELTER,25/10/2018,52200,Contracted Services,Environmental Services,Activities and Operations,"10,621.00"
3014,5674435,DICK LEIGH CHAINSAW SPECIALISTS,11/10/2018,40601,General Materials,Environmental Services,Activities and Operations,715.48
3041384,5625838,Duval FM Limited,08/10/2018,53102,Agency Staff  Other,Environmental Services,Security Services,"5,274.50"
3209,5616634,E N COXHEAD LTD,23/10/2018,40609,Horticultural Materials,Environmental Services,Heaton Fold,"1,353.60"
10232,5623463,ECE CONSULTANCY LTD,25/10/2018,20500,R & M Cremators,Environmental Services,Bereavement Services,"2,598.50"
10232,5603436,ECE CONSULTANCY LTD,25/10/2018,20500,R & M Cremators,Environmental Services,Bereavement Services,"2,600.00"
2417,5617095,ELECTRICITY NORTH WEST LIMITED#UNITED UTILITIES ELECTRICITY SERVICES LTD,11/10/2018,20501,Engineering Work,Environmental Services,Highway Services,610.70
2678366,5616663,Elmes Joinery,23/10/2018,48629,Miscellaneous Expenses,Environmental Services,Depots,502.00
2993461,5623439,Enterprise Flex-E-Rent,25/10/2018,33201,Transport Hire,Environmental Services,Transport Support Service,502.88
2993461,5622504,Enterprise Flex-E-Rent,08/10/2018,33201,Transport Hire,Environmental Services,Transport Support Service,562.80
2993461,5622508,Enterprise Flex-E-Rent,23/10/2018,33201,Transport Hire,Environmental Services,Transport Support Service,589.60
2993461,5622514,Enterprise Flex-E-Rent,11/10/2018,33201,Transport Hire,Environmental Services,Transport Support Service,616.00
2993461,5622513,Enterprise Flex-E-Rent,25/10/2018,33201,Transport Hire,Environmental Services,Transport Support Service,616.00
2993461,5623438,Enterprise Flex-E-Rent,08/10/2018,33201,Transport Hire,Environmental Services,Transport Support Service,616.00
2993461,5622503,Enterprise Flex-E-Rent,11/10/2018,33201,Transport Hire,Environmental Services,Transport Support Service,646.80
2993461,5622502,Enterprise Flex-E-Rent,23/10/2018,33201,Transport Hire,Environmental Services,Transport Support Service,646.80
2993461,5622505,Enterprise Flex-E-Rent,23/10/2018,33201,Transport Hire,Environmental Services,Transport Support Service,646.80
2993461,5622507,Enterprise Flex-E-Rent,11/10/2018,33201,Transport Hire,Environmental Services,Transport Support Service,677.60
2993461,5622506,Enterprise Flex-E-Rent,08/10/2018,33201,Transport Hire,Environmental Services,Transport Support Service,677.60
2993461,5622510,Enterprise Flex-E-Rent,25/10/2018,33201,Transport Hire,Environmental Services,Transport Support Service,708.40
2993461,5622509,Enterprise Flex-E-Rent,11/10/2018,33201,Transport Hire,Environmental Services,Transport Support Service,708.40
2993461,5644448,Enterprise Flex-E-Rent,08/10/2018,33201,Transport Hire,Environmental Services,Transport Support Service,708.40
14143,5644477,EQUITA LIMITED,23/10/2018,48509,Other Fees,Environmental Services,Parking Services  On Street,893.99
14143,5617243,EQUITA LIMITED,25/10/2018,48509,Other Fees,Environmental Services,Parking Services  On Street,"1,280.49"
14143,5667470,EQUITA LIMITED,25/10/2018,48509,Other Fees,Environmental Services,Parking Services  On Street,"1,828.40"
2775304,5630511,Eric Wright Civil Engineering Ltd,11/10/2018,20501,Engineering Work,Environmental Services,Highway Management,"107,267.00"
3376,5640506,F R SHARROCK LTD#SHARROCKS,08/10/2018,40101,Operational Equipment Maint,Environmental Services,Activities and Operations,"1,111.81"
3376,5662600,F R SHARROCK LTD#SHARROCKS,23/10/2018,40102,Operational Equipment Rental,Environmental Services,Activities and Operations,"4,997.49"
3376,5662600,F R SHARROCK LTD#SHARROCKS,25/10/2018,40102,Operational Equipment Rental,Environmental Services,Bereavement Services,510.00
1555984,5622460,FAUN ZOELLER (UK) LTD,23/10/2018,52200,Contracted Services,Environmental Services,Transport Support Service,709.50
1555984,5621615,FAUN ZOELLER (UK) LTD,08/10/2018,52200,Contracted Services,Environmental Services,Transport Support Service,"1,573.40"
1555984,5621616,FAUN ZOELLER (UK) LTD,25/10/2018,52200,Contracted Services,Environmental Services,Transport Support Service,"1,674.80"
1555984,5604445,FAUN ZOELLER (UK) LTD,11/10/2018,52200,Contracted Services,Environmental Services,Transport Support Service,"2,836.33"
1555984,5644484,FAUN ZOELLER (UK) LTD,11/10/2018,31305,Vehicle Servicing,Environmental Services,Transport Support Service,634.41
1555984,5644486,FAUN ZOELLER (UK) LTD,08/10/2018,31305,Vehicle Servicing,Environmental Services,Transport Support Service,646.30
1555984,5644485,FAUN ZOELLER (UK) LTD,25/10/2018,31305,Vehicle Servicing,Environmental Services,Transport Support Service,695.55
17844,5630844,FIELDINGS PORTER#10,08/10/2018,93120,Refunds,Environmental Services,Trade Waste,"1,227.60"
2156362,5618506,FLOORSTOCK LTD,25/10/2018,26000,Cleaning Materials,Environmental Services,Building Cleaning,"1,037.20"
16096,5644480,FUCHS LUBRICANTS (UK) PLC,08/10/2018,31305,Vehicle Servicing,Environmental Services,Transport Support Service,"1,236.71"
220061,5608443,GATENBYSANDERSON,23/10/2018,53102,Agency Staff  Other,Environmental Services,DMT,"4,060.00"
220061,5623511,GATENBYSANDERSON,25/10/2018,53102,Agency Staff  Other,Environmental Services,DMT,"4,060.00"
220061,5671763,GATENBYSANDERSON,08/10/2018,53102,Agency Staff  Other,Environmental Services,DMT,"4,060.00"
1667290,5630501,GAZPROM MARKETING & RETAIL LTD,25/10/2018,21200,Gas  General,Environmental Services,Bereavement Services,"5,030.34"
1667290,5630501,GAZPROM MARKETING & RETAIL LTD,23/10/2018,21200,Gas  General,Environmental Services,Depots,915.88
155974,5616558,GEM ARBORICULTURAL SERVICES,11/10/2018,52200,Contracted Services,Environmental Services,Assets,500.00
155974,5616557,GEM ARBORICULTURAL SERVICES,08/10/2018,52200,Contracted Services,Environmental Services,Assets,"2,000.00"
6336,5644473,GLASDON UK LTD,25/10/2018,Z1051,Work in Progress Additions,Environmental Services,Environmental Services Balance sheet,"3,886.67"
6336,5644495,GLASDON UK LTD,08/10/2018,Z1051,Work in Progress Additions,Environmental Services,Environmental Services Balance sheet,"3,886.67"
6336,5644493,GLASDON UK LTD,25/10/2018,Z1051,Work in Progress Additions,Environmental Services,Environmental Services Balance sheet,"3,886.67"
6336,5644498,GLASDON UK LTD,11/10/2018,Z1051,Work in Progress Additions,Environmental Services,Environmental Services Balance sheet,"3,886.67"
38071,5626033,GORDON MOON PROPERTIES#1,08/10/2018,22003,Ground Rent,Environmental Services,Assets,550.00
3974954,5630962,Greenwood Tree Services Ltd,23/10/2018,52200,Contracted Services,Environmental Services,Assets,600.00
3974954,5613556,Greenwood Tree Services Ltd,08/10/2018,52200,Contracted Services,Environmental Services,Assets,650.00
3974954,5668548,Greenwood Tree Services Ltd,25/10/2018,52200,Contracted Services,Environmental Services,Assets,800.00
3974954,5630963,Greenwood Tree Services Ltd,23/10/2018,52200,Contracted Services,Environmental Services,Assets,"1,200.00"
15577,5629528,GROUNDWORK LANDSCAPES LIMITED,11/10/2018,52200,Contracted Services,Environmental Services,Assets,"6,339.00"
3674,5617299,H & C (Plant Hire) Ltd,23/10/2018,33202,Plant Hire,Environmental Services,Highway Services,814.00
3674,5617310,H & C (Plant Hire) Ltd,11/10/2018,33202,Plant Hire,Environmental Services,Highways Maintenance Billable Costs,649.00
3674,5617303,H & C (Plant Hire) Ltd,08/10/2018,33202,Plant Hire,Environmental Services,Highways Maintenance Billable Costs,649.00
3674,5640435,H & C (Plant Hire) Ltd,25/10/2018,33202,Plant Hire,Environmental Services,Highways Maintenance Billable Costs,649.00
3674,5617298,H & C (Plant Hire) Ltd,25/10/2018,33202,Plant Hire,Environmental Services,Highways Maintenance Billable Costs,814.00
3674,5617295,H & C (Plant Hire) Ltd,25/10/2018,33202,Plant Hire,Environmental Services,Highways Maintenance Billable Costs,814.00
3674,5617293,H & C (Plant Hire) Ltd,11/10/2018,33202,Plant Hire,Environmental Services,Highways Maintenance Billable Costs,814.00
3674,5617289,H & C (Plant Hire) Ltd,04/10/2018,33202,Plant Hire,Environmental Services,Highways Maintenance Billable Costs,814.00
3674,5634588,H & C (Plant Hire) Ltd,11/10/2018,33202,Plant Hire,Environmental Services,Highways Maintenance Billable Costs,814.00
3674,5617268,H & C (Plant Hire) Ltd,25/10/2018,33202,Plant Hire,Environmental Services,Highways Maintenance Billable Costs,814.00
3674,5617267,H & C (Plant Hire) Ltd,18/10/2018,33202,Plant Hire,Environmental Services,Highways Maintenance Billable Costs,814.00
3674,5640454,H & C (Plant Hire) Ltd,18/10/2018,33202,Plant Hire,Environmental Services,Highways Maintenance Billable Costs,814.00
3674,5640457,H & C (Plant Hire) Ltd,25/10/2018,33202,Plant Hire,Environmental Services,Highways Maintenance Billable Costs,814.00
3674,5617296,H & C (Plant Hire) Ltd,08/10/2018,33202,Plant Hire,Environmental Services,Highways Maintenance Billable Costs,"1,424.00"
3674,5617287,H & C (Plant Hire) Ltd,02/10/2018,33202,Plant Hire,Environmental Services,Highways Maintenance Billable Costs,"1,498.00"
3674,5667440,H & C (Plant Hire) Ltd,02/10/2018,33202,Plant Hire,Environmental Services,Highways Maintenance Billable Costs,"2,755.00"
3674,5619503,H & C (Plant Hire) Ltd,29/10/2018,33202,Plant Hire,Environmental Services,Depots,814.00
3674,5619505,H & C (Plant Hire) Ltd,02/10/2018,33202,Plant Hire,Environmental Services,Depots,814.00
3674,5619506,H & C (Plant Hire) Ltd,18/10/2018,33202,Plant Hire,Environmental Services,Depots,814.00
3674,5635462,H & C (Plant Hire) Ltd,02/10/2018,33202,Plant Hire,Environmental Services,Depots,814.00
3674,5626153,H & C (Plant Hire) Ltd,11/10/2018,33202,Plant Hire,Environmental Services,Depots,"1,240.00"
3674,5619507,H & C (Plant Hire) Ltd,11/10/2018,33202,Plant Hire,Environmental Services,Depots,"2,442.00"
2299326,5607444,HAGS-SMP LTD,02/10/2018,40601,General Materials,Environmental Services,Activities and Operations,900.99
72283,5626092,HANDSHAKE LTD,02/10/2018,48501,Artistes Fees,Environmental Services,Albert Halls  Operations,"5,836.28"
3460669,5626084,ITW Limited,02/10/2018,40100,Operational Equipment Purchase,Environmental Services,Highway Services,"7,290.00"
267154,5644470,J A TYRE SERVICE LTD,02/10/2018,31303,Tyres,Environmental Services,Transport Support Service,528.40
267154,5621578,J A TYRE SERVICE LTD,02/10/2018,31303,Tyres,Environmental Services,Transport Support Service,575.20
267154,5621577,J A TYRE SERVICE LTD,02/10/2018,31303,Tyres,Environmental Services,Transport Support Service,613.95
267154,5644476,J A TYRE SERVICE LTD,02/10/2018,31303,Tyres,Environmental Services,Transport Support Service,616.45
3305634,5623464,J C Davies Plant Hire,11/10/2018,33202,Plant Hire,Environmental Services,Bereavement Services,"2,110.00"
3305634,5623465,J C Davies Plant Hire,15/10/2018,33202,Plant Hire,Environmental Services,Bereavement Services,"4,074.50"
93292,5606439,J CHARLTON (BOLTON) LTD,15/10/2018,52200,Contracted Services,Environmental Services,Transport Support Service,700.00
6399,5665607,J DICKINSON & SONS (HORWICH) LTD#2,02/10/2018,20501,Engineering Work,Environmental Services,Highway Services,521.97
6399,5619450,J DICKINSON & SONS (HORWICH) LTD#2,02/10/2018,20501,Engineering Work,Environmental Services,Highway Services,"1,174.43"
6399,5618450,J DICKINSON & SONS (HORWICH) LTD#2,02/10/2018,20501,Engineering Work,Environmental Services,Highway Services,"1,186.45"
6399,5640461,J DICKINSON & SONS (HORWICH) LTD#2,02/10/2018,20501,Engineering Work,Environmental Services,Highway Services,"1,667.21"
6399,5630655,J DICKINSON & SONS (HORWICH) LTD#2,02/10/2018,20501,Engineering Work,Environmental Services,Highway Services,"1,794.27"
6399,5636438,J DICKINSON & SONS (HORWICH) LTD#2,02/10/2018,20101,Programmed Maint. Work,Environmental Services,Highways Managers,526.96
6399,5649167,J DICKINSON & SONS (HORWICH) LTD#2,25/10/2018,53000,Private Contracted Services,Environmental Services,Activities and Operations,525.00
6401,5613608,J HOPKINS (CONTRACTORS) LTD,25/10/2018,20501,Engineering Work,Environmental Services,Highway Services,"5,040.00"
6401,5662609,J HOPKINS (CONTRACTORS) LTD,04/10/2018,20501,Engineering Work,Environmental Services,Highway Services,"5,040.00"
6401,5623529,J HOPKINS (CONTRACTORS) LTD,25/10/2018,20501,Engineering Work,Environmental Services,Highway Services,"6,232.00"
6401,5662582,J HOPKINS (CONTRACTORS) LTD,11/10/2018,20501,Engineering Work,Environmental Services,Highway Services,"7,560.00"
6401,5626226,J HOPKINS (CONTRACTORS) LTD,04/10/2018,20501,Engineering Work,Environmental Services,Highway Services,"8,064.00"
6401,5605475,J HOPKINS (CONTRACTORS) LTD,11/10/2018,40610,Direct Materials,Environmental Services,Highways Maintenance Billable Costs,"2,960.00"
6401,5626157,J HOPKINS (CONTRACTORS) LTD,25/10/2018,20501,Engineering Work,Environmental Services,Highways Maintenance Billable Costs,"1,720.00"
6401,5617338,J HOPKINS (CONTRACTORS) LTD,11/10/2018,20501,Engineering Work,Environmental Services,Highways Maintenance Billable Costs,"2,520.00"
6401,5644553,J HOPKINS (CONTRACTORS) LTD,15/10/2018,20501,Engineering Work,Environmental Services,Highways Maintenance Billable Costs,"3,080.00"
6401,5665602,J HOPKINS (CONTRACTORS) LTD,11/10/2018,20501,Engineering Work,Environmental Services,Highways Maintenance Billable Costs,"3,696.00"
6401,5609479,J HOPKINS (CONTRACTORS) LTD,11/10/2018,Z6011,CR Bal Hold A/c Exp,Environmental Services,Environmental Services Balance sheet,"3,942.92"
16022,5627483,JACOBS CERTIFICATED BAILIFFS#4,11/10/2018,48509,Other Fees,Environmental Services,Parking Services  On Street,"3,070.00"
16022,5676443,JACOBS CERTIFICATED BAILIFFS#4,18/10/2018,48509,Other Fees,Environmental Services,Parking Services  On Street,"4,222.75"
1122809,5667523,JONES LIGHTING LTD,23/10/2018,Z6011,CR Bal Hold A/c Exp,Environmental Services,Environmental Services Balance sheet,539.83
115484,5629102,KAYS TRAFFIC MANAGEMENT SYSTEMS LTD,15/10/2018,52200,Contracted Services,Environmental Services,Activities and Operations,"1,350.00"
115484,5629101,KAYS TRAFFIC MANAGEMENT SYSTEMS LTD,23/10/2018,52200,Contracted Services,Environmental Services,Activities and Operations,"1,480.00"
3765690,5644460,Keith Olive Decorators Limited,23/10/2018,52200,Contracted Services,Environmental Services,Activities and Operations,"6,218.00"
3765690,5651455,Keith Olive Decorators Limited,23/10/2018,20100,Day To Day Maintenance,Environmental Services,Bereavement Services,"1,986.00"
2207295,5650440,LARSEN MANUFACTURING LTD T/A LARSEN BUILDING PRODUCTS,23/10/2018,40601,General Materials,Environmental Services,Highways Maintenance Billable Costs,"3,680.00"
1919290,5622467,LEEDS COMMERCIAL LIMITED,15/10/2018,33201,Transport Hire,Environmental Services,Transport Support Service,"2,200.00"
1919290,5622469,LEEDS COMMERCIAL LIMITED,25/10/2018,33201,Transport Hire,Environmental Services,Transport Support Service,"2,600.00"
524532,5605437,LPW (EUROPE) LTD,15/10/2018,31305,Vehicle Servicing,Environmental Services,Transport Support Service,"1,260.00"
2782321,5649350,M B W Europe Limited,18/10/2018,20101,Programmed Maint. Work,Environmental Services,Activities and Operations,630.00
4792,5617097,MARTHALL TREE PRODUCTS LTD,18/10/2018,40601,General Materials,Environmental Services,Highways Maintenance Billable Costs,"1,044.89"
2910352,5617261,Martins Countryside Contracting Ltd,25/10/2018,20501,Engineering Work,Environmental Services,Engineering Drainage,577.30
2742398,5623450,N D Brown Ltd,25/10/2018,33201,Transport Hire,Environmental Services,Transport Support Service,"3,122.50"
2613325,5617123,Newsquest Media Group,23/10/2018,48200,Advertising General,Environmental Services,Highway Management,"1,373.50"
2613325,5617123,Newsquest Media Group,29/10/2018,48502,Legal Fees,Environmental Services,Engineering Drainage,981.07
2613325,5646441,Newsquest Media Group,23/10/2018,48200,Advertising General,Environmental Services,Markets  Rent Account,700.00
2112316,5623581,NORTHERN COMMERCIALS (MIRFIELD) LTD,29/10/2018,Z1051,Work in Progress Additions,Environmental Services,Environmental Services Balance sheet,"197,857.36"
2112316,5623583,NORTHERN COMMERCIALS (MIRFIELD) LTD,02/10/2018,Z1051,Work in Progress Additions,Environmental Services,Environmental Services Balance sheet,"197,857.36"
1838318,5664453,NORTHGATE VEHICLE HIRE LTD,08/10/2018,33201,Transport Hire,Environmental Services,Transport Support Service,"7,285.20"
1838318,5623441,NORTHGATE VEHICLE HIRE LTD,11/10/2018,36200,Uninsured Losses  Vehicles,Environmental Services,Transport Support Service,695.54
10182,5630459,NPOWER LIMITED,11/10/2018,21100,Electricity  General,Environmental Services,Assets,875.69
10182,5630459,NPOWER LIMITED,11/10/2018,21100,Electricity  General,Environmental Services,Bereavement Services,"2,849.07"
10182,5630459,NPOWER LIMITED,11/10/2018,21100,Electricity  General,Environmental Services,Markets  Rent Account,"14,029.30"
10182,5630459,NPOWER LIMITED,11/10/2018,21100,Electricity  General,Environmental Services,Depots,"4,201.98"
266933,5662590,NSL LIMITED#NSL SERVICES GROUP,11/10/2018,44202,Contract UnitNonLEA,Environmental Services,Parking Services  On Street,"45,056.09"
3106488,5623443,Nu-Phalt Limited,11/10/2018,33201,Transport Hire,Environmental Services,Transport Support Service,"1,950.00"
3106488,5630676,Nu-Phalt Limited,11/10/2018,33201,Transport Hire,Environmental Services,Transport Support Service,"1,950.00"
303,5628840,OCTAGON FLOWERS,25/10/2018,48626,Floral Decorations,Environmental Services,Bereavement Services,"1,746.50"
6538,5570247,P J CARNEY & CO LTD,11/10/2018,52200,Contracted Services,Environmental Services,Activities and Operations,"1,550.00"
376,5646443,PAKAWASTE ENGINEERING SERVICES LTD,11/10/2018,40101,Operational Equipment Maint,Environmental Services,Markets  Rent Account,678.25
6547,5664572,PEAK FABRICATIONS (BOLTON) LTD,11/10/2018,40601,General Materials,Environmental Services,Highway Services,"17,896.00"
6547,5616450,PEAK FABRICATIONS (BOLTON) LTD,25/10/2018,52200,Contracted Services,Environmental Services,Activities and Operations,750.00
6547,5620438,PEAK FABRICATIONS (BOLTON) LTD,11/10/2018,52200,Contracted Services,Environmental Services,Activities and Operations,"1,200.00"
6547,5616534,PEAK FABRICATIONS (BOLTON) LTD,11/10/2018,52200,Contracted Services,Environmental Services,Activities and Operations,"1,597.50"
6547,5620439,PEAK FABRICATIONS (BOLTON) LTD,11/10/2018,52200,Contracted Services,Environmental Services,Activities and Operations,"2,110.00"
6547,5625858,PEAK FABRICATIONS (BOLTON) LTD,11/10/2018,52200,Contracted Services,Environmental Services,Activities and Operations,"7,080.00"
6547,5614437,PEAK FABRICATIONS (BOLTON) LTD,23/10/2018,52200,Contracted Services,Environmental Services,Activities and Operations,"7,300.00"
6547,5664572,PEAK FABRICATIONS (BOLTON) LTD,02/10/2018,25101,Security Systems   Repairs,Environmental Services,Depots,"1,950.00"
22610,5623445,PETER DOUGLASS PLATFORMS,11/10/2018,33201,Transport Hire,Environmental Services,Transport Support Service,"1,088.00"
22610,5627487,PETER DOUGLASS PLATFORMS,25/10/2018,33201,Transport Hire,Environmental Services,Transport Support Service,"1,280.00"
6554,5623485,PF CUSACK (TOOLS SUPPLIES) LTD,11/10/2018,40601,General Materials,Environmental Services,Activities and Operations,950.00
2681300,5626058,Phenomenal Fireworks Ltd,11/10/2018,40102,Operational Equipment Rental,Environmental Services,Activities and Operations,"7,500.00"
93470,5644474,Phoenix Commercial Collections#2,04/10/2018,48509,Other Fees,Environmental Services,Parking Services  On Street,"1,297.81"
93470,5621437,Phoenix Commercial Collections#2,04/10/2018,48509,Other Fees,Environmental Services,Parking Services  On Street,"1,749.45"
6558,5630581,PHS GROUP PLC,04/10/2018,40108,Caretaking/Cleaning Equipment,Environmental Services,Civic Cleaning,560.50
6558,5627455,PHS GROUP PLC,04/10/2018,40108,Caretaking/Cleaning Equipment,Environmental Services,Civic Cleaning,630.00
6558,5641451,PHS GROUP PLC,04/10/2018,26001,Hygiene Requisite,Environmental Services,Markets  Rent Account,"3,235.48"
2610303,5664451,Pitney Bowes Finance Limited,04/10/2018,45001,Franking Machine,Environmental Services,Franking,"5,236.63"
6568,5659458,Postage By Phone-Pitney Bowes Ltd,04/10/2018,45002,Postage Charge,Environmental Services,Franking,"36,000.00"
288626,5623515,Premier Pest Services,02/10/2018,20102,Health & Safety,Environmental Services,Markets  Rent Account,530.00
2729460,5604495,Proactive Personnel Ltd,25/10/2018,53102,Agency Staff  Other,Environmental Services,Transport Support Service,"1,646.66"
2729460,5644458,Proactive Personnel Ltd,23/10/2018,53102,Agency Staff  Other,Environmental Services,Transport Support Service,"1,866.26"
2729460,5621608,Proactive Personnel Ltd,18/10/2018,53102,Agency Staff  Other,Environmental Services,Transport Support Service,"1,898.51"
2729460,5605452,Proactive Personnel Ltd,08/10/2018,53102,Agency Staff  Other,Environmental Services,Transport Support Service,"1,911.42"
3071459,5630518,Profile Security Services Ltd,23/10/2018,53102,Agency Staff  Other,Environmental Services,Security Services,627.00
3071459,5630539,Profile Security Services Ltd,23/10/2018,53102,Agency Staff  Other,Environmental Services,Security Services,776.88
3071459,5630556,Profile Security Services Ltd,15/10/2018,53102,Agency Staff  Other,Environmental Services,Security Services,776.88
3071459,5630533,Profile Security Services Ltd,15/10/2018,53102,Agency Staff  Other,Environmental Services,Security Services,906.36
3071459,5630568,Profile Security Services Ltd,11/10/2018,53102,Agency Staff  Other,Environmental Services,Security Services,954.92
3071459,5630526,Profile Security Services Ltd,15/10/2018,53102,Agency Staff  Other,Environmental Services,Security Services,971.10
3071459,5630566,Profile Security Services Ltd,25/10/2018,53102,Agency Staff  Other,Environmental Services,Security Services,"1,086.80"
3071459,5630554,Profile Security Services Ltd,18/10/2018,53102,Agency Staff  Other,Environmental Services,Security Services,"1,294.80"
3071459,5630558,Profile Security Services Ltd,23/10/2018,53102,Agency Staff  Other,Environmental Services,Security Services,"1,424.28"
3071459,5630528,Profile Security Services Ltd,11/10/2018,53102,Agency Staff  Other,Environmental Services,Security Services,"1,424.28"
3071459,5630519,Profile Security Services Ltd,11/10/2018,53102,Agency Staff  Other,Environmental Services,Security Services,"1,567.50"
3071459,5630522,Profile Security Services Ltd,29/10/2018,53102,Agency Staff  Other,Environmental Services,Security Services,"1,922.80"
3071459,5630564,Profile Security Services Ltd,18/10/2018,53102,Agency Staff  Other,Environmental Services,Security Services,"2,201.16"
3071459,5630547,Profile Security Services Ltd,11/10/2018,44401,Other Security Expenses,Environmental Services,Security Services,"1,035.84"
3126645,5665480,Pure Utility Solutions,23/10/2018,20100,Day To Day Maintenance,Environmental Services,Assets,"1,020.00"
644,5630731,R S TYRER LTD,18/10/2018,34405,Clients  Swimming Fares,Environmental Services,Vulnerable Persons Transport,840.00
3349657,5613614,Raise the Youth Foundation CIC Ltd,02/10/2018,55700,Grant Funded Expenditure,Environmental Services,Community Safety,"10,000.00"
4529961,5613540,Red Ents Ltd,02/10/2018,48501,Artistes Fees,Environmental Services,Albert Halls  Operations,"3,451.00"
2910325,5667458,REDACTED - Personal Data,02/10/2018,46004,Staff Training Courses,Environmental Services,DMT,695.00
4614132,5630589,REDACTED - Personal Data,02/10/2018,55711,Medical Referees Fees,Environmental Services,Bereavement Services,"2,500.00"
4921745,5630584,REDACTED - Personal Data,23/10/2018,55711,Medical Referees Fees,Environmental Services,Bereavement Services,700.00
4921745,5630598,REDACTED - Personal Data,23/10/2018,55711,Medical Referees Fees,Environmental Services,Bereavement Services,"1,320.00"
6360,5664580,REDACTED - Personal Data,23/10/2018,25105,Other Security,Environmental Services,Heaton Fold,"1,579.00"
6360,5630474,REDACTED - Personal Data,02/10/2018,20101,Programmed Maint. Work,Environmental Services,Heaton Fold,"7,209.59"
3159606,5662570,REDACTED - Personal Data,02/10/2018,52200,Contracted Services,Environmental Services,Activities and Operations,"14,065.00"
3441645,5667519,REDACTED - Personal Data,02/10/2018,52200,Contracted Services,Environmental Services,Activities and Operations,"1,118.75"
3490653,5616629,Reed Specialist Recruitment Ltd,15/10/2018,53102,Agency Staff  Other,Environmental Services,Waste,502.87
3490653,5665558,Reed Specialist Recruitment Ltd,02/10/2018,53102,Agency Staff  Other,Environmental Services,Waste,"1,005.74"
3490653,5616629,Reed Specialist Recruitment Ltd,02/10/2018,53102,Agency Staff  Other,Environmental Services,Trade Waste,515.41
3490653,5648474,Reed Specialist Recruitment Ltd,02/10/2018,53102,Agency Staff  Other,Environmental Services,Trade Waste,527.27
3490653,5665558,Reed Specialist Recruitment Ltd,02/10/2018,53102,Agency Staff  Other,Environmental Services,Trade Waste,657.59
3490653,5616629,Reed Specialist Recruitment Ltd,02/10/2018,53102,Agency Staff  Other,Environmental Services,Activities and Operations,"2,356.45"
3490653,5665558,Reed Specialist Recruitment Ltd,02/10/2018,53102,Agency Staff  Other,Environmental Services,Activities and Operations,"3,788.92"
3490653,5648474,Reed Specialist Recruitment Ltd,02/10/2018,53102,Agency Staff  Other,Environmental Services,Activities and Operations,"4,382.52"
3490653,5625886,Reed Specialist Recruitment Ltd,02/10/2018,53102,Agency Staff  Other,Environmental Services,Activities and Operations,"4,971.28"
3490653,5616629,Reed Specialist Recruitment Ltd,02/10/2018,53102,Agency Staff  Other,Environmental Services,Bereavement Services,539.17
3490653,5665558,Reed Specialist Recruitment Ltd,23/10/2018,53102,Agency Staff  Other,Environmental Services,Bereavement Services,"2,842.53"
3490653,5616629,Reed Specialist Recruitment Ltd,08/10/2018,53102,Agency Staff  Other,Environmental Services,Civic Cleaning,716.85
3490653,5665558,Reed Specialist Recruitment Ltd,25/10/2018,53102,Agency Staff  Other,Environmental Services,Transport Support Service,607.01
3490653,5625886,Reed Specialist Recruitment Ltd,11/10/2018,53102,Agency Staff  Other,Environmental Services,Transport Support Service,809.34
3490653,5616629,Reed Specialist Recruitment Ltd,11/10/2018,53102,Agency Staff  Other,Environmental Services,Transport Support Service,"1,439.89"
3490653,5648474,Reed Specialist Recruitment Ltd,25/10/2018,53102,Agency Staff  Other,Environmental Services,Transport Support Service,"1,439.89"
3490653,5616629,Reed Specialist Recruitment Ltd,02/10/2018,53102,Agency Staff  Other,Environmental Services,Markets  Rent Account,"1,161.42"
3490653,5665558,Reed Specialist Recruitment Ltd,02/10/2018,53102,Agency Staff  Other,Environmental Services,Markets  Rent Account,"1,188.16"
3490653,5648474,Reed Specialist Recruitment Ltd,02/10/2018,53102,Agency Staff  Other,Environmental Services,Markets  Rent Account,"1,357.46"
3490653,5625886,Reed Specialist Recruitment Ltd,11/10/2018,53102,Agency Staff  Other,Environmental Services,Markets  Rent Account,"1,437.65"
3490653,5648474,Reed Specialist Recruitment Ltd,23/10/2018,53102,Agency Staff  Other,Environmental Services,Strategy & Service Development,614.58
3490653,5625886,Reed Specialist Recruitment Ltd,02/10/2018,53102,Agency Staff  Other,Environmental Services,Strategy & Service Development,768.24
3490653,5616629,Reed Specialist Recruitment Ltd,18/10/2018,53102,Agency Staff  Other,Environmental Services,Strategy & Service Development,768.24
3490653,5665558,Reed Specialist Recruitment Ltd,25/10/2018,53102,Agency Staff  Other,Environmental Services,Strategy & Service Development,768.24
627,5623525,REGIONAL CIRCULAR DISTRIBUTION#RCD,02/10/2018,48203,Marketing,Environmental Services,Waste,"17,077.50"
2646318,5640467,Richard Burton Haulage Ltd,02/10/2018,33202,Plant Hire,Environmental Services,Highway Services,960.00
2646318,5665600,Richard Burton Haulage Ltd,18/10/2018,33202,Plant Hire,Environmental Services,Highway Services,"1,200.00"
2646318,5618446,Richard Burton Haulage Ltd,29/10/2018,33202,Plant Hire,Environmental Services,Highways Maintenance Billable Costs,"1,200.00"
6612,5644487,RIGBY TAYLOR LTD,11/10/2018,40601,General Materials,Environmental Services,Activities and Operations,960.00
6615,5622501,RIVERSIDE TRUCK RENTAL LTD,04/10/2018,33201,Transport Hire,Environmental Services,Transport Support Service,"3,580.00"
6615,5626089,RIVERSIDE TRUCK RENTAL LTD,02/10/2018,33201,Transport Hire,Environmental Services,Transport Support Service,"4,400.00"
6619,5625864,ROBINSON PLANT HIRE,02/10/2018,33202,Plant Hire,Environmental Services,Activities and Operations,529.78
1637,5644451,SAFETY KLEEN UK  LTD,02/10/2018,40101,Operational Equipment Maint,Environmental Services,Transport Support Service,532.21
46513,5660461,SCOTTISH & SOUTHERN ENERGY PLC,11/10/2018,21100,Electricity  General,Environmental Services,Engineering Projects,"271,852.84"
46513,5623491,SCOTTISH & SOUTHERN ENERGY PLC,15/10/2018,21100,Electricity  General,Environmental Services,Assets,"1,298.64"
46513,5623491,SCOTTISH & SOUTHERN ENERGY PLC,18/10/2018,21100,Electricity  General,Environmental Services,Depots,738.77
46513,5623491,SCOTTISH & SOUTHERN ENERGY PLC,08/10/2018,21100,Electricity  General,Environmental Services,Community Centres  Little Lever,811.33
10235,5626156,SECURE INDUSTRIAL DOORS,15/10/2018,25108,Security Maintenance,Environmental Services,Depots,530.00
10235,5626154,SECURE INDUSTRIAL DOORS,18/10/2018,25108,Security Maintenance,Environmental Services,Depots,"1,269.00"
10235,5626155,SECURE INDUSTRIAL DOORS,02/10/2018,25108,Security Maintenance,Environmental Services,Depots,"1,890.00"
6652,5648470,SEDDONS (PLANT & ENGINEERS) LTD,15/10/2018,20101,Programmed Maint. Work,Environmental Services,Highway Services,651.64
1820,5617151,SIBCAS LTD,15/10/2018,20501,Engineering Work,Environmental Services,Highways Maintenance Billable Costs,658.67
164104,5616722,SMITHS EQUIPMENT HIRE LTD#2,15/10/2018,33202,Plant Hire,Environmental Services,Activities and Operations,556.80
6675,5649247,SPECTRA SECURITY LTD,15/10/2018,25101,Security Systems   Repairs,Environmental Services,Depots,662.50
214381,5629248,SRCL Ltd,18/10/2018,26106,Refuse Collection,Environmental Services,Security Services,977.09
4923771,5630503,Story Book Productions Limited,02/10/2018,48501,Artistes Fees,Environmental Services,Albert Halls  Operations,"7,333.16"
4419954,5668551,Streetmellor,02/10/2018,48509,Other Fees,Environmental Services,Community Safety,500.00
6694,5631516,SUTTONS NURSERIES,25/10/2018,40609,Horticultural Materials,Environmental Services,Heaton Fold,577.80
251543,5640483,T LOWE & SON LIMITED,25/10/2018,20102,Health & Safety,Environmental Services,Assets,546.02
945,5644441,TERBERG MATEC UK,18/10/2018,52200,Contracted Services,Environmental Services,Transport Support Service,512.93
945,5604443,TERBERG MATEC UK,04/10/2018,52200,Contracted Services,Environmental Services,Transport Support Service,"2,420.66"
945,5604435,TERBERG MATEC UK,04/10/2018,52200,Contracted Services,Environmental Services,Transport Support Service,"2,512.08"
945,5599437,TERBERG MATEC UK,04/10/2018,52200,Contracted Services,Environmental Services,Transport Support Service,"3,571.43"
945,5621630,TERBERG MATEC UK,11/10/2018,52200,Contracted Services,Environmental Services,Transport Support Service,"3,960.12"
945,5604436,TERBERG MATEC UK,04/10/2018,31305,Vehicle Servicing,Environmental Services,Transport Support Service,842.36
